Department Family,Entity,Date,Expense Type,Expense Area,Supplier,Transaction Number, Amount ,Item Description
BEIS,UKRI - AHRC,28/09/2018,Catering Contracts,HR,1st Biotech Ltd,98298471,518.40,Catering Contracts
BEIS,UKRI - AHRC,28/09/2018,Catering Contracts,HR,1st Biotech Ltd,98298471,17.94,Catering Contracts
BEIS,UKRI - AHRC,12/09/2018,Research Grant Expenditure,Networks & Workshops,Aberystwyth University,98271545,4510.08,Research Grant Expenditure
BEIS,UKRI - AHRC,12/09/2018,Research Grant Expenditure,RCUK Newton Programme,Aberystwyth University,98273753,22138.96,Research Grant Expenditure
BEIS,UKRI - AHRC,12/09/2018,Research Grant Expenditure,Research Grants,Aberystwyth University,98271577,52801.22,Research Grant Expenditure
BEIS,UKRI - AHRC,07/09/2018,Recruitment Costs,HR,Agenda Resource Management Ltd,98276879,56.11,Recruitment Costs
BEIS,UKRI - AHRC,07/09/2018,Recruitment Costs,HR,Agenda Resource Management Ltd,98276896,56.11,Recruitment Costs
BEIS,UKRI - AHRC,27/09/2018,Recruitment Costs,HR,Agenda Resource Management Ltd,98297671,56.11,Recruitment Costs
BEIS,UKRI - AHRC,10/09/2018,Recruitment Costs,Secretariat,Agenda Resource Management Ltd,98276893,33.40,Recruitment Costs
BEIS,UKRI - AHRC,10/09/2018,Recruitment Costs,Secretariat,Agenda Resource Management Ltd,98276899,33.40,Recruitment Costs
BEIS,UKRI - AHRC,20/09/2018,Contract Staff,PSU JRS,Alexander Mann Solutions Limited,98292883,3406.56,Contract Staff
BEIS,UKRI - AHRC,20/09/2018,Contract Staff,PSU JRS,Alexander Mann Solutions Limited,98292884,-3406.56,Contract Staff
BEIS,UKRI - AHRC,20/09/2018,Contract Staff,PSU JRS,Alexander Mann Solutions Limited,98292885,6944.58,Contract Staff
BEIS,UKRI - AHRC,28/09/2018,Contract Staff,PSU JRS,Alexander Mann Solutions Limited,98296841,1851.89,Contract Staff
BEIS,UKRI - AHRC,04/09/2018,Agency Staff,PSU Project Office,Alexander Mann Solutions Limited,98273238,-6308.46,Agency Staff
BEIS,UKRI - AHRC,19/09/2018,Agency Staff,PSU Project Office,Alexander Mann Solutions Limited,98291633,2523.38,Agency Staff
BEIS,UKRI - AHRC,05/09/2018,Contract Staff,PSU Project Office,Alexander Mann Solutions Limited,98274292,3096.96,Contract Staff
BEIS,UKRI - AHRC,11/09/2018,Contract Staff,PSU Project Office,Alexander Mann Solutions Limited,98282172,1858.18,Contract Staff
BEIS,UKRI - AHRC,12/09/2018,Contract Staff,PSU Project Office,Alexander Mann Solutions Limited,98282173,3766.62,Contract Staff
BEIS,UKRI - AHRC,19/09/2018,Contract Staff,PSU Project Office,Alexander Mann Solutions Limited,98291632,3766.62,Contract Staff
BEIS,UKRI - AHRC,27/09/2018,Contract Staff,PSU Project Office,Alexander Mann Solutions Limited,98296620,3766.62,Contract Staff
BEIS,UKRI - AHRC,07/09/2018,Health & Safety (inc. Medicals & Opticians),Corporate Services,AM Health & Safety Ltd,98244051,90.00,Health & Safety (inc. Medicals & Opticians)
BEIS,UKRI - AHRC,12/09/2018,Provisions ( Food etc),HR,Arco Limited,98281210,63.50,Provisions ( Food etc)
BEIS,UKRI - AHRC,12/09/2018,Research Grant Expenditure,Follow-on Fund,Aston University,98273649,19951.10,Research Grant Expenditure
BEIS,UKRI - AHRC,26/09/2018,Legal & Professional Services,PSU Project Office,Automated Intelligence Ltd,98277832,8910.00,Legal & Professional Services
BEIS,UKRI - AHRC,12/09/2018,Research Grant Expenditure,Research Grants,Bangor University,98271482,1964.82,Research Grant Expenditure
BEIS,UKRI - AHRC,06/09/2018,Health & Safety (inc. Medicals & Opticians),Corporate Services,Banner Group Ltd,98276661,47.40,Health & Safety (inc. Medicals & Opticians)
BEIS,UKRI - AHRC,06/09/2018,Health & Safety (inc. Medicals & Opticians),Corporate Services,Banner Group Ltd,98276661,7.27,Health & Safety (inc. Medicals & Opticians)
BEIS,UKRI - AHRC,06/09/2018,Health & Safety (inc. Medicals & Opticians),Corporate Services,Banner Group Ltd,98276661,36.35,Health & Safety (inc. Medicals & Opticians)
BEIS,UKRI - AHRC,06/09/2018,Health & Safety (inc. Medicals & Opticians),Corporate Services,Banner Group Ltd,98276662,-43.62,Health & Safety (inc. Medicals & Opticians)
BEIS,UKRI - AHRC,11/09/2018,Printing & Stationery,HR,Banner Group Ltd,98277918,3.84,Printing & Stationery
BEIS,UKRI - AHRC,05/09/2018,Provisions ( Food etc),HR,Banner Group Ltd,98258782,3.74,Provisions ( Food etc)
BEIS,UKRI - AHRC,05/09/2018,Provisions ( Food etc),HR,Banner Group Ltd,98258782,41.18,Provisions ( Food etc)
BEIS,UKRI - AHRC,10/09/2018,Provisions ( Food etc),HR,Banner Group Ltd,98280360,7.48,Provisions ( Food etc)
BEIS,UKRI - AHRC,10/09/2018,Provisions ( Food etc),HR,Banner Group Ltd,98280360,41.18,Provisions ( Food etc)
BEIS,UKRI - AHRC,11/09/2018,Provisions ( Food etc),HR,Banner Group Ltd,98277918,3.74,Provisions ( Food etc)
BEIS,UKRI - AHRC,11/09/2018,Provisions ( Food etc),HR,Banner Group Ltd,98277918,20.59,Provisions ( Food etc)
BEIS,UKRI - AHRC,05/09/2018,Purchase of non capital equipment,HR,Banner Group Ltd,98258782,23.30,Purchase of non capital equipment
BEIS,UKRI - AHRC,10/09/2018,Purchase of non capital equipment,HR,Banner Group Ltd,98280346,-23.30,Purchase of non capital equipment
BEIS,UKRI - AHRC,10/09/2018,Purchase of non capital equipment,HR,Banner Group Ltd,98280348,-23.30,Purchase of non capital equipment
BEIS,UKRI - AHRC,10/09/2018,Purchase of non capital equipment,HR,Banner Group Ltd,98280360,23.30,Purchase of non capital equipment
BEIS,UKRI - AHRC,25/09/2018,Legal & Professional Services,Finance,Bates Wells & Braithwaite London LLP,98290285,360.00,Legal & Professional Services
BEIS,UKRI - AHRC,12/09/2018,Research Grant Expenditure,Connected Communities Programme,Bath Spa University,98271578,91367.02,Research Grant Expenditure
BEIS,UKRI - AHRC,12/09/2018,Research Grant Expenditure,Global Challenges Research Fund (GCRF),Bath Spa University,98272823,-586.44,Research Grant Expenditure
BEIS,UKRI - AHRC,12/09/2018,Fellowships,Research Fellowships,Bath Spa University,98271215,16455.32,Fellowships
BEIS,UKRI - AHRC,12/09/2018,Research Grant Expenditure,Research Grants,Bath Spa University,98271421,40329.35,Research Grant Expenditure
BEIS,UKRI - AHRC,04/09/2018,Meetings & Catering,Communications,Baxter Storey Ltd,98272049,159.06,Meetings & Catering
BEIS,UKRI - AHRC,04/09/2018,Meetings & Catering,SMT,Baxter Storey Ltd,98272049,71.52,Meetings & Catering
BEIS,UKRI - AHRC,04/09/2018,Secondments,Communications,Biotechnology and Biological Sciences Research Council (BBSRC),98272762,8873.88,Secondments
BEIS,UKRI - AHRC,12/09/2018,Research Grant Expenditure,Research Grants,Birkbeck College,98271490,65760.22,Research Grant Expenditure
BEIS,UKRI - AHRC,12/09/2018,Research Grant Expenditure,Research Grants,Birkbeck College,98271501,20319.24,Research Grant Expenditure
BEIS,UKRI - AHRC,12/09/2018,Research Grant Expenditure,Networks & Workshops,Birmingham City University,98271540,4560.59,Research Grant Expenditure
BEIS,UKRI - AHRC,12/09/2018,Fellowships,Research Fellowships,Birmingham City University,98271224,17003.15,Fellowships
BEIS,UKRI - AHRC,12/09/2018,Research Grant Expenditure,Research Grants,Birmingham City University,98271485,34451.74,Research Grant Expenditure
BEIS,UKRI - AHRC,12/09/2018,Research Grant Expenditure,Research Grants,Birmingham City University,98273625,42216.33,Research Grant Expenditure
BEIS,UKRI - AHRC,12/09/2018,Research Grant Expenditure,Research Grants,Bournemouth University GRANT,98271526,55789.36,Research Grant Expenditure
BEIS,UKRI - AHRC,12/09/2018,Research Grant Expenditure,Research Grants,British Institute Of International And Comparative Law,98273744,27753.07,Research Grant Expenditure
BEIS,UKRI - AHRC,12/09/2018,Research Grant Expenditure,Global Challenges Research Fund (GCRF),British Museum,98272824,3469.98,Research Grant Expenditure
BEIS,UKRI - AHRC,12/09/2018,Research Grant Expenditure,Research Grants,British Museum,98271458,55477.50,Research Grant Expenditure
BEIS,UKRI - AHRC,12/09/2018,Research Grant Expenditure,Connected Communities Programme,Brunel University London,98271455,101174.11,Research Grant Expenditure
BEIS,UKRI - AHRC,12/09/2018,Research Grant Expenditure,Global Uncertainties Programme,Brunel University London,98272810,-1728.99,Research Grant Expenditure
BEIS,UKRI - AHRC,21/09/2018,Hospitality,Business Process & Analysis,Calder Conference Ltd,98293138,638.00,Hospitality
BEIS,UKRI - AHRC,05/09/2018,Conferences & Seminars,PSU Project Office,Calder Conference Ltd,98273200,3012.00,Conferences & Seminars
BEIS,UKRI - AHRC,27/09/2018,Hospitality,SMT,Calder Conference Ltd,98297699,1077.60,Hospitality
BEIS,UKRI - AHRC,12/09/2018,Research Grant Expenditure,Research Grants,Canterbury Christ Church University GRANT,98271606,34265.56,Research Grant Expenditure
BEIS,UKRI - AHRC,12/09/2018,Research Grant Expenditure,Follow-on Fund,Cardiff University,98273699,19514.93,Research Grant Expenditure
BEIS,UKRI - AHRC,12/09/2018,Research Grant Expenditure,Networks & Workshops,Cardiff University,98273640,4485.65,Research Grant Expenditure
BEIS,UKRI - AHRC,12/09/2018,Research Grant Expenditure,Networks & Workshops,Cardiff University,98273723,4214.82,Research Grant Expenditure
BEIS,UKRI - AHRC,12/09/2018,Research Grant Expenditure,Newton Programme,Cardiff University,98273728,13774.84,Research Grant Expenditure
BEIS,UKRI - AHRC,12/09/2018,Fellowships,Research Fellowships,Cardiff University,98271238,20493.89,Fellowships
BEIS,UKRI - AHRC,12/09/2018,Research Grant Expenditure,Research Grants,Cardiff University,98271547,15655.61,Research Grant Expenditure
BEIS,UKRI - AHRC,12/09/2018,Research Grant Expenditure,Research Grants,Cardiff University,98271549,16703.93,Research Grant Expenditure
BEIS,UKRI - AHRC,12/09/2018,Research Grant Expenditure,Research Grants,Cardiff University,98273634,26939.82,Research Grant Expenditure
BEIS,UKRI - AHRC,12/09/2018,Research Grant Expenditure,Research Grants,Cardiff University,98273695,22402.96,Research Grant Expenditure
BEIS,UKRI - AHRC,13/09/2018,Voluntary Deductions,Balance Sheet,Chargive,98281563,7.00,Voluntary Deductions
BEIS,UKRI - AHRC,13/09/2018,Voluntary Deductions,Balance Sheet,Civil Service Benevolent Fund,98281562,7.33,Voluntary Deductions
BEIS,UKRI - AHRC,28/09/2018,Staff Training,Corporate Services,Corinium Human Resource Management Ltd,98293986,383.76,Staff Training
BEIS,UKRI - AHRC,06/09/2018,T&S UK - Public Transport,"AHRC - Strategic Planning, Evidence & Impact",Corporate Travel Management (North) Ltd,98275591,146.00,T&S UK - Public Transport
BEIS,UKRI - AHRC,06/09/2018,T&S UK - Public Transport,Business Process & Analysis,Corporate Travel Management (North) Ltd,98275591,11.60,T&S UK - Public Transport
BEIS,UKRI - AHRC,06/09/2018,T&S UK - Public Transport,Business Process & Analysis,Corporate Travel Management (North) Ltd,98275591,-30.90,T&S UK - Public Transport
BEIS,UKRI - AHRC,06/09/2018,T&S UK - Public Transport,Business Process & Analysis,Corporate Travel Management (North) Ltd,98275591,231.75,T&S UK - Public Transport
BEIS,UKRI - AHRC,06/09/2018,T&S UK - Public Transport,Business Process & Analysis,Corporate Travel Management (North) Ltd,98275591,139.60,T&S UK - Public Transport
BEIS,UKRI - AHRC,06/09/2018,T&S UK - Accommodation,Communications,Corporate Travel Management (North) Ltd,98275591,0.50,T&S UK - Accommodation
BEIS,UKRI - AHRC,06/09/2018,T&S UK - Accommodation,Communications,Corporate Travel Management (North) Ltd,98275591,205.00,T&S UK - Accommodation
BEIS,UKRI - AHRC,06/09/2018,T&S UK - Accommodation,Communications,Corporate Travel Management (North) Ltd,98275591,0.10,T&S UK - Accommodation
BEIS,UKRI - AHRC,06/09/2018,T&S UK - Public Transport,Communications,Corporate Travel Management (North) Ltd,98275591,1.00,T&S UK - Public Transport
BEIS,UKRI - AHRC,06/09/2018,T&S UK - Public Transport,Communications,Corporate Travel Management (North) Ltd,98275591,124.80,T&S UK - Public Transport
BEIS,UKRI - AHRC,06/09/2018,T&S UK - Public Transport,Communications,Corporate Travel Management (North) Ltd,98275591,84.50,T&S UK - Public Transport
BEIS,UKRI - AHRC,06/09/2018,T&S UK - Public Transport,Communications,Corporate Travel Management (North) Ltd,98275591,-134.60,T&S UK - Public Transport
BEIS,UKRI - AHRC,06/09/2018,T&S UK - Public Transport,Communications,Corporate Travel Management (North) Ltd,98275591,-29.30,T&S UK - Public Transport
BEIS,UKRI - AHRC,06/09/2018,T&S Overseas - Public Transport,Corporate Services,Corporate Travel Management (North) Ltd,98275591,74.60,T&S Overseas - Public Transport
BEIS,UKRI - AHRC,06/09/2018,T&S UK - Accommodation,Creative Arts & Digital Humanities,Corporate Travel Management (North) Ltd,98275591,0.50,T&S UK - Accommodation
BEIS,UKRI - AHRC,06/09/2018,T&S UK - Accommodation,Creative Arts & Digital Humanities,Corporate Travel Management (North) Ltd,98275591,94.50,T&S UK - Accommodation
BEIS,UKRI - AHRC,06/09/2018,T&S UK - Accommodation,Creative Arts & Digital Humanities,Corporate Travel Management (North) Ltd,98275591,0.50,T&S UK - Accommodation
BEIS,UKRI - AHRC,06/09/2018,T&S UK - Accommodation,Creative Arts & Digital Humanities,Corporate Travel Management (North) Ltd,98275591,410.00,T&S UK - Accommodation
BEIS,UKRI - AHRC,06/09/2018,T&S UK - Accommodation,Creative Arts & Digital Humanities,Corporate Travel Management (North) Ltd,98275591,0.50,T&S UK - Accommodation
BEIS,UKRI - AHRC,06/09/2018,T&S UK - Accommodation,Creative Arts & Digital Humanities,Corporate Travel Management (North) Ltd,98275591,300.00,T&S UK - Accommodation
BEIS,UKRI - AHRC,06/09/2018,T&S UK - Accommodation,Creative Arts & Digital Humanities,Corporate Travel Management (North) Ltd,98275591,0.30,T&S UK - Accommodation
BEIS,UKRI - AHRC,06/09/2018,T&S UK - Public Transport,Creative Arts & Digital Humanities,Corporate Travel Management (North) Ltd,98275591,1.00,T&S UK - Public Transport
BEIS,UKRI - AHRC,06/09/2018,T&S UK - Public Transport,Creative Arts & Digital Humanities,Corporate Travel Management (North) Ltd,98275591,56.90,T&S UK - Public Transport
BEIS,UKRI - AHRC,06/09/2018,T&S UK - Public Transport,Creative Arts & Digital Humanities,Corporate Travel Management (North) Ltd,98275591,100.70,T&S UK - Public Transport
BEIS,UKRI - AHRC,06/09/2018,T&S UK - Public Transport,Creative Arts & Digital Humanities,Corporate Travel Management (North) Ltd,98275591,117.80,T&S UK - Public Transport
BEIS,UKRI - AHRC,06/09/2018,T&S UK - Public Transport,Creative Arts & Digital Humanities,Corporate Travel Management (North) Ltd,98275591,57.00,T&S UK - Public Transport
BEIS,UKRI - AHRC,06/09/2018,T&S UK - Public Transport,Creative Arts & Digital Humanities,Corporate Travel Management (North) Ltd,98275591,37.30,T&S UK - Public Transport
BEIS,UKRI - AHRC,06/09/2018,T&S UK - Public Transport,Creative Arts & Digital Humanities,Corporate Travel Management (North) Ltd,98275591,64.60,T&S UK - Public Transport
BEIS,UKRI - AHRC,06/09/2018,T&S UK - Public Transport,Creative Arts & Digital Humanities,Corporate Travel Management (North) Ltd,98275591,96.30,T&S UK - Public Transport
BEIS,UKRI - AHRC,06/09/2018,T&S UK - Public Transport,Creative Arts & Digital Humanities,Corporate Travel Management (North) Ltd,98275591,88.90,T&S UK - Public Transport
BEIS,UKRI - AHRC,06/09/2018,T&S UK - Public Transport,Creative Arts & Digital Humanities,Corporate Travel Management (North) Ltd,98275591,1.00,T&S UK - Public Transport
BEIS,UKRI - AHRC,06/09/2018,T&S UK - Public Transport,Creative Arts & Digital Humanities,Corporate Travel Management (North) Ltd,98275591,217.40,T&S UK - Public Transport
BEIS,UKRI - AHRC,06/09/2018,T&S UK - Public Transport,Creative Arts & Digital Humanities,Corporate Travel Management (North) Ltd,98275591,1.00,T&S UK - Public Transport
BEIS,UKRI - AHRC,06/09/2018,T&S UK - Public Transport,Creative Arts & Digital Humanities,Corporate Travel Management (North) Ltd,98275591,217.40,T&S UK - Public Transport
BEIS,UKRI - AHRC,06/09/2018,T&S UK - Public Transport,Creative Arts & Digital Humanities,Corporate Travel Management (North) Ltd,98275591,139.60,T&S UK - Public Transport
BEIS,UKRI - AHRC,06/09/2018,T&S UK - Public Transport,Creative Arts & Digital Humanities,Corporate Travel Management (North) Ltd,98275591,67.90,T&S UK - Public Transport
BEIS,UKRI - AHRC,06/09/2018,T&S UK - Public Transport,Creative Arts & Digital Humanities,Corporate Travel Management (North) Ltd,98275591,139.60,T&S UK - Public Transport
BEIS,UKRI - AHRC,06/09/2018,T&S UK - Public Transport,Finance,Corporate Travel Management (North) Ltd,98275591,23.00,T&S UK - Public Transport
BEIS,UKRI - AHRC,06/09/2018,T&S UK - Public Transport,GCRF - Programme Delivery,Corporate Travel Management (North) Ltd,98275591,140.00,T&S UK - Public Transport
BEIS,UKRI - AHRC,06/09/2018,T&S UK - Public Transport,GCRF - Programme Delivery,Corporate Travel Management (North) Ltd,98275591,139.60,T&S UK - Public Transport
BEIS,UKRI - AHRC,06/09/2018,T&S UK - Public Transport,GCRF - Programme Delivery,Corporate Travel Management (North) Ltd,98275591,139.60,T&S UK - Public Transport
BEIS,UKRI - AHRC,06/09/2018,T&S UK - Public Transport,GCRF - Programme Delivery,Corporate Travel Management (North) Ltd,98275591,91.30,T&S UK - Public Transport
BEIS,UKRI - AHRC,06/09/2018,T&S Overseas - Accommodation,"Histories,Culture & Heritage",Corporate Travel Management (North) Ltd,98275591,37.31,T&S Overseas - Accommodation
BEIS,UKRI - AHRC,06/09/2018,T&S Overseas - Accommodation,"Histories,Culture & Heritage",Corporate Travel Management (North) Ltd,98275591,43.90,T&S Overseas - Accommodation
BEIS,UKRI - AHRC,06/09/2018,T&S Overseas - Flights,"Histories,Culture & Heritage",Corporate Travel Management (North) Ltd,98275591,2.16,T&S Overseas - Flights
BEIS,UKRI - AHRC,06/09/2018,T&S Overseas - Flights,"Histories,Culture & Heritage",Corporate Travel Management (North) Ltd,98275591,283.58,T&S Overseas - Flights
BEIS,UKRI - AHRC,06/09/2018,T&S UK - Public Transport,"Histories,Culture & Heritage",Corporate Travel Management (North) Ltd,98275591,153.00,T&S UK - Public Transport
BEIS,UKRI - AHRC,06/09/2018,T&S UK - Public Transport,"Histories,Culture & Heritage",Corporate Travel Management (North) Ltd,98275591,68.50,T&S UK - Public Transport
BEIS,UKRI - AHRC,06/09/2018,T&S UK - Public Transport,"Histories,Culture & Heritage",Corporate Travel Management (North) Ltd,98275591,139.60,T&S UK - Public Transport
BEIS,UKRI - AHRC,06/09/2018,T&S UK - Public Transport,"Histories,Culture & Heritage",Corporate Travel Management (North) Ltd,98275591,139.60,T&S UK - Public Transport
BEIS,UKRI - AHRC,06/09/2018,T&S UK - Public Transport,"Histories,Culture & Heritage",Corporate Travel Management (North) Ltd,98275591,116.00,T&S UK - Public Transport
BEIS,UKRI - AHRC,06/09/2018,T&S UK - Public Transport,"Histories,Culture & Heritage",Corporate Travel Management (North) Ltd,98275591,217.40,T&S UK - Public Transport
BEIS,UKRI - AHRC,06/09/2018,T&S UK - Public Transport,HR,Corporate Travel Management (North) Ltd,98275591,23.00,T&S UK - Public Transport
BEIS,UKRI - AHRC,06/09/2018,T&S UK - Public Transport,HR,Corporate Travel Management (North) Ltd,98275591,23.00,T&S UK - Public Transport
BEIS,UKRI - AHRC,06/09/2018,T&S UK - Public Transport,HR,Corporate Travel Management (North) Ltd,98275591,23.00,T&S UK - Public Transport
BEIS,UKRI - AHRC,06/09/2018,T&S UK - Public Transport,HR,Corporate Travel Management (North) Ltd,98275591,23.00,T&S UK - Public Transport
BEIS,UKRI - AHRC,06/09/2018,T&S UK - Public Transport,HR,Corporate Travel Management (North) Ltd,98275591,23.00,T&S UK - Public Transport
BEIS,UKRI - AHRC,06/09/2018,T&S UK - Public Transport,HR,Corporate Travel Management (North) Ltd,98275591,23.00,T&S UK - Public Transport
BEIS,UKRI - AHRC,06/09/2018,T&S UK - Public Transport,HR,Corporate Travel Management (North) Ltd,98275591,-18.00,T&S UK - Public Transport
BEIS,UKRI - AHRC,06/09/2018,T&S UK - Public Transport,HR,Corporate Travel Management (North) Ltd,98275591,-18.00,T&S UK - Public Transport
BEIS,UKRI - AHRC,06/09/2018,T&S UK - Public Transport,HR,Corporate Travel Management (North) Ltd,98275591,23.00,T&S UK - Public Transport
BEIS,UKRI - AHRC,06/09/2018,T&S UK - Public Transport,HR,Corporate Travel Management (North) Ltd,98275591,-18.00,T&S UK - Public Transport
BEIS,UKRI - AHRC,06/09/2018,T&S UK - Public Transport,HR,Corporate Travel Management (North) Ltd,98275591,23.00,T&S UK - Public Transport
BEIS,UKRI - AHRC,06/09/2018,T&S UK - Public Transport,HR,Corporate Travel Management (North) Ltd,98275591,146.30,T&S UK - Public Transport
BEIS,UKRI - AHRC,06/09/2018,T&S UK - Public Transport,HR,Corporate Travel Management (North) Ltd,98275591,70.60,T&S UK - Public Transport
BEIS,UKRI - AHRC,06/09/2018,T&S UK - Public Transport,HR,Corporate Travel Management (North) Ltd,98275591,18.50,T&S UK - Public Transport
BEIS,UKRI - AHRC,06/09/2018,T&S UK - Public Transport,HR,Corporate Travel Management (North) Ltd,98275591,46.80,T&S UK - Public Transport
BEIS,UKRI - AHRC,06/09/2018,T&S UK - Public Transport,Industrial Strategy Challenge Fund (ISCF) - Creative Clusters,Corporate Travel Management (North) Ltd,98275591,56.90,T&S UK - Public Transport
BEIS,UKRI - AHRC,06/09/2018,T&S Overseas - Other Charges,International,Corporate Travel Management (North) Ltd,98275591,178.00,T&S Overseas - Other Charges
BEIS,UKRI - AHRC,06/09/2018,T&S UK - Public Transport,IS,Corporate Travel Management (North) Ltd,98275591,90.00,T&S UK - Public Transport
BEIS,UKRI - AHRC,06/09/2018,T&S UK - Public Transport,IS,Corporate Travel Management (North) Ltd,98275591,90.00,T&S UK - Public Transport
BEIS,UKRI - AHRC,06/09/2018,T&S UK - Public Transport,IS,Corporate Travel Management (North) Ltd,98275591,38.20,T&S UK - Public Transport
BEIS,UKRI - AHRC,06/09/2018,T&S UK - Public Transport,IS,Corporate Travel Management (North) Ltd,98275591,33.20,T&S UK - Public Transport
BEIS,UKRI - AHRC,06/09/2018,T&S UK - Public Transport,IS,Corporate Travel Management (North) Ltd,98275591,140.30,T&S UK - Public Transport
BEIS,UKRI - AHRC,06/09/2018,T&S UK - Public Transport,IS,Corporate Travel Management (North) Ltd,98275591,90.00,T&S UK - Public Transport
BEIS,UKRI - AHRC,06/09/2018,T&S UK - Public Transport,IS,Corporate Travel Management (North) Ltd,98275591,188.80,T&S UK - Public Transport
BEIS,UKRI - AHRC,06/09/2018,T&S UK - Public Transport,IS,Corporate Travel Management (North) Ltd,98275591,90.00,T&S UK - Public Transport
BEIS,UKRI - AHRC,06/09/2018,T&S UK - Public Transport,IS,Corporate Travel Management (North) Ltd,98275591,90.00,T&S UK - Public Transport
BEIS,UKRI - AHRC,06/09/2018,T&S Overseas - Flights,JPI Cultural Heritage Project,Corporate Travel Management (North) Ltd,98275591,237.26,T&S Overseas - Flights
BEIS,UKRI - AHRC,06/09/2018,T&S Overseas - Accommodation,"Languages,Literature & International Engagement",Corporate Travel Management (North) Ltd,98275591,0.50,T&S Overseas - Accommodation
BEIS,UKRI - AHRC,06/09/2018,T&S Overseas - Accommodation,"Languages,Literature & International Engagement",Corporate Travel Management (North) Ltd,98275591,0.10,T&S Overseas - Accommodation
BEIS,UKRI - AHRC,06/09/2018,T&S UK - Public Transport,"Languages,Literature & International Engagement",Corporate Travel Management (North) Ltd,98275591,100.70,T&S UK - Public Transport
BEIS,UKRI - AHRC,06/09/2018,T&S UK - Public Transport,"Languages,Literature & International Engagement",Corporate Travel Management (North) Ltd,98275591,72.10,T&S UK - Public Transport
BEIS,UKRI - AHRC,06/09/2018,T&S UK - Public Transport,Newton Programme,Corporate Travel Management (North) Ltd,98275591,1.00,T&S UK - Public Transport
BEIS,UKRI - AHRC,06/09/2018,T&S UK - Public Transport,Newton Programme,Corporate Travel Management (North) Ltd,98275591,25.40,T&S UK - Public Transport
BEIS,UKRI - AHRC,06/09/2018,T&S Overseas - Public Transport,Newton Programme Delivery,Corporate Travel Management (North) Ltd,98275591,0.50,T&S Overseas - Public Transport
BEIS,UKRI - AHRC,06/09/2018,T&S Overseas - Public Transport,Newton Programme Delivery,Corporate Travel Management (North) Ltd,98275591,1.44,T&S Overseas - Public Transport
BEIS,UKRI - AHRC,06/09/2018,T&S Overseas - Public Transport,Newton Programme Delivery,Corporate Travel Management (North) Ltd,98275591,11805.63,T&S Overseas - Public Transport
BEIS,UKRI - AHRC,06/09/2018,T&S Overseas - Public Transport,Newton Programme Delivery,Corporate Travel Management (North) Ltd,98275591,0.39,T&S Overseas - Public Transport
BEIS,UKRI - AHRC,06/09/2018,T&S UK - Public Transport,Newton Programme Delivery,Corporate Travel Management (North) Ltd,98275591,64.10,T&S UK - Public Transport
BEIS,UKRI - AHRC,06/09/2018,T&S Overseas - Flights,PSU JRS,Corporate Travel Management (North) Ltd,98275591,2.16,T&S Overseas - Flights
BEIS,UKRI - AHRC,06/09/2018,T&S Overseas - Flights,PSU JRS,Corporate Travel Management (North) Ltd,98275591,736.60,T&S Overseas - Flights
BEIS,UKRI - AHRC,06/09/2018,T&S UK - Public Transport,PSU Project Office,Corporate Travel Management (North) Ltd,98275591,139.60,T&S UK - Public Transport
BEIS,UKRI - AHRC,06/09/2018,T&S UK - Public Transport,PSU Project Office,Corporate Travel Management (North) Ltd,98275591,31.30,T&S UK - Public Transport
BEIS,UKRI - AHRC,06/09/2018,T&S UK - Public Transport,PSU Project Office,Corporate Travel Management (North) Ltd,98275591,11.60,T&S UK - Public Transport
BEIS,UKRI - AHRC,06/09/2018,T&S UK - Public Transport,PSU Project Office,Corporate Travel Management (North) Ltd,98275591,12.70,T&S UK - Public Transport
BEIS,UKRI - AHRC,06/09/2018,T&S UK - Public Transport,PSU Project Office,Corporate Travel Management (North) Ltd,98275591,133.60,T&S UK - Public Transport
BEIS,UKRI - AHRC,06/09/2018,T&S UK - Public Transport,PSU Project Office,Corporate Travel Management (North) Ltd,98275591,12.70,T&S UK - Public Transport
BEIS,UKRI - AHRC,06/09/2018,T&S UK - Public Transport,PSU Project Office,Corporate Travel Management (North) Ltd,98275591,133.60,T&S UK - Public Transport
BEIS,UKRI - AHRC,06/09/2018,T&S UK - Public Transport,PSU Project Office,Corporate Travel Management (North) Ltd,98275591,96.40,T&S UK - Public Transport
BEIS,UKRI - AHRC,06/09/2018,T&S UK - Public Transport,PSU Project Office,Corporate Travel Management (North) Ltd,98275591,23.00,T&S UK - Public Transport
BEIS,UKRI - AHRC,06/09/2018,T&S UK - Public Transport,PSU Project Office,Corporate Travel Management (North) Ltd,98275591,100.70,T&S UK - Public Transport
BEIS,UKRI - AHRC,06/09/2018,T&S UK - Public Transport,PSU Project Office,Corporate Travel Management (North) Ltd,98275591,111.00,T&S UK - Public Transport
BEIS,UKRI - AHRC,06/09/2018,T&S UK - Public Transport,PSU Project Office,Corporate Travel Management (North) Ltd,98275591,78.40,T&S UK - Public Transport
BEIS,UKRI - AHRC,06/09/2018,T&S UK - Public Transport,PSU Project Office,Corporate Travel Management (North) Ltd,98275591,77.30,T&S UK - Public Transport
BEIS,UKRI - AHRC,06/09/2018,T&S UK - Public Transport,PSU Project Office,Corporate Travel Management (North) Ltd,98275591,46.80,T&S UK - Public Transport
BEIS,UKRI - AHRC,06/09/2018,T&S UK - Public Transport,PSU Project Office,Corporate Travel Management (North) Ltd,98275591,101.80,T&S UK - Public Transport
BEIS,UKRI - AHRC,06/09/2018,T&S UK - Accommodation,SMT,Corporate Travel Management (North) Ltd,98275591,0.50,T&S UK - Accommodation
BEIS,UKRI - AHRC,06/09/2018,T&S UK - Accommodation,SMT,Corporate Travel Management (North) Ltd,98275591,0.50,T&S UK - Accommodation
BEIS,UKRI - AHRC,06/09/2018,T&S UK - Accommodation,SMT,Corporate Travel Management (North) Ltd,98275591,65.00,T&S UK - Accommodation
BEIS,UKRI - AHRC,06/09/2018,T&S UK - Accommodation,SMT,Corporate Travel Management (North) Ltd,98275591,0.20,T&S UK - Accommodation
BEIS,UKRI - AHRC,06/09/2018,T&S UK - Public Transport,SMT,Corporate Travel Management (North) Ltd,98275591,105.00,T&S UK - Public Transport
BEIS,UKRI - AHRC,06/09/2018,T&S UK - Public Transport,SMT,Corporate Travel Management (North) Ltd,98275591,169.10,T&S UK - Public Transport
BEIS,UKRI - AHRC,06/09/2018,T&S UK - Public Transport,SMT,Corporate Travel Management (North) Ltd,98275591,2.00,T&S UK - Public Transport
BEIS,UKRI - AHRC,06/09/2018,T&S UK - Public Transport,SMT,Corporate Travel Management (North) Ltd,98275591,79.00,T&S UK - Public Transport
BEIS,UKRI - AHRC,06/09/2018,T&S UK - Public Transport,SMT,Corporate Travel Management (North) Ltd,98275591,27.90,T&S UK - Public Transport
BEIS,UKRI - AHRC,06/09/2018,T&S UK - Public Transport,SMT,Corporate Travel Management (North) Ltd,98275591,133.60,T&S UK - Public Transport
BEIS,UKRI - AHRC,06/09/2018,T&S UK - Public Transport,SMT,Corporate Travel Management (North) Ltd,98275591,5.00,T&S UK - Public Transport
BEIS,UKRI - AHRC,06/09/2018,T&S UK - Public Transport,SMT,Corporate Travel Management (North) Ltd,98275591,-61.80,T&S UK - Public Transport
BEIS,UKRI - AHRC,06/09/2018,T&S UK - Public Transport,SMT,Corporate Travel Management (North) Ltd,98275591,133.60,T&S UK - Public Transport
BEIS,UKRI - AHRC,06/09/2018,T&S UK - Public Transport,SMT,Corporate Travel Management (North) Ltd,98275591,1.00,T&S UK - Public Transport
BEIS,UKRI - AHRC,06/09/2018,T&S UK - Public Transport,SMT,Corporate Travel Management (North) Ltd,98275591,62.50,T&S UK - Public Transport
BEIS,UKRI - AHRC,06/09/2018,T&S UK - Public Transport,SMT,Corporate Travel Management (North) Ltd,98275591,50.00,T&S UK - Public Transport
BEIS,UKRI - AHRC,06/09/2018,T&S UK - Public Transport,SMT,Corporate Travel Management (North) Ltd,98275591,1.00,T&S UK - Public Transport
BEIS,UKRI - AHRC,06/09/2018,T&S UK - Public Transport,SMT,Corporate Travel Management (North) Ltd,98275591,62.50,T&S UK - Public Transport
BEIS,UKRI - AHRC,06/09/2018,T&S UK - Public Transport,SMT,Corporate Travel Management (North) Ltd,98275591,5.00,T&S UK - Public Transport
BEIS,UKRI - AHRC,06/09/2018,T&S UK - Public Transport,SMT,Corporate Travel Management (North) Ltd,98275591,-84.70,T&S UK - Public Transport
BEIS,UKRI - AHRC,06/09/2018,T&S UK - Public Transport,SMT,Corporate Travel Management (North) Ltd,98275591,68.70,T&S UK - Public Transport
BEIS,UKRI - AHRC,06/09/2018,T&S UK - Public Transport,SMT,Corporate Travel Management (North) Ltd,98275591,68.70,T&S UK - Public Transport
BEIS,UKRI - AHRC,06/09/2018,T&S UK - Public Transport,SMT,Corporate Travel Management (North) Ltd,98275591,19.90,T&S UK - Public Transport
BEIS,UKRI - AHRC,06/09/2018,T&S UK - Public Transport,SMT,Corporate Travel Management (North) Ltd,98275591,2.00,T&S UK - Public Transport
BEIS,UKRI - AHRC,06/09/2018,T&S UK - Public Transport,SMT,Corporate Travel Management (North) Ltd,98275591,24.40,T&S UK - Public Transport
BEIS,UKRI - AHRC,06/09/2018,T&S UK - Public Transport,SMT,Corporate Travel Management (North) Ltd,98275591,27.00,T&S UK - Public Transport
BEIS,UKRI - AHRC,06/09/2018,T&S UK - Public Transport,SMT,Corporate Travel Management (North) Ltd,98275591,68.70,T&S UK - Public Transport
BEIS,UKRI - AHRC,06/09/2018,T&S UK - Public Transport,SMT,Corporate Travel Management (North) Ltd,98275591,1.00,T&S UK - Public Transport
BEIS,UKRI - AHRC,06/09/2018,T&S UK - Public Transport,SMT,Corporate Travel Management (North) Ltd,98275591,153.40,T&S UK - Public Transport
BEIS,UKRI - AHRC,06/09/2018,T&S UK - Public Transport,SMT,Corporate Travel Management (North) Ltd,98275591,94.70,T&S UK - Public Transport
BEIS,UKRI - AHRC,06/09/2018,T&S UK - Public Transport,SMT,Corporate Travel Management (North) Ltd,98275591,1.00,T&S UK - Public Transport
BEIS,UKRI - AHRC,06/09/2018,T&S UK - Public Transport,SMT,Corporate Travel Management (North) Ltd,98275591,68.70,T&S UK - Public Transport
BEIS,UKRI - AHRC,06/09/2018,T&S UK - Public Transport,SMT,Corporate Travel Management (North) Ltd,98275591,1.00,T&S UK - Public Transport
BEIS,UKRI - AHRC,06/09/2018,T&S UK - Public Transport,SMT,Corporate Travel Management (North) Ltd,98275591,26.00,T&S UK - Public Transport
BEIS,UKRI - AHRC,06/09/2018,T&S UK - Public Transport,SMT,Corporate Travel Management (North) Ltd,98275591,68.70,T&S UK - Public Transport
BEIS,UKRI - AHRC,06/09/2018,T&S UK - Public Transport,SMT,Corporate Travel Management (North) Ltd,98275591,1.00,T&S UK - Public Transport
BEIS,UKRI - AHRC,06/09/2018,T&S UK - Public Transport,SMT,Corporate Travel Management (North) Ltd,98275591,27.90,T&S UK - Public Transport
BEIS,UKRI - AHRC,06/09/2018,T&S UK - Public Transport,SMT,Corporate Travel Management (North) Ltd,98275591,74.40,T&S UK - Public Transport
BEIS,UKRI - AHRC,06/09/2018,T&S UK - Public Transport,SMT,Corporate Travel Management (North) Ltd,98275591,68.70,T&S UK - Public Transport
BEIS,UKRI - AHRC,06/09/2018,T&S UK - Public Transport,SMT,Corporate Travel Management (North) Ltd,98275591,47.90,T&S UK - Public Transport
BEIS,UKRI - AHRC,06/09/2018,T&S UK - Public Transport,SMT,Corporate Travel Management (North) Ltd,98275591,10.00,T&S UK - Public Transport
BEIS,UKRI - AHRC,06/09/2018,T&S UK - Public Transport,SMT,Corporate Travel Management (North) Ltd,98275591,-58.70,T&S UK - Public Transport
BEIS,UKRI - AHRC,06/09/2018,T&S UK - Public Transport,SMT,Corporate Travel Management (North) Ltd,98275591,5.00,T&S UK - Public Transport
BEIS,UKRI - AHRC,06/09/2018,T&S UK - Public Transport,SMT,Corporate Travel Management (North) Ltd,98275591,-14.90,T&S UK - Public Transport
BEIS,UKRI - AHRC,06/09/2018,T&S UK - Public Transport,SMT,Corporate Travel Management (North) Ltd,98275591,68.70,T&S UK - Public Transport
BEIS,UKRI - AHRC,06/09/2018,T&S UK - Public Transport,SMT,Corporate Travel Management (North) Ltd,98275591,68.70,T&S UK - Public Transport
BEIS,UKRI - AHRC,06/09/2018,T&S UK - Public Transport,SMT,Corporate Travel Management (North) Ltd,98275591,17.00,T&S UK - Public Transport
BEIS,UKRI - AHRC,06/09/2018,T&S UK - Public Transport,SMT,Corporate Travel Management (North) Ltd,98275591,68.70,T&S UK - Public Transport
BEIS,UKRI - AHRC,06/09/2018,T&S UK - Public Transport,SMT,Corporate Travel Management (North) Ltd,98275591,1.00,T&S UK - Public Transport
BEIS,UKRI - AHRC,06/09/2018,T&S UK - Public Transport,SMT,Corporate Travel Management (North) Ltd,98275591,129.50,T&S UK - Public Transport
BEIS,UKRI - AHRC,06/09/2018,T&S UK - Public Transport,SMT,Corporate Travel Management (North) Ltd,98275591,34.60,T&S UK - Public Transport
BEIS,UKRI - AHRC,06/09/2018,T&S Overseas - Other Charges,T-AP,Corporate Travel Management (North) Ltd,98275591,178.00,T&S Overseas - Other Charges
BEIS,UKRI - AHRC,12/09/2018,Research Grant Expenditure,Global Challenges Research Fund (GCRF),Coventry University,98272818,-447.86,Research Grant Expenditure
BEIS,UKRI - AHRC,12/09/2018,Research Grant Expenditure,RCUK Newton Programme,Coventry University,98271563,10120.69,Research Grant Expenditure
BEIS,UKRI - AHRC,12/09/2018,Research Grant Expenditure,Global Challenges Research Fund (GCRF),De Montfort University,98273644,44050.82,Research Grant Expenditure
BEIS,UKRI - AHRC,12/09/2018,Research Grant Expenditure,JPI Cultural Heritage,De Montfort University,98273732,13222.05,Research Grant Expenditure
BEIS,UKRI - AHRC,12/09/2018,Research Grant Expenditure,Research Grants,De Montfort University,98272791,-5181.66,Research Grant Expenditure
BEIS,UKRI - AHRC,20/09/2018,Staff Training,Communications,Dods Parliamentary Communications Ltd,98293031,300.90,Staff Training
BEIS,UKRI - AHRC,18/09/2018,Research Grant Expenditure,Anti-microbial Resistance (AMR),Economic & Social Research Council,98287598,26563.44,Research Grant Expenditure
BEIS,UKRI - AHRC,18/09/2018,Research Grant Expenditure,Commissioned Research,Economic & Social Research Council,98228547,-4379.02,Research Grant Expenditure
BEIS,UKRI - AHRC,18/09/2018,Research Grant Expenditure,Commissioned Research,Economic & Social Research Council,98287599,27009.57,Research Grant Expenditure
BEIS,UKRI - AHRC,18/09/2018,Research Grant Expenditure,Cross Council Responsive Mode Awards,Economic & Social Research Council,98287430,41404.58,Research Grant Expenditure
BEIS,UKRI - AHRC,18/09/2018,Research Grant Expenditure,Cross Council Responsive Mode Awards,Economic & Social Research Council,98287455,29027.54,Research Grant Expenditure
BEIS,UKRI - AHRC,18/09/2018,Research Grant Expenditure,Cross Council Responsive Mode Awards,Economic & Social Research Council,98287596,12500.39,Research Grant Expenditure
BEIS,UKRI - AHRC,18/09/2018,Research Grant Expenditure,Cross Council Responsive Mode Awards,Economic & Social Research Council,98287602,14086.98,Research Grant Expenditure
BEIS,UKRI - AHRC,18/09/2018,Research Grant Expenditure,Digital Transformations,Economic & Social Research Council,98287494,6270.67,Research Grant Expenditure
BEIS,UKRI - AHRC,18/09/2018,Research Grant Expenditure,Digital Transformations,Economic & Social Research Council,98287497,8539.79,Research Grant Expenditure
BEIS,UKRI - AHRC,18/09/2018,Research Grant Expenditure,Digital Transformations,Economic & Social Research Council,98287504,7176.91,Research Grant Expenditure
BEIS,UKRI - AHRC,18/09/2018,Research Grant Expenditure,Digital Transformations,Economic & Social Research Council,98287508,5040.51,Research Grant Expenditure
BEIS,UKRI - AHRC,18/09/2018,Research Grant Expenditure,Digital Transformations,Economic & Social Research Council,98287515,11311.76,Research Grant Expenditure
BEIS,UKRI - AHRC,18/09/2018,Research Grant Expenditure,Digital Transformations,Economic & Social Research Council,98287520,5543.41,Research Grant Expenditure
BEIS,UKRI - AHRC,18/09/2018,Research Grant Expenditure,Digital Transformations,Economic & Social Research Council,98287523,11758.16,Research Grant Expenditure
BEIS,UKRI - AHRC,18/09/2018,Research Grant Expenditure,Global Challenges Research Fund (GCRF),Economic & Social Research Council,98287562,5662.88,Research Grant Expenditure
BEIS,UKRI - AHRC,18/09/2018,Research Grant Expenditure,Global Challenges Research Fund (GCRF),Economic & Social Research Council,98287572,17079.45,Research Grant Expenditure
BEIS,UKRI - AHRC,18/09/2018,Research Grant Expenditure,Global Challenges Research Fund (GCRF),Economic & Social Research Council,98287575,14283.92,Research Grant Expenditure
BEIS,UKRI - AHRC,18/09/2018,Research Grant Expenditure,Global Challenges Research Fund (GCRF),Economic & Social Research Council,98287587,7203.57,Research Grant Expenditure
BEIS,UKRI - AHRC,18/09/2018,Research Grant Expenditure,Global Uncertainties Programme,Economic & Social Research Council,98287450,1626.11,Research Grant Expenditure
BEIS,UKRI - AHRC,18/09/2018,Research Grant Expenditure,Global Uncertainties Programme,Economic & Social Research Council,98287454,4059.26,Research Grant Expenditure
BEIS,UKRI - AHRC,18/09/2018,Research Grant Expenditure,RCUK Global Challenges Research Fund (RCUK GCRF),Economic & Social Research Council,98287433,43591.80,Research Grant Expenditure
BEIS,UKRI - AHRC,18/09/2018,Research Grant Expenditure,RCUK Global Challenges Research Fund (RCUK GCRF),Economic & Social Research Council,98287439,38513.50,Research Grant Expenditure
BEIS,UKRI - AHRC,18/09/2018,Research Grant Expenditure,RCUK Global Challenges Research Fund (RCUK GCRF),Economic & Social Research Council,98287461,46196.00,Research Grant Expenditure
BEIS,UKRI - AHRC,18/09/2018,Research Grant Expenditure,RCUK Global Challenges Research Fund (RCUK GCRF),Economic & Social Research Council,98287604,36447.60,Research Grant Expenditure
BEIS,UKRI - AHRC,18/09/2018,Research Grant Expenditure,RCUK Global Challenges Research Fund (RCUK GCRF),Economic & Social Research Council,98287615,50717.30,Research Grant Expenditure
BEIS,UKRI - AHRC,18/09/2018,Research Grant Expenditure,RCUK Global Challenges Research Fund (RCUK GCRF),Economic & Social Research Council,98287621,21666.45,Research Grant Expenditure
BEIS,UKRI - AHRC,18/09/2018,Research Grant Expenditure,RCUK Global Challenges Research Fund (RCUK GCRF),Economic & Social Research Council,98287628,18743.85,Research Grant Expenditure
BEIS,UKRI - AHRC,18/09/2018,Research Grant Expenditure,RCUK Global Challenges Research Fund (RCUK GCRF),Economic & Social Research Council,98287637,21652.05,Research Grant Expenditure
BEIS,UKRI - AHRC,18/09/2018,Research Grant Expenditure,Urban Living,Economic & Social Research Council,98287468,3527.65,Research Grant Expenditure
BEIS,UKRI - AHRC,18/09/2018,Research Grant Expenditure,Urban Living,Economic & Social Research Council,98287472,2498.12,Research Grant Expenditure
BEIS,UKRI - AHRC,18/09/2018,Research Grant Expenditure,Urban Living,Economic & Social Research Council,98287475,3977.16,Research Grant Expenditure
BEIS,UKRI - AHRC,18/09/2018,Research Grant Expenditure,Urban Living,Economic & Social Research Council,98287480,7216.28,Research Grant Expenditure
BEIS,UKRI - AHRC,18/09/2018,Research Grant Expenditure,Urban Living,Economic & Social Research Council,98287484,7111.40,Research Grant Expenditure
BEIS,UKRI - AHRC,18/09/2018,Research Grant Expenditure,Urban Living,Economic & Social Research Council,98287488,5692.00,Research Grant Expenditure
BEIS,UKRI - AHRC,18/09/2018,Research Grant Expenditure,Urban Living,Economic & Social Research Council,98287492,3466.63,Research Grant Expenditure
BEIS,UKRI - AHRC,18/09/2018,Research Grant Expenditure,Urban Living,Economic & Social Research Council,98287526,6249.08,Research Grant Expenditure
BEIS,UKRI - AHRC,18/09/2018,Research Grant Expenditure,Urban Living,Economic & Social Research Council,98287541,3925.29,Research Grant Expenditure
BEIS,UKRI - AHRC,18/09/2018,Research Grant Expenditure,Urban Living,Economic & Social Research Council,98287576,3921.89,Research Grant Expenditure
BEIS,UKRI - AHRC,18/09/2018,Research Grant Expenditure,Urban Living,Economic & Social Research Council,98287580,4001.04,Research Grant Expenditure
BEIS,UKRI - AHRC,18/09/2018,Research Grant Expenditure,Urban Living,Economic & Social Research Council,98287584,4685.53,Research Grant Expenditure
BEIS,UKRI - AHRC,18/09/2018,Research Grant Expenditure,Urban Living,Economic & Social Research Council,98287586,6672.15,Research Grant Expenditure
BEIS,UKRI - AHRC,18/09/2018,Research Grant Expenditure,Urban Living,Economic & Social Research Council,98287588,9050.15,Research Grant Expenditure
BEIS,UKRI - AHRC,18/09/2018,Research Grant Expenditure,Urban Living,Economic & Social Research Council,98287592,3743.85,Research Grant Expenditure
BEIS,UKRI - AHRC,17/09/2018,Nursery Deductions,Balance Sheet,EDENRED (UK GROUP) LTD,98287926,4541.52,Nursery Deductions
BEIS,UKRI - AHRC,18/09/2018,Other Staff Benefits,Corporate Services,EDENRED (UK GROUP) LTD,98287922,9.80,Other Staff Benefits
BEIS,UKRI - AHRC,12/09/2018,UK - Professional Memberships & Subscriptions,SMT,Edinburgh International Television Festival Ltd,98281914,18000.00,UK - Professional Memberships & Subscriptions
BEIS,UKRI - AHRC,12/09/2018,Research Grant Expenditure,Creative Economy,Edinburgh Napier University,98273716,0.10,Research Grant Expenditure
BEIS,UKRI - AHRC,12/09/2018,Research Grant Expenditure,Creative Economy,Edinburgh Napier University,98273716,0.10,Research Grant Expenditure
BEIS,UKRI - AHRC,18/09/2018,Research Grant Expenditure,Digital Economy,Engineering & Physical Sciences Research Council,98287964,13971.40,Research Grant Expenditure
BEIS,UKRI - AHRC,18/09/2018,Research Grant Expenditure,Digital Economy,Engineering & Physical Sciences Research Council,98287966,25597.49,Research Grant Expenditure
BEIS,UKRI - AHRC,18/09/2018,Research Grant Expenditure,Digital Economy,Engineering & Physical Sciences Research Council,98287967,6203.54,Research Grant Expenditure
BEIS,UKRI - AHRC,18/09/2018,Research Grant Expenditure,Digital Economy,Engineering & Physical Sciences Research Council,98287968,21065.71,Research Grant Expenditure
BEIS,UKRI - AHRC,18/09/2018,Research Grant Expenditure,Digital Economy,Engineering & Physical Sciences Research Council,98287969,25475.50,Research Grant Expenditure
BEIS,UKRI - AHRC,18/09/2018,Research Grant Expenditure,Digital Economy,Engineering & Physical Sciences Research Council,98287970,10485.34,Research Grant Expenditure
BEIS,UKRI - AHRC,18/09/2018,Research Grant Expenditure,Digital Economy,Engineering & Physical Sciences Research Council,98287971,17478.91,Research Grant Expenditure
BEIS,UKRI - AHRC,18/09/2018,Research Grant Expenditure,Digital Economy,Engineering & Physical Sciences Research Council,98287973,35640.76,Research Grant Expenditure
BEIS,UKRI - AHRC,18/09/2018,Research Grant Expenditure,NPIF Research Talent (RCUK Innovation Fellowships),Engineering & Physical Sciences Research Council,98285384,7316.25,Research Grant Expenditure
BEIS,UKRI - AHRC,18/09/2018,Research Grant Expenditure,NPIF Research Talent (RCUK Innovation Fellowships),Engineering & Physical Sciences Research Council,98285487,13825.97,Research Grant Expenditure
BEIS,UKRI - AHRC,18/09/2018,Research Grant Expenditure,NPIF Research Talent (RCUK Innovation Fellowships),Engineering & Physical Sciences Research Council,98285499,17430.44,Research Grant Expenditure
BEIS,UKRI - AHRC,18/09/2018,Research Grant Expenditure,NPIF Research Talent (RCUK Innovation Fellowships),Engineering & Physical Sciences Research Council,98285503,7006.61,Research Grant Expenditure
BEIS,UKRI - AHRC,11/09/2018,Other Programme Costs,RCUK Other,Engineering & Physical Sciences Research Council,98273613,232758.16,Other Programme Costs
BEIS,UKRI - AHRC,18/09/2018,Research Grant Expenditure,Urban Living,Engineering & Physical Sciences Research Council,98288998,1811.85,Research Grant Expenditure
BEIS,UKRI - AHRC,18/09/2018,Research Grant Expenditure,Urban Living,Engineering & Physical Sciences Research Council,98289049,1975.05,Research Grant Expenditure
BEIS,UKRI - AHRC,18/09/2018,Research Grant Expenditure,Urban Living,Engineering & Physical Sciences Research Council,98289101,1988.19,Research Grant Expenditure
BEIS,UKRI - AHRC,12/09/2018,Legal & Professional Services,HR,unspecified,98281962,1068.00,Legal & Professional Services
BEIS,UKRI - AHRC,12/09/2018,Legal & Professional Services,SMT,unspecified,98286322,10751.57,Legal & Professional Services
BEIS,UKRI - AHRC,20/09/2018,Advertising & Promotion,Communications,Gerard Silverstone t/a Geri Silverstone Communications Consultants,98292043,2100.00,Advertising & Promotion
BEIS,UKRI - AHRC,28/09/2018,Advertising & Promotion,Communications,Gerard Silverstone t/a Geri Silverstone Communications Consultants,98297630,2100.00,Advertising & Promotion
BEIS,UKRI - AHRC,12/09/2018,Research Grant Expenditure,Anti-microbial Resistance (AMR),Glasgow School of Art,98273617,33540.54,Research Grant Expenditure
BEIS,UKRI - AHRC,12/09/2018,Research Grant Expenditure,Anti-microbial Resistance (AMR),Glasgow School of Art,98273619,29928.19,Research Grant Expenditure
BEIS,UKRI - AHRC,12/09/2018,Research Grant Expenditure,Anti-microbial Resistance (AMR),Glasgow School of Art,98273624,25796.23,Research Grant Expenditure
BEIS,UKRI - AHRC,12/09/2018,Research Grant Expenditure,Networks & Workshops,Glasgow School of Art,98272885,-24850.30,Research Grant Expenditure
BEIS,UKRI - AHRC,12/09/2018,Research Grant Expenditure,RCUK Global Challenges Research Fund (RCUK GCRF),Goldsmiths College University of London,98273664,201112.00,Research Grant Expenditure
BEIS,UKRI - AHRC,12/09/2018,Research Grant Expenditure,Research Grants,Goldsmiths College University of London,98273675,62117.71,Research Grant Expenditure
BEIS,UKRI - AHRC,12/09/2018,Research Grant Expenditure,Research Grants,Goldsmiths College University of London,98273675,62117.71,Research Grant Expenditure
BEIS,UKRI - AHRC,12/09/2018,Research Grant Expenditure,Research Grants,Guildhall School of Music & Drama,98271473,17610.68,Research Grant Expenditure
BEIS,UKRI - AHRC,07/09/2018,Agency Staff,Finance,Hays Specialist Recruitment Ltd,98270428,2672.76,Agency Staff
BEIS,UKRI - AHRC,07/09/2018,Agency Staff,Finance,Hays Specialist Recruitment Ltd,98274531,2672.76,Agency Staff
BEIS,UKRI - AHRC,19/09/2018,Agency Staff,Finance,Hays Specialist Recruitment Ltd,98292509,2672.76,Agency Staff
BEIS,UKRI - AHRC,03/09/2018,Contract Staff,Finance,Hays Specialist Recruitment Ltd,98267982,1816.50,Contract Staff
BEIS,UKRI - AHRC,05/09/2018,Contract Staff,Finance,Hays Specialist Recruitment Ltd,98274052,626.50,Contract Staff
BEIS,UKRI - AHRC,06/09/2018,Contract Staff,Finance,Hays Specialist Recruitment Ltd,98274533,1816.50,Contract Staff
BEIS,UKRI - AHRC,25/09/2018,Contract Staff,Finance,Hays Specialist Recruitment Ltd,98294617,1566.24,Contract Staff
BEIS,UKRI - AHRC,03/09/2018,Recruitment Costs,Finance,Hays Specialist Recruitment Ltd,98261175,1634.86,Recruitment Costs
BEIS,UKRI - AHRC,03/09/2018,Recruitment Costs,Finance,Hays Specialist Recruitment Ltd,98267967,1816.50,Recruitment Costs
BEIS,UKRI - AHRC,06/09/2018,Recruitment Costs,Finance,Hays Specialist Recruitment Ltd,98274530,1453.20,Recruitment Costs
BEIS,UKRI - AHRC,18/09/2018,Recruitment Costs,Finance,Hays Specialist Recruitment Ltd,98289588,1816.50,Recruitment Costs
BEIS,UKRI - AHRC,10/09/2018,Agency Staff,PSU Project Office,Hays Specialist Recruitment Ltd,98281069,673.58,Agency Staff
BEIS,UKRI - AHRC,14/09/2018,Agency Staff,PSU Project Office,Hays Specialist Recruitment Ltd,98287651,830.75,Agency Staff
BEIS,UKRI - AHRC,21/09/2018,Agency Staff,PSU Project Office,Hays Specialist Recruitment Ltd,98294618,830.75,Agency Staff
BEIS,UKRI - AHRC,28/09/2018,Agency Staff,PSU Project Office,Hays Specialist Recruitment Ltd,98296931,830.75,Agency Staff
BEIS,UKRI - AHRC,26/09/2018,Contract Staff,PSU Project Office,Hays Specialist Recruitment Ltd,98286233,2422.22,Contract Staff
BEIS,UKRI - AHRC,26/09/2018,Contract Staff,PSU Project Office,Hays Specialist Recruitment Ltd,98289586,3027.78,Contract Staff
BEIS,UKRI - AHRC,27/09/2018,Staff Training,Corporate Services,Hemsley Fraser Training Group Ltd,98298058,1839.60,Staff Training
BEIS,UKRI - AHRC,12/09/2018,Research Grant Expenditure,Research Grants,Historic Environment Scotland (GRANT),98271491,35494.52,Research Grant Expenditure
BEIS,UKRI - AHRC,12/09/2018,Research Grant Expenditure,Networks & Workshops,Historic Royal Palaces,98273746,9027.57,Research Grant Expenditure
BEIS,UKRI - AHRC,12/09/2018,Fellowships,Research Fellowships,Historic Royal Palaces,98271221,19491.16,Fellowships
BEIS,UKRI - AHRC,12/09/2018,Fellowships,Research Fellowships,Historic Royal Palaces,98271254,28596.15,Fellowships
BEIS,UKRI - AHRC,27/09/2018,Advertising & Promotion,Communications,Hit Networks Ltd,98294478,11400.00,Advertising & Promotion
BEIS,UKRI - AHRC,12/09/2018,NI Payable Salaries,Balance Sheet,HM Revenue & Customs,98281556,89615.21,NI Payable Salaries
BEIS,UKRI - AHRC,12/09/2018,PAYE Payable Salaries,Balance Sheet,HM Revenue & Customs,98281557,61435.03,PAYE Payable Salaries
BEIS,UKRI - AHRC,12/09/2018,Student Loans,Balance Sheet,HM Revenue & Customs,98281558,3551.00,Student Loans
BEIS,UKRI - AHRC,12/09/2018,Apprenticeship Levy,Corporate Services,HM Revenue & Customs,98281559,2383.00,Apprenticeship Levy
BEIS,UKRI - AHRC,12/09/2018,Research Grant Expenditure,Global Challenges Research Fund (GCRF),Institute of Development Studies,98271506,53182.76,Research Grant Expenditure
BEIS,UKRI - AHRC,06/09/2018,Contract Staff,IS,JC Web Services Ltd,98273577,10800.00,Contract Staff
BEIS,UKRI - AHRC,12/09/2018,Research Grant Expenditure,Global Challenges Research Fund (GCRF),Keele University,98273645,42742.71,Research Grant Expenditure
BEIS,UKRI - AHRC,12/09/2018,Fellowships,Research Fellowships,Keele University,98271223,31156.60,Fellowships
BEIS,UKRI - AHRC,12/09/2018,Research Grant Expenditure,Research Grants,Keele University,98273631,61185.74,Research Grant Expenditure
BEIS,UKRI - AHRC,12/09/2018,Research Grant Expenditure,Follow-on Fund,King's College London,98273721,19263.07,Research Grant Expenditure
BEIS,UKRI - AHRC,12/09/2018,Research Grant Expenditure,Global Challenges Research Fund (GCRF),King's College London,98271520,85034.45,Research Grant Expenditure
BEIS,UKRI - AHRC,12/09/2018,Research Grant Expenditure,Networks & Workshops,King's College London,98273725,6047.11,Research Grant Expenditure
BEIS,UKRI - AHRC,12/09/2018,Research Grant Expenditure,Networks & Workshops,King's College London,98273725,6047.11,Research Grant Expenditure
BEIS,UKRI - AHRC,12/09/2018,Research Grant Expenditure,Open World Research Initiative (OWRI).,King's College London,98271478,194277.13,Research Grant Expenditure
BEIS,UKRI - AHRC,12/09/2018,Fellowships,Research Fellowships,King's College London,98271218,25394.75,Fellowships
BEIS,UKRI - AHRC,12/09/2018,Fellowships,Research Fellowships,King's College London,98271249,26847.06,Fellowships
BEIS,UKRI - AHRC,12/09/2018,Research Grant Expenditure,Research Grants,King's College London,98271601,67200.79,Research Grant Expenditure
BEIS,UKRI - AHRC,12/09/2018,Fellowships,Research Fellowships,Kingston University,98271211,14354.40,Fellowships
BEIS,UKRI - AHRC,12/09/2018,Research Grant Expenditure,Anti-microbial Resistance (AMR),Lancaster University,98273638,27116.02,Research Grant Expenditure
BEIS,UKRI - AHRC,12/09/2018,Research Grant Expenditure,Care for the Future,Lancaster University,98273727,4992.27,Research Grant Expenditure
BEIS,UKRI - AHRC,12/09/2018,Research Grant Expenditure,Design: Strategic Initiatives,Lancaster University,98271562,57375.07,Research Grant Expenditure
BEIS,UKRI - AHRC,12/09/2018,Research Grant Expenditure,Networks & Workshops,Lancaster University,98271600,5063.53,Research Grant Expenditure
BEIS,UKRI - AHRC,12/09/2018,Research Grant Expenditure,Networks & Workshops,Lancaster University,98273708,5138.37,Research Grant Expenditure
BEIS,UKRI - AHRC,12/09/2018,Research Grant Expenditure,RCUK Newton Programme,Lancaster University,98271452,4997.86,Research Grant Expenditure
BEIS,UKRI - AHRC,12/09/2018,Research Grant Expenditure,RCUK Newton Programme,Lancaster University,98271565,9473.63,Research Grant Expenditure
BEIS,UKRI - AHRC,12/09/2018,Research Grant Expenditure,Research Grants,Lancaster University,98271462,67036.93,Research Grant Expenditure
BEIS,UKRI - AHRC,12/09/2018,Research Grant Expenditure,Research Grants,Lancaster University,98271489,39965.20,Research Grant Expenditure
BEIS,UKRI - AHRC,12/09/2018,Research Grant Expenditure,Research Grants,Lancaster University,98271592,61822.44,Research Grant Expenditure
BEIS,UKRI - AHRC,12/09/2018,Research Grant Expenditure,Research Grants,Leeds Beckett University,98271448,28789.00,Research Grant Expenditure
BEIS,UKRI - AHRC,12/09/2018,Fellowships,Research Fellowships,Liverpool John Moores University,98271234,19125.85,Fellowships
BEIS,UKRI - AHRC,12/09/2018,Research Grant Expenditure,Global Challenges Research Fund (GCRF),London School of Economics and Political Science,98271508,58242.12,Research Grant Expenditure
BEIS,UKRI - AHRC,12/09/2018,Research Grant Expenditure,Research Grants,London School of Economics and Political Science,98273689,68392.56,Research Grant Expenditure
BEIS,UKRI - AHRC,12/09/2018,Research Grant Expenditure,Research Grants,London School of Economics and Political Science,98273689,68392.56,Research Grant Expenditure
BEIS,UKRI - AHRC,12/09/2018,Research Grant Expenditure,Global Challenges Research Fund (GCRF),London School of Hygiene & Tropical Medicine,98273652,43274.16,Research Grant Expenditure
BEIS,UKRI - AHRC,12/09/2018,Research Grant Expenditure,Networks & Workshops,Loughborough University,98271598,4326.69,Research Grant Expenditure
BEIS,UKRI - AHRC,12/09/2018,Research Grant Expenditure,Research Grants,Loughborough University,98271488,47203.53,Research Grant Expenditure
BEIS,UKRI - AHRC,12/09/2018,Research Grant Expenditure,Networks & Workshops,Manchester Metropolitan University,98271537,5510.86,Research Grant Expenditure
BEIS,UKRI - AHRC,12/09/2018,Research Grant Expenditure,Networks & Workshops,Manchester Metropolitan University,98273669,4832.91,Research Grant Expenditure
BEIS,UKRI - AHRC,12/09/2018,Research Grant Expenditure,Research Grants,Manchester Metropolitan University,98271571,58747.98,Research Grant Expenditure
BEIS,UKRI - AHRC,12/09/2018,Research Grant Expenditure,Research Grants,Manchester Metropolitan University,98273696,25642.28,Research Grant Expenditure
BEIS,UKRI - AHRC,04/09/2018,External Audit Fees,Corporate Services,National Audit Office,98271379,45000.00,External Audit Fees
BEIS,UKRI - AHRC,12/09/2018,Research Grant Expenditure,Networks & Workshops,National Museums of Scotland,98273739,5601.26,Research Grant Expenditure
BEIS,UKRI - AHRC,12/09/2018,Research Grant Expenditure,Research Grants,National Museums of Scotland,98271554,32523.87,Research Grant Expenditure
BEIS,UKRI - AHRC,11/09/2018,Research Grant Expenditure,Living with Environmental Change Programme,Natural Environment Research Council,98266241,186666.00,Research Grant Expenditure
BEIS,UKRI - AHRC,11/09/2018,Research Grant Expenditure,Living with Environmental Change Programme,Natural Environment Research Council,98266259,186666.00,Research Grant Expenditure
BEIS,UKRI - AHRC,11/09/2018,Research Grant Expenditure,Living with Environmental Change Programme,Natural Environment Research Council,98267157,-186666.00,Research Grant Expenditure
BEIS,UKRI - AHRC,18/09/2018,Research Grant Expenditure,RCUK Global Challenges Research Fund (RCUK GCRF),Natural Environment Research Council,98288438,15936.75,Research Grant Expenditure
BEIS,UKRI - AHRC,13/09/2018,Research Grant Expenditure,JPI Cultural Heritage,NERC - British Geological Survey,98272803,15768.36,Research Grant Expenditure
BEIS,UKRI - AHRC,11/09/2018,Legal & Professional Services,HR,New College Swindon,98284159,1500.00,Legal & Professional Services
BEIS,UKRI - AHRC,19/09/2018,Legal & Professional Services,HR,New College Swindon,98292464,1500.00,Legal & Professional Services
BEIS,UKRI - AHRC,19/09/2018,Legal & Professional Services,HR,New College Swindon,98292482,1850.00,Legal & Professional Services
BEIS,UKRI - AHRC,11/09/2018,Non-staff travel and subsistance,Communications,Non Employee Expenses Supplier,98283965,7.65,Non-staff travel and subsistance
BEIS,UKRI - AHRC,24/09/2018,Non-staff travel and subsistance,Communications,Non Employee Expenses Supplier,98294979,47.90,Non-staff travel and subsistance
BEIS,UKRI - AHRC,24/09/2018,Fees (Including College Members),Creative Arts & Digital Humanities,Non Employee Expenses Supplier,98294981,1000.00,Fees (Including College Members)
BEIS,UKRI - AHRC,24/09/2018,Non-staff travel and subsistance,"Histories,Culture & Heritage",Non Employee Expenses Supplier,98294980,119.10,Non-staff travel and subsistance
BEIS,UKRI - AHRC,11/09/2018,Non-staff travel and subsistance,Industrial Strategy Challenge Fund (ISCF) - Creative Clusters,Non Employee Expenses Supplier,98283964,1465.50,Non-staff travel and subsistance
BEIS,UKRI - AHRC,24/09/2018,Non-staff travel and subsistance,Industrial Strategy Challenge Fund (ISCF) - Creative Clusters,Non Employee Expenses Supplier,98294982,23.60,Non-staff travel and subsistance
BEIS,UKRI - AHRC,11/09/2018,Non-staff travel and subsistance,"Languages,Literature & International Engagement",Non Employee Expenses Supplier,98283963,119.08,Non-staff travel and subsistance
BEIS,UKRI - AHRC,24/09/2018,Non-staff travel and subsistance,"Languages,Literature & International Engagement",Non Employee Expenses Supplier,98294985,105.70,Non-staff travel and subsistance
BEIS,UKRI - AHRC,24/09/2018,Non-staff travel and subsistance,"Languages,Literature & International Engagement",Non Employee Expenses Supplier,98294987,68.30,Non-staff travel and subsistance
BEIS,UKRI - AHRC,24/09/2018,Non-staff travel and subsistance,Newton Programme,Non Employee Expenses Supplier,98294976,174.73,Non-staff travel and subsistance
BEIS,UKRI - AHRC,24/09/2018,Non-staff travel and subsistance,Newton Programme,Non Employee Expenses Supplier,98294977,575.32,Non-staff travel and subsistance
BEIS,UKRI - AHRC,24/09/2018,Non-staff travel and subsistance,Newton Programme,Non Employee Expenses Supplier,98294978,803.31,Non-staff travel and subsistance
BEIS,UKRI - AHRC,24/09/2018,Non-staff travel and subsistance,Newton Programme,Non Employee Expenses Supplier,98294984,990.27,Non-staff travel and subsistance
BEIS,UKRI - AHRC,24/09/2018,Non-staff travel and subsistance,SMT,Non Employee Expenses Supplier,98294983,54.60,Non-staff travel and subsistance
BEIS,UKRI - AHRC,24/09/2018,Non-staff travel and subsistance,SMT,Non Employee Expenses Supplier,98294986,54.89,Non-staff travel and subsistance
BEIS,UKRI - AHRC,12/09/2018,Research Grant Expenditure,Networks & Workshops,Northumbria University,98272835,3492.28,Research Grant Expenditure
BEIS,UKRI - AHRC,12/09/2018,Research Grant Expenditure,Networks & Workshops,Northumbria University,98273709,4221.12,Research Grant Expenditure
BEIS,UKRI - AHRC,12/09/2018,Fellowships,Research Fellowships,Northumbria University,98271232,17284.77,Fellowships
BEIS,UKRI - AHRC,12/09/2018,Fellowships,Research Fellowships,Northumbria University,98271246,18647.83,Fellowships
BEIS,UKRI - AHRC,12/09/2018,Research Grant Expenditure,Networks & Workshops,Nottingham Trent University,98272847,26845.05,Research Grant Expenditure
BEIS,UKRI - AHRC,12/09/2018,Fellowships,Research Fellowships,Nottingham Trent University,98271247,23426.31,Fellowships
BEIS,UKRI - AHRC,03/09/2018,Catering Contracts,HR,Officedrop Ltd,98269555,144.00,Catering Contracts
BEIS,UKRI - AHRC,28/09/2018,Catering Contracts,HR,Officedrop Ltd,98296178,192.00,Catering Contracts
BEIS,UKRI - AHRC,28/09/2018,Catering Contracts,HR,Officedrop Ltd,98296187,144.00,Catering Contracts
BEIS,UKRI - AHRC,13/09/2018,Recruitment Costs,Corporate Services,Onefix Recruitment Ltd,98285839,166.50,Recruitment Costs
BEIS,UKRI - AHRC,14/09/2018,Recruitment Costs,Corporate Services,Onefix Recruitment Ltd,98287187,111.00,Recruitment Costs
BEIS,UKRI - AHRC,27/09/2018,Recruitment Costs,Corporate Services,Onefix Recruitment Ltd,98297719,261.00,Recruitment Costs
BEIS,UKRI - AHRC,12/09/2018,Research Grant Expenditure,Follow-on Fund,Oxford Brookes University,98272840,-5303.78,Research Grant Expenditure
BEIS,UKRI - AHRC,12/09/2018,Research Grant Expenditure,Research Grants,Oxford Brookes University,98273690,61274.29,Research Grant Expenditure
BEIS,UKRI - AHRC,13/09/2018,Union Deductions,Balance Sheet,PCS Union,98281565,191.43,Union Deductions
BEIS,UKRI - AHRC,12/09/2018,Research Grant Expenditure,Creative Economy,Queen Mary University of London,98273714,20143.53,Research Grant Expenditure
BEIS,UKRI - AHRC,12/09/2018,Research Grant Expenditure,Follow-on Fund,Queen Mary University of London,98272844,20923.18,Research Grant Expenditure
BEIS,UKRI - AHRC,12/09/2018,Research Grant Expenditure,Networks & Workshops,Queen Mary University of London,98273710,6048.55,Research Grant Expenditure
BEIS,UKRI - AHRC,12/09/2018,Research Grant Expenditure,Research Grants,Queen Mary University of London,98271543,50555.65,Research Grant Expenditure
BEIS,UKRI - AHRC,12/09/2018,Research Grant Expenditure,Research Grants,Queen Mary University of London,98271594,16801.21,Research Grant Expenditure
BEIS,UKRI - AHRC,12/09/2018,Research Grant Expenditure,Care for the Future,Queen's University Belfast GRANT,98271517,53576.86,Research Grant Expenditure
BEIS,UKRI - AHRC,12/09/2018,Research Grant Expenditure,Connected Communities Programme,Queen's University Belfast GRANT,98271517,53576.77,Research Grant Expenditure
BEIS,UKRI - AHRC,12/09/2018,Research Grant Expenditure,Creative Economy,Queen's University Belfast GRANT,98273719,22461.33,Research Grant Expenditure
BEIS,UKRI - AHRC,12/09/2018,Research Grant Expenditure,Global Uncertainties Programme,Queen's University Belfast GRANT,98271509,40618.59,Research Grant Expenditure
BEIS,UKRI - AHRC,12/09/2018,Research Grant Expenditure,Open World Research Initiative (OWRI).,Queen's University Belfast GRANT,98271567,93477.09,Research Grant Expenditure
BEIS,UKRI - AHRC,12/09/2018,Fellowships,Research Fellowships,Queen's University Belfast GRANT,98271250,23502.71,Fellowships
BEIS,UKRI - AHRC,12/09/2018,Research Grant Expenditure,Research Grants,Queen's University Belfast GRANT,98271420,40387.32,Research Grant Expenditure
BEIS,UKRI - AHRC,12/09/2018,Research Grant Expenditure,Research Grants,Queen's University Belfast GRANT,98271484,59471.97,Research Grant Expenditure
BEIS,UKRI - AHRC,12/09/2018,Research Grant Expenditure,Research Grants,Queen's University Belfast GRANT,98271523,50608.22,Research Grant Expenditure
BEIS,UKRI - AHRC,12/09/2018,Research Grant Expenditure,Research Grants,Queen's University Belfast GRANT,98271551,54159.99,Research Grant Expenditure
BEIS,UKRI - AHRC,12/09/2018,Research Grant Expenditure,Research Grants,Queen's University Belfast GRANT,98271574,46008.08,Research Grant Expenditure
BEIS,UKRI - AHRC,12/09/2018,Research Grant Expenditure,Research Grants,Roehampton University (University of Roehampton),98272806,21925.61,Research Grant Expenditure
BEIS,UKRI - AHRC,12/09/2018,Research Grant Expenditure,NPIF Research Talent (RCUK Innovation Fellowships),Royal College of Art,98273706,30676.48,Research Grant Expenditure
BEIS,UKRI - AHRC,12/09/2018,Research Grant Expenditure,NPIF Research Talent (RCUK Innovation Fellowships),Royal College of Art,98273706,30676.48,Research Grant Expenditure
BEIS,UKRI - AHRC,12/09/2018,Research Grant Expenditure,Networks & Workshops,Royal College of Music,98271564,5933.43,Research Grant Expenditure
BEIS,UKRI - AHRC,12/09/2018,Research Grant Expenditure,Research Grants,Royal College of Music,98271570,55791.69,Research Grant Expenditure
BEIS,UKRI - AHRC,12/09/2018,Research Grant Expenditure,Creative Economy,"Royal Holloway, University of London",98271579,74128.08,Research Grant Expenditure
BEIS,UKRI - AHRC,12/09/2018,Fellowships,Research Fellowships,"Royal Holloway, University of London",98271230,27171.65,Fellowships
BEIS,UKRI - AHRC,12/09/2018,Fellowships,Research Fellowships,"Royal Holloway, University of London",98271261,14416.80,Fellowships
BEIS,UKRI - AHRC,12/09/2018,Research Grant Expenditure,Research Grants,"Royal Holloway, University of London",98271475,19992.44,Research Grant Expenditure
BEIS,UKRI - AHRC,12/09/2018,Research Grant Expenditure,Research Grants,"Royal Holloway, University of London",98271493,73404.96,Research Grant Expenditure
BEIS,UKRI - AHRC,21/09/2018,Printing & Stationery,PSU Project Office,RS Components,98294195,25.44,Printing & Stationery
BEIS,UKRI - AHRC,04/09/2018,Contract Staff,Corporate Services,Science & Technology Facilities Council,98123727,6666.48,Contract Staff
BEIS,UKRI - AHRC,04/09/2018,Contract Staff,Corporate Services,Science & Technology Facilities Council,98123746,25079.75,Contract Staff
BEIS,UKRI - AHRC,04/09/2018,Contract Staff,Corporate Services,Science & Technology Facilities Council,98130971,-6666.48,Contract Staff
BEIS,UKRI - AHRC,04/09/2018,Contract Staff,Corporate Services,Science & Technology Facilities Council,98130974,-25079.75,Contract Staff
BEIS,UKRI - AHRC,04/09/2018,Secondments,PSU Project Office,Science & Technology Facilities Council,98272257,7313.10,Secondments
BEIS,UKRI - AHRC,12/09/2018,Research Grant Expenditure,Networks & Workshops,Sheffield Hallam University,98273748,5110.66,Research Grant Expenditure
BEIS,UKRI - AHRC,12/09/2018,Research Grant Expenditure,Networks & Workshops,Sheffield Hallam University,98273748,5110.66,Research Grant Expenditure
BEIS,UKRI - AHRC,12/09/2018,Research Grant Expenditure,Global Challenges Research Fund (GCRF),"SOAS, University of London",98273655,152346.31,Research Grant Expenditure
BEIS,UKRI - AHRC,12/09/2018,Research Grant Expenditure,Global Challenges Research Fund (GCRF),"SOAS, University of London",98273659,42649.27,Research Grant Expenditure
BEIS,UKRI - AHRC,12/09/2018,Fellowships,Research Fellowships,"SOAS, University of London",98271240,23422.19,Fellowships
BEIS,UKRI - AHRC,12/09/2018,Research Grant Expenditure,Research Grants,"SOAS, University of London",98271494,29729.29,Research Grant Expenditure
BEIS,UKRI - AHRC,12/09/2018,Research Grant Expenditure,Research Grants,"SOAS, University of London",98271525,48033.85,Research Grant Expenditure
BEIS,UKRI - AHRC,12/09/2018,Research Grant Expenditure,Research Grants,"SOAS, University of London",98271533,69234.47,Research Grant Expenditure
BEIS,UKRI - AHRC,12/09/2018,Research Grant Expenditure,Research Grants,"SOAS, University of London",98271605,65737.44,Research Grant Expenditure
BEIS,UKRI - AHRC,20/09/2018,Advertising & Promotion,Communications,Sophie Toumazis T/A TPR Media Consultants,98293009,990.00,Advertising & Promotion
BEIS,UKRI - AHRC,12/09/2018,Research Grant Expenditure,Research Grants,Swansea University,98271424,26688.34,Research Grant Expenditure
BEIS,UKRI - AHRC,24/09/2018,Voluntary Deductions,Balance Sheet,Swindon Office Sports and Social Club,98281564,100.00,Voluntary Deductions
BEIS,UKRI - AHRC,12/09/2018,Research Grant Expenditure,JPI Cultural Heritage,Tate Galleries,98272799,8565.21,Research Grant Expenditure
BEIS,UKRI - AHRC,12/09/2018,Research Grant Expenditure,Global Challenges Research Fund (GCRF),The Open University,98273660,15377.24,Research Grant Expenditure
BEIS,UKRI - AHRC,12/09/2018,Research Grant Expenditure,Global Challenges Research Fund (GCRF),The Open University,98273682,14498.33,Research Grant Expenditure
BEIS,UKRI - AHRC,12/09/2018,Research Grant Expenditure,JPI Cultural Heritage,The Open University,98273735,13150.67,Research Grant Expenditure
BEIS,UKRI - AHRC,12/09/2018,Research Grant Expenditure,Research Grants,The Open University,98271426,58670.82,Research Grant Expenditure
BEIS,UKRI - AHRC,12/09/2018,Research Grant Expenditure,Research Grants,The Open University,98271476,66261.97,Research Grant Expenditure
BEIS,UKRI - AHRC,12/09/2018,Research Grant Expenditure,Research Grants,The Open University,98271499,48993.65,Research Grant Expenditure
BEIS,UKRI - AHRC,12/09/2018,Research Grant Expenditure,Research Grants,The Open University,98273628,36695.53,Research Grant Expenditure
BEIS,UKRI - AHRC,12/09/2018,Research Grant Expenditure,Follow-on Fund,The University of Manchester,98272830,10960.68,Research Grant Expenditure
BEIS,UKRI - AHRC,12/09/2018,Research Grant Expenditure,Global Challenges Research Fund (GCRF),The University of Manchester,98273646,41644.59,Research Grant Expenditure
BEIS,UKRI - AHRC,12/09/2018,Research Grant Expenditure,Global Challenges Research Fund (GCRF),The University of Manchester,98273656,47235.45,Research Grant Expenditure
BEIS,UKRI - AHRC,12/09/2018,Research Grant Expenditure,NPIF Research Talent (RCUK Innovation Fellowships),The University of Manchester,98273701,64800.00,Research Grant Expenditure
BEIS,UKRI - AHRC,12/09/2018,Research Grant Expenditure,Open World Research Initiative (OWRI).,The University of Manchester,98271479,210891.34,Research Grant Expenditure
BEIS,UKRI - AHRC,12/09/2018,Fellowships,Research Fellowships,The University of Manchester,98271231,39190.31,Fellowships
BEIS,UKRI - AHRC,12/09/2018,Fellowships,Research Fellowships,The University of Manchester,98271244,21609.63,Fellowships
BEIS,UKRI - AHRC,12/09/2018,Fellowships,Research Fellowships,The University of Manchester,98271256,18859.09,Fellowships
BEIS,UKRI - AHRC,12/09/2018,Fellowships,Research Fellowships,The University of Manchester,98271257,23966.16,Fellowships
BEIS,UKRI - AHRC,12/09/2018,Research Grant Expenditure,Research Grants,The University of Manchester,98271433,45155.39,Research Grant Expenditure
BEIS,UKRI - AHRC,12/09/2018,Research Grant Expenditure,Research Grants,The University of Manchester,98271443,55274.95,Research Grant Expenditure
BEIS,UKRI - AHRC,12/09/2018,Research Grant Expenditure,Research Grants,The University of Manchester,98271468,66667.81,Research Grant Expenditure
BEIS,UKRI - AHRC,12/09/2018,Research Grant Expenditure,Research Grants,The University of Manchester,98271546,59968.35,Research Grant Expenditure
BEIS,UKRI - AHRC,12/09/2018,Research Grant Expenditure,Research Grants,The University of Manchester,98271607,30832.62,Research Grant Expenditure
BEIS,UKRI - AHRC,12/09/2018,Research Grant Expenditure,Research Grants,The University of Manchester,98272784,25614.07,Research Grant Expenditure
BEIS,UKRI - AHRC,12/09/2018,Research Grant Expenditure,Research Grants,The University of Manchester,98273733,56814.89,Research Grant Expenditure
BEIS,UKRI - AHRC,12/09/2018,Research Grant Expenditure,Research Grants,The University of Manchester,98273734,57920.36,Research Grant Expenditure
BEIS,UKRI - AHRC,18/09/2018,Recruitment Costs,HR,UK Shared Business Services Ltd,98288968,32.43,Recruitment Costs
BEIS,UKRI - AHRC,12/09/2018,Research Grant Expenditure,Networks & Workshops,University College Chester,98271503,3636.48,Research Grant Expenditure
BEIS,UKRI - AHRC,12/09/2018,Research Grant Expenditure,Networks & Workshops,University College Chester,98273639,3095.52,Research Grant Expenditure
BEIS,UKRI - AHRC,12/09/2018,Research Grant Expenditure,Anti-microbial Resistance (AMR),University College London,98273618,33587.37,Research Grant Expenditure
BEIS,UKRI - AHRC,12/09/2018,Research Grant Expenditure,Anti-microbial Resistance (AMR),University College London,98273622,41874.04,Research Grant Expenditure
BEIS,UKRI - AHRC,12/09/2018,Research Grant Expenditure,Care for the Future,University College London,98271425,101592.85,Research Grant Expenditure
BEIS,UKRI - AHRC,12/09/2018,Research Grant Expenditure,Global Challenges Research Fund (GCRF),University College London,98271510,40648.61,Research Grant Expenditure
BEIS,UKRI - AHRC,12/09/2018,Research Grant Expenditure,Global Challenges Research Fund (GCRF),University College London,98273653,114409.88,Research Grant Expenditure
BEIS,UKRI - AHRC,12/09/2018,Fellowships,Research Fellowships,University College London,98271222,22720.46,Fellowships
BEIS,UKRI - AHRC,12/09/2018,Research Grant Expenditure,Research Grants,University College London,98271441,30313.57,Research Grant Expenditure
BEIS,UKRI - AHRC,12/09/2018,Research Grant Expenditure,Research Grants,University College London,98271447,44640.28,Research Grant Expenditure
BEIS,UKRI - AHRC,12/09/2018,Research Grant Expenditure,Research Grants,University College London,98271514,41678.63,Research Grant Expenditure
BEIS,UKRI - AHRC,12/09/2018,Research Grant Expenditure,Research Grants,University College London,98271602,32457.57,Research Grant Expenditure
BEIS,UKRI - AHRC,12/09/2018,Research Grant Expenditure,Research Grants,University College London,98273674,62196.03,Research Grant Expenditure
BEIS,UKRI - AHRC,12/09/2018,Research Grant Expenditure,Research Grants,University College London,98273676,33825.56,Research Grant Expenditure
BEIS,UKRI - AHRC,12/09/2018,Research Grant Expenditure,Research Grants,University College London,98273681,29782.92,Research Grant Expenditure
BEIS,UKRI - AHRC,12/09/2018,Research Grant Expenditure,Science and Heritage Programme,University College London,98271542,86164.03,Research Grant Expenditure
BEIS,UKRI - AHRC,12/09/2018,Research Grant Expenditure,Follow-on Fund,University of Aberdeen,98272842,-5549.63,Research Grant Expenditure
BEIS,UKRI - AHRC,12/09/2018,Research Grant Expenditure,Networks & Workshops,University of Aberdeen,98273745,26771.77,Research Grant Expenditure
BEIS,UKRI - AHRC,12/09/2018,Fellowships,Research Fellowships,University of Aberdeen,98271233,17842.46,Fellowships
BEIS,UKRI - AHRC,12/09/2018,Research Grant Expenditure,Global Challenges Research Fund (GCRF),University of Bath,98272821,-45.49,Research Grant Expenditure
BEIS,UKRI - AHRC,12/09/2018,Research Grant Expenditure,Global Uncertainties Programme,University of Bath,98271434,12644.40,Research Grant Expenditure
BEIS,UKRI - AHRC,12/09/2018,Research Grant Expenditure,Care for the Future,University of Birmingham GRANT,98271519,27596.07,Research Grant Expenditure
BEIS,UKRI - AHRC,12/09/2018,Research Grant Expenditure,Care for the Future,University of Birmingham GRANT,98272790,13045.66,Research Grant Expenditure
BEIS,UKRI - AHRC,12/09/2018,Research Grant Expenditure,Connected Communities Programme,University of Birmingham GRANT,98271519,27595.97,Research Grant Expenditure
BEIS,UKRI - AHRC,12/09/2018,Research Grant Expenditure,Connected Communities Programme,University of Birmingham GRANT,98272790,13045.64,Research Grant Expenditure
BEIS,UKRI - AHRC,12/09/2018,Research Grant Expenditure,Creative Economy,University of Birmingham GRANT,98273712,21057.12,Research Grant Expenditure
BEIS,UKRI - AHRC,12/09/2018,Research Grant Expenditure,Creative Economy,University of Birmingham GRANT,98273712,19670.78,Research Grant Expenditure
BEIS,UKRI - AHRC,12/09/2018,Research Grant Expenditure,Follow-on Fund,University of Birmingham GRANT,98273752,80641.52,Research Grant Expenditure
BEIS,UKRI - AHRC,12/09/2018,Research Grant Expenditure,Global Challenges Research Fund (GCRF),University of Birmingham GRANT,98272822,-5242.27,Research Grant Expenditure
BEIS,UKRI - AHRC,12/09/2018,Research Grant Expenditure,Global Challenges Research Fund (GCRF),University of Birmingham GRANT,98273662,7712.50,Research Grant Expenditure
BEIS,UKRI - AHRC,12/09/2018,Research Grant Expenditure,Networks & Workshops,University of Birmingham GRANT,98271596,3472.27,Research Grant Expenditure
BEIS,UKRI - AHRC,12/09/2018,Research Grant Expenditure,Networks & Workshops,University of Birmingham GRANT,98273742,3831.74,Research Grant Expenditure
BEIS,UKRI - AHRC,12/09/2018,Fellowships,Research Fellowships,University of Birmingham GRANT,98271236,22508.96,Fellowships
BEIS,UKRI - AHRC,12/09/2018,Research Grant Expenditure,Research Grants,University of Birmingham GRANT,98271423,28201.53,Research Grant Expenditure
BEIS,UKRI - AHRC,12/09/2018,Research Grant Expenditure,Research Grants,University of Birmingham GRANT,98271487,51791.39,Research Grant Expenditure
BEIS,UKRI - AHRC,12/09/2018,Research Grant Expenditure,Research Grants,University of Birmingham GRANT,98271492,37135.75,Research Grant Expenditure
BEIS,UKRI - AHRC,12/09/2018,Research Grant Expenditure,Research Grants,University of Birmingham GRANT,98271524,31143.65,Research Grant Expenditure
BEIS,UKRI - AHRC,12/09/2018,Research Grant Expenditure,Research Grants,University of Birmingham GRANT,98271530,40170.11,Research Grant Expenditure
BEIS,UKRI - AHRC,12/09/2018,Research Grant Expenditure,Research Grants,University of Birmingham GRANT,98271591,23833.73,Research Grant Expenditure
BEIS,UKRI - AHRC,12/09/2018,Research Grant Expenditure,Research Grants,University of Birmingham GRANT,98272795,63285.94,Research Grant Expenditure
BEIS,UKRI - AHRC,12/09/2018,Research Grant Expenditure,Research Grants,University of Birmingham GRANT,98273636,39908.31,Research Grant Expenditure
BEIS,UKRI - AHRC,12/09/2018,Research Grant Expenditure,Translating Cultures,University of Birmingham GRANT,98272788,-27429.03,Research Grant Expenditure
BEIS,UKRI - AHRC,12/09/2018,Research Grant Expenditure,Follow-on Fund,University of Bradford,98273686,19972.09,Research Grant Expenditure
BEIS,UKRI - AHRC,12/09/2018,Research Grant Expenditure,Research Grants,University of Bradford,98271612,10075.40,Research Grant Expenditure
BEIS,UKRI - AHRC,12/09/2018,Research Grant Expenditure,Connected Communities Programme,University of Bristol GRANT,98271453,66119.66,Research Grant Expenditure
BEIS,UKRI - AHRC,12/09/2018,Research Grant Expenditure,RCUK Newton Programme,University of Bristol GRANT,98273749,40297.88,Research Grant Expenditure
BEIS,UKRI - AHRC,12/09/2018,Fellowships,Research Fellowships,University of Bristol GRANT,98271217,33298.26,Fellowships
BEIS,UKRI - AHRC,12/09/2018,Fellowships,Research Fellowships,University of Bristol GRANT,98271243,29320.80,Fellowships
BEIS,UKRI - AHRC,12/09/2018,Research Grant Expenditure,Research Grants,University of Bristol GRANT,98271495,63908.51,Research Grant Expenditure
BEIS,UKRI - AHRC,12/09/2018,Research Grant Expenditure,Research Grants,University of Bristol GRANT,98271500,64043.51,Research Grant Expenditure
BEIS,UKRI - AHRC,12/09/2018,Research Grant Expenditure,Anti-microbial Resistance (AMR),University of Cambridge,98273620,29842.74,Research Grant Expenditure
BEIS,UKRI - AHRC,12/09/2018,Research Grant Expenditure,Global Challenges Research Fund (GCRF),University of Cambridge,98272829,-391.41,Research Grant Expenditure
BEIS,UKRI - AHRC,12/09/2018,Research Grant Expenditure,Global Challenges Research Fund (GCRF),University of Cambridge,98273663,45944.40,Research Grant Expenditure
BEIS,UKRI - AHRC,12/09/2018,Research Grant Expenditure,Global Challenges Research Fund (GCRF),University of Cambridge,98273666,6047.05,Research Grant Expenditure
BEIS,UKRI - AHRC,12/09/2018,Research Grant Expenditure,Networks & Workshops,University of Cambridge,98272814,740.94,Research Grant Expenditure
BEIS,UKRI - AHRC,12/09/2018,Research Grant Expenditure,Open World Research Initiative (OWRI).,University of Cambridge,98271481,227647.23,Research Grant Expenditure
BEIS,UKRI - AHRC,12/09/2018,Research Grant Expenditure,Research Grants,University of Cambridge,98271417,37185.38,Research Grant Expenditure
BEIS,UKRI - AHRC,12/09/2018,Research Grant Expenditure,Research Grants,University of Cambridge,98271428,51903.77,Research Grant Expenditure
BEIS,UKRI - AHRC,12/09/2018,Research Grant Expenditure,Research Grants,University of Cambridge,98271435,55918.57,Research Grant Expenditure
BEIS,UKRI - AHRC,12/09/2018,Research Grant Expenditure,Research Grants,University of Cambridge,98271446,28581.88,Research Grant Expenditure
BEIS,UKRI - AHRC,12/09/2018,Research Grant Expenditure,Research Grants,University of Cambridge,98271457,55563.63,Research Grant Expenditure
BEIS,UKRI - AHRC,12/09/2018,Research Grant Expenditure,Research Grants,University of Cambridge,98271511,36358.12,Research Grant Expenditure
BEIS,UKRI - AHRC,12/09/2018,Research Grant Expenditure,Research Grants,University of Cambridge,98271534,61576.11,Research Grant Expenditure
BEIS,UKRI - AHRC,12/09/2018,Research Grant Expenditure,Research Grants,University of Cambridge,98271535,24402.38,Research Grant Expenditure
BEIS,UKRI - AHRC,12/09/2018,Research Grant Expenditure,Research Grants,University of Cambridge,98271550,52226.80,Research Grant Expenditure
BEIS,UKRI - AHRC,12/09/2018,Research Grant Expenditure,Research Grants,University of Cambridge,98272785,-9155.47,Research Grant Expenditure
BEIS,UKRI - AHRC,12/09/2018,Research Grant Expenditure,Research Grants,University of Cambridge,98272794,22955.36,Research Grant Expenditure
BEIS,UKRI - AHRC,12/09/2018,Research Grant Expenditure,Research Grants,University of Dundee,98273705,24034.58,Research Grant Expenditure
BEIS,UKRI - AHRC,12/09/2018,Research Grant Expenditure,Networks & Workshops,University of Durham,98273738,8850.61,Research Grant Expenditure
BEIS,UKRI - AHRC,12/09/2018,Research Grant Expenditure,Networks & Workshops,University of Durham,98273738,8850.61,Research Grant Expenditure
BEIS,UKRI - AHRC,12/09/2018,Fellowships,Research Fellowships,University of Durham,98271241,28856.92,Fellowships
BEIS,UKRI - AHRC,12/09/2018,Research Grant Expenditure,Research Grants,University of Durham,98271445,49212.40,Research Grant Expenditure
BEIS,UKRI - AHRC,12/09/2018,Research Grant Expenditure,Research Grants,University of Durham,98271477,16218.95,Research Grant Expenditure
BEIS,UKRI - AHRC,12/09/2018,Research Grant Expenditure,Research Grants,University of Durham,98271477,16218.95,Research Grant Expenditure
BEIS,UKRI - AHRC,12/09/2018,Research Grant Expenditure,Research Grants,University of Durham,98271477,16218.95,Research Grant Expenditure
BEIS,UKRI - AHRC,12/09/2018,Research Grant Expenditure,Research Grants,University of Durham,98271477,16088.64,Research Grant Expenditure
BEIS,UKRI - AHRC,12/09/2018,Research Grant Expenditure,Research Grants,University of Durham,98271477,16218.95,Research Grant Expenditure
BEIS,UKRI - AHRC,12/09/2018,Research Grant Expenditure,Research Grants,University of Durham,98271486,58971.05,Research Grant Expenditure
BEIS,UKRI - AHRC,12/09/2018,Research Grant Expenditure,Research Grants,University of Durham,98271531,58788.57,Research Grant Expenditure
BEIS,UKRI - AHRC,12/09/2018,Research Grant Expenditure,Research Grants,University of Durham,98272793,-4605.57,Research Grant Expenditure
BEIS,UKRI - AHRC,12/09/2018,Research Grant Expenditure,Research Grants,University of Durham,98273671,34522.40,Research Grant Expenditure
BEIS,UKRI - AHRC,12/09/2018,Research Grant Expenditure,Research Grants,University of Durham,98273677,63718.08,Research Grant Expenditure
BEIS,UKRI - AHRC,12/09/2018,Research Grant Expenditure,Global Challenges Research Fund (GCRF),University of East Anglia,98272828,-1993.30,Research Grant Expenditure
BEIS,UKRI - AHRC,12/09/2018,Research Grant Expenditure,Networks & Workshops,University of East Anglia,98272815,3890.27,Research Grant Expenditure
BEIS,UKRI - AHRC,12/09/2018,Fellowships,Research Fellowships,University of East Anglia,98271220,33728.40,Fellowships
BEIS,UKRI - AHRC,12/09/2018,Research Grant Expenditure,Research Grants,University of East Anglia,98271513,46409.57,Research Grant Expenditure
BEIS,UKRI - AHRC,12/09/2018,Research Grant Expenditure,Research Grants,University of East Anglia,98271538,26920.46,Research Grant Expenditure
BEIS,UKRI - AHRC,12/09/2018,Research Grant Expenditure,Research Grants,University of East Anglia,98271560,25375.19,Research Grant Expenditure
BEIS,UKRI - AHRC,12/09/2018,Research Grant Expenditure,Research Grants,University of East Anglia,98273680,32579.89,Research Grant Expenditure
BEIS,UKRI - AHRC,12/09/2018,Research Grant Expenditure,Follow-on Fund,University of Edinburgh,98272816,-660.00,Research Grant Expenditure
BEIS,UKRI - AHRC,12/09/2018,Research Grant Expenditure,Networks & Workshops,University of Edinburgh,98271544,5259.22,Research Grant Expenditure
BEIS,UKRI - AHRC,12/09/2018,Research Grant Expenditure,Newton Programme,University of Edinburgh,98272811,-23.44,Research Grant Expenditure
BEIS,UKRI - AHRC,12/09/2018,Fellowships,Research Fellowships,University of Edinburgh,98271237,17137.47,Fellowships
BEIS,UKRI - AHRC,12/09/2018,Research Grant Expenditure,Research Grants,University of Edinburgh,98271611,8607.91,Research Grant Expenditure
BEIS,UKRI - AHRC,12/09/2018,Research Grant Expenditure,Research Grants,University of Edinburgh,98272789,-0.02,Research Grant Expenditure
BEIS,UKRI - AHRC,12/09/2018,Research Grant Expenditure,Care for the Future,University of Essex,98273688,11413.30,Research Grant Expenditure
BEIS,UKRI - AHRC,12/09/2018,Research Grant Expenditure,Connected Communities Programme,University of Essex,98273688,11413.26,Research Grant Expenditure
BEIS,UKRI - AHRC,12/09/2018,Fellowships,Research Fellowships,University of Essex,98271253,32184.94,Fellowships
BEIS,UKRI - AHRC,12/09/2018,Research Grant Expenditure,Research Grants,University of Essex,98272807,24935.30,Research Grant Expenditure
BEIS,UKRI - AHRC,12/09/2018,Research Grant Expenditure,Anti-microbial Resistance (AMR),University of Exeter,98271616,22085.88,Research Grant Expenditure
BEIS,UKRI - AHRC,12/09/2018,Research Grant Expenditure,Care for the Future,University of Exeter,98273707,89185.54,Research Grant Expenditure
BEIS,UKRI - AHRC,12/09/2018,Research Grant Expenditure,Creative Economy,University of Exeter,98273720,25915.84,Research Grant Expenditure
BEIS,UKRI - AHRC,12/09/2018,Research Grant Expenditure,Follow-on Fund,University of Exeter,98273642,20158.49,Research Grant Expenditure
BEIS,UKRI - AHRC,12/09/2018,Research Grant Expenditure,Follow-on Fund,University of Exeter,98273698,21037.85,Research Grant Expenditure
BEIS,UKRI - AHRC,12/09/2018,Research Grant Expenditure,JPI Cultural Heritage,University of Exeter,98272801,7968.62,Research Grant Expenditure
BEIS,UKRI - AHRC,12/09/2018,Research Grant Expenditure,Networks & Workshops,University of Exeter,98271582,4674.82,Research Grant Expenditure
BEIS,UKRI - AHRC,12/09/2018,Fellowships,Research Fellowships,University of Exeter,98271235,22501.27,Fellowships
BEIS,UKRI - AHRC,12/09/2018,Research Grant Expenditure,Research Grants,University of Exeter,98271449,33326.62,Research Grant Expenditure
BEIS,UKRI - AHRC,12/09/2018,Research Grant Expenditure,Research Grants,University of Exeter,98271467,42002.93,Research Grant Expenditure
BEIS,UKRI - AHRC,12/09/2018,Research Grant Expenditure,Research Grants,University of Exeter,98271569,25605.32,Research Grant Expenditure
BEIS,UKRI - AHRC,12/09/2018,Research Grant Expenditure,Research Grants,University of Exeter,98271572,53383.92,Research Grant Expenditure
BEIS,UKRI - AHRC,12/09/2018,Research Grant Expenditure,Research Grants,University of Exeter,98271576,24175.70,Research Grant Expenditure
BEIS,UKRI - AHRC,12/09/2018,Research Grant Expenditure,Research Grants,University of Exeter,98273627,58041.83,Research Grant Expenditure
BEIS,UKRI - AHRC,12/09/2018,Research Grant Expenditure,Research Grants,University of Exeter,98273743,81585.13,Research Grant Expenditure
BEIS,UKRI - AHRC,12/09/2018,Research Grant Expenditure,Creative Economy,University of Glasgow,98273715,20161.48,Research Grant Expenditure
BEIS,UKRI - AHRC,12/09/2018,Research Grant Expenditure,Creative Economy,University of Glasgow,98273715,20161.48,Research Grant Expenditure
BEIS,UKRI - AHRC,12/09/2018,Research Grant Expenditure,Creative Economy,University of Glasgow,98273750,46135.13,Research Grant Expenditure
BEIS,UKRI - AHRC,12/09/2018,Research Grant Expenditure,Global Challenges Research Fund (GCRF),University of Glasgow,98272848,-73391.38,Research Grant Expenditure
BEIS,UKRI - AHRC,12/09/2018,Research Grant Expenditure,Global Challenges Research Fund (GCRF),University of Glasgow,98273711,7838.14,Research Grant Expenditure
BEIS,UKRI - AHRC,12/09/2018,Research Grant Expenditure,Networks & Workshops,University of Glasgow,98273722,4579.97,Research Grant Expenditure
BEIS,UKRI - AHRC,12/09/2018,Research Grant Expenditure,Networks & Workshops,University of Glasgow,98273722,4579.97,Research Grant Expenditure
BEIS,UKRI - AHRC,12/09/2018,Research Grant Expenditure,Networks & Workshops,University of Glasgow,98273747,4885.26,Research Grant Expenditure
BEIS,UKRI - AHRC,12/09/2018,Research Grant Expenditure,NPIF Research Talent (RCUK Innovation Fellowships),University of Glasgow,98273702,16200.00,Research Grant Expenditure
BEIS,UKRI - AHRC,12/09/2018,Research Grant Expenditure,NPIF Research Talent (RCUK Innovation Fellowships),University of Glasgow,98273702,16200.00,Research Grant Expenditure
BEIS,UKRI - AHRC,12/09/2018,Fellowships,Research Fellowships,University of Glasgow,98271219,22236.40,Fellowships
BEIS,UKRI - AHRC,12/09/2018,Fellowships,Research Fellowships,University of Glasgow,98271228,20930.73,Fellowships
BEIS,UKRI - AHRC,12/09/2018,Fellowships,Research Fellowships,University of Glasgow,98271252,21955.29,Fellowships
BEIS,UKRI - AHRC,12/09/2018,Research Grant Expenditure,Research Grants,University of Glasgow,98271430,44777.27,Research Grant Expenditure
BEIS,UKRI - AHRC,12/09/2018,Research Grant Expenditure,Research Grants,University of Glasgow,98271436,55443.21,Research Grant Expenditure
BEIS,UKRI - AHRC,12/09/2018,Research Grant Expenditure,Research Grants,University of Glasgow,98271461,31414.95,Research Grant Expenditure
BEIS,UKRI - AHRC,12/09/2018,Research Grant Expenditure,Research Grants,University of Glasgow,98271528,40416.75,Research Grant Expenditure
BEIS,UKRI - AHRC,12/09/2018,Research Grant Expenditure,Research Grants,University of Glasgow,98271573,42809.28,Research Grant Expenditure
BEIS,UKRI - AHRC,12/09/2018,Research Grant Expenditure,Research Grants,University of Glasgow,98273635,42748.04,Research Grant Expenditure
BEIS,UKRI - AHRC,12/09/2018,Research Grant Expenditure,Research Grants,University of Glasgow,98273693,56065.49,Research Grant Expenditure
BEIS,UKRI - AHRC,12/09/2018,Research Grant Expenditure,Translating Cultures,University of Glasgow,98272786,4911.82,Research Grant Expenditure
BEIS,UKRI - AHRC,12/09/2018,Research Grant Expenditure,Care for the Future,University of Hertfordshire,98271518,64906.73,Research Grant Expenditure
BEIS,UKRI - AHRC,12/09/2018,Research Grant Expenditure,Connected Communities Programme,University of Hertfordshire,98271518,64906.68,Research Grant Expenditure
BEIS,UKRI - AHRC,12/09/2018,Research Grant Expenditure,Follow-on Fund,University of Huddersfield,98273697,20127.50,Research Grant Expenditure
BEIS,UKRI - AHRC,12/09/2018,Research Grant Expenditure,RCUK Global Challenges Research Fund (RCUK GCRF),University of Huddersfield,98273665,283711.00,Research Grant Expenditure
BEIS,UKRI - AHRC,12/09/2018,Research Grant Expenditure,Research Grants,University of Hull,98271466,16802.88,Research Grant Expenditure
BEIS,UKRI - AHRC,12/09/2018,Research Grant Expenditure,Research Grants,University of Hull,98271608,30614.65,Research Grant Expenditure
BEIS,UKRI - AHRC,12/09/2018,Research Grant Expenditure,Care for the Future,University of Kent,98271516,36305.80,Research Grant Expenditure
BEIS,UKRI - AHRC,12/09/2018,Research Grant Expenditure,Connected Communities Programme,University of Kent,98271516,36305.74,Research Grant Expenditure
BEIS,UKRI - AHRC,12/09/2018,Research Grant Expenditure,Networks & Workshops,University of Kent,98271613,4467.25,Research Grant Expenditure
BEIS,UKRI - AHRC,12/09/2018,Fellowships,Research Fellowships,University of Kent,98271251,31628.95,Fellowships
BEIS,UKRI - AHRC,12/09/2018,Research Grant Expenditure,Research Grants,University of Kent,98271515,26645.19,Research Grant Expenditure
BEIS,UKRI - AHRC,12/09/2018,Research Grant Expenditure,Research Grants,University of Kent,98271548,66907.24,Research Grant Expenditure
BEIS,UKRI - AHRC,12/09/2018,Research Grant Expenditure,Research Grants,University of Kent,98271590,38310.54,Research Grant Expenditure
BEIS,UKRI - AHRC,12/09/2018,Research Grant Expenditure,Anti-microbial Resistance (AMR),University of Leeds,98273623,25536.52,Research Grant Expenditure
BEIS,UKRI - AHRC,12/09/2018,Research Grant Expenditure,Follow-on Fund,University of Leeds,98272817,19507.11,Research Grant Expenditure
BEIS,UKRI - AHRC,12/09/2018,Research Grant Expenditure,Global Challenges Research Fund (GCRF),University of Leeds,98272825,18449.79,Research Grant Expenditure
BEIS,UKRI - AHRC,12/09/2018,Research Grant Expenditure,Global Challenges Research Fund (GCRF),University of Leeds,98272826,26807.88,Research Grant Expenditure
BEIS,UKRI - AHRC,12/09/2018,Research Grant Expenditure,Global Challenges Research Fund (GCRF),University of Leeds,98273647,43647.57,Research Grant Expenditure
BEIS,UKRI - AHRC,12/09/2018,Research Grant Expenditure,Global Challenges Research Fund (GCRF),University of Leeds,98273648,46278.12,Research Grant Expenditure
BEIS,UKRI - AHRC,12/09/2018,Research Grant Expenditure,Global Challenges Research Fund (GCRF),University of Leeds,98273650,117166.01,Research Grant Expenditure
BEIS,UKRI - AHRC,12/09/2018,Research Grant Expenditure,Global Challenges Research Fund (GCRF),University of Leeds,98273667,15569.56,Research Grant Expenditure
BEIS,UKRI - AHRC,12/09/2018,Research Grant Expenditure,Networks & Workshops,University of Leeds,98271539,3546.37,Research Grant Expenditure
BEIS,UKRI - AHRC,12/09/2018,Research Grant Expenditure,Networks & Workshops,University of Leeds,98271583,4506.89,Research Grant Expenditure
BEIS,UKRI - AHRC,12/09/2018,Research Grant Expenditure,Networks & Workshops,University of Leeds,98271584,4948.07,Research Grant Expenditure
BEIS,UKRI - AHRC,12/09/2018,Research Grant Expenditure,Networks & Workshops,University of Leeds,98272804,2965.17,Research Grant Expenditure
BEIS,UKRI - AHRC,12/09/2018,Fellowships,Research Fellowships,University of Leeds,98271213,26232.22,Fellowships
BEIS,UKRI - AHRC,12/09/2018,Research Grant Expenditure,Research Grants,University of Leeds,98271438,35778.75,Research Grant Expenditure
BEIS,UKRI - AHRC,12/09/2018,Research Grant Expenditure,Research Grants,University of Leeds,98271527,72396.78,Research Grant Expenditure
BEIS,UKRI - AHRC,12/09/2018,Research Grant Expenditure,Research Grants,University of Leeds,98271557,23791.27,Research Grant Expenditure
BEIS,UKRI - AHRC,12/09/2018,Research Grant Expenditure,Research Grants,University of Leeds,98271595,62804.67,Research Grant Expenditure
BEIS,UKRI - AHRC,12/09/2018,Research Grant Expenditure,Research Grants,University of Leeds,98272792,-4432.27,Research Grant Expenditure
BEIS,UKRI - AHRC,12/09/2018,Research Grant Expenditure,Research Grants,University of Leeds,98272812,19522.51,Research Grant Expenditure
BEIS,UKRI - AHRC,12/09/2018,Research Grant Expenditure,Research Grants,University of Leeds,98273630,42942.68,Research Grant Expenditure
BEIS,UKRI - AHRC,12/09/2018,Research Grant Expenditure,Global Challenges Research Fund (GCRF),University of Leicester,98272827,20157.63,Research Grant Expenditure
BEIS,UKRI - AHRC,12/09/2018,Research Grant Expenditure,Research Grants,University of Leicester,98271553,50772.37,Research Grant Expenditure
BEIS,UKRI - AHRC,12/09/2018,Research Grant Expenditure,Research Grants,University of Leicester,98271603,38897.32,Research Grant Expenditure
BEIS,UKRI - AHRC,12/09/2018,Research Grant Expenditure,Research Grants,University of Leicester,98273673,67835.63,Research Grant Expenditure
BEIS,UKRI - AHRC,12/09/2018,Research Grant Expenditure,Networks & Workshops,University of Lincoln,98273741,6624.10,Research Grant Expenditure
BEIS,UKRI - AHRC,12/09/2018,Research Grant Expenditure,Networks & Workshops,University of Lincoln,98273741,6624.10,Research Grant Expenditure
BEIS,UKRI - AHRC,12/09/2018,Research Grant Expenditure,Research Grants,University of Lincoln,98271444,52645.17,Research Grant Expenditure
BEIS,UKRI - AHRC,12/09/2018,Research Grant Expenditure,Commissioned Research,University of Liverpool,98272846,69201.52,Research Grant Expenditure
BEIS,UKRI - AHRC,12/09/2018,Research Grant Expenditure,Digital Transformations,University of Liverpool,98272787,-12539.78,Research Grant Expenditure
BEIS,UKRI - AHRC,12/09/2018,Research Grant Expenditure,Global Challenges Research Fund (GCRF),University of Liverpool,98273643,39413.35,Research Grant Expenditure
BEIS,UKRI - AHRC,12/09/2018,Research Grant Expenditure,Global Challenges Research Fund (GCRF),University of Liverpool,98273654,113443.79,Research Grant Expenditure
BEIS,UKRI - AHRC,12/09/2018,Research Grant Expenditure,Networks & Workshops,University of Liverpool,98271536,6184.25,Research Grant Expenditure
BEIS,UKRI - AHRC,12/09/2018,Research Grant Expenditure,Newton Programme,University of Liverpool,98273729,23355.34,Research Grant Expenditure
BEIS,UKRI - AHRC,12/09/2018,Fellowships,Research Fellowships,University of Liverpool,98271226,27096.66,Fellowships
BEIS,UKRI - AHRC,12/09/2018,Fellowships,Research Fellowships,University of Liverpool,98271226,18561.19,Fellowships
BEIS,UKRI - AHRC,12/09/2018,Research Grant Expenditure,Research Grants,University of Liverpool,98271522,49114.19,Research Grant Expenditure
BEIS,UKRI - AHRC,12/09/2018,Research Grant Expenditure,Research Grants,University of Liverpool,98273626,47206.29,Research Grant Expenditure
BEIS,UKRI - AHRC,12/09/2018,Research Grant Expenditure,Networks & Workshops,University of London,98271588,6287.04,Research Grant Expenditure
BEIS,UKRI - AHRC,12/09/2018,Research Grant Expenditure,Science in Culture,University of London,98271454,59039.12,Research Grant Expenditure
BEIS,UKRI - AHRC,12/09/2018,Research Grant Expenditure,Creative Economy,University of Newcastle Upon Tyne,98273718,34025.37,Research Grant Expenditure
BEIS,UKRI - AHRC,12/09/2018,Research Grant Expenditure,Follow-on Fund,University of Newcastle Upon Tyne,98271587,20134.02,Research Grant Expenditure
BEIS,UKRI - AHRC,12/09/2018,Research Grant Expenditure,JPI Cultural Heritage,University of Newcastle Upon Tyne,98272802,17275.74,Research Grant Expenditure
BEIS,UKRI - AHRC,12/09/2018,Research Grant Expenditure,Networks & Workshops,University of Newcastle Upon Tyne,98271597,4522.67,Research Grant Expenditure
BEIS,UKRI - AHRC,12/09/2018,Research Grant Expenditure,NPIF Research Talent (RCUK Innovation Fellowships),University of Newcastle Upon Tyne,98273703,64723.20,Research Grant Expenditure
BEIS,UKRI - AHRC,12/09/2018,Research Grant Expenditure,RCUK Newton Programme,University of Newcastle Upon Tyne,98271504,34990.97,Research Grant Expenditure
BEIS,UKRI - AHRC,12/09/2018,Research Grant Expenditure,RCUK Newton Programme,University of Newcastle Upon Tyne,98271505,26519.73,Research Grant Expenditure
BEIS,UKRI - AHRC,12/09/2018,Research Grant Expenditure,Research Grants,University of Newcastle Upon Tyne,98271437,44012.17,Research Grant Expenditure
BEIS,UKRI - AHRC,12/09/2018,Research Grant Expenditure,Research Grants,University of Newcastle Upon Tyne,98271483,52499.95,Research Grant Expenditure
BEIS,UKRI - AHRC,12/09/2018,Research Grant Expenditure,Research Grants,University of Newcastle Upon Tyne,98271532,46410.72,Research Grant Expenditure
BEIS,UKRI - AHRC,12/09/2018,Research Grant Expenditure,Research Grants,University of Newcastle Upon Tyne,98271568,34454.78,Research Grant Expenditure
BEIS,UKRI - AHRC,12/09/2018,Research Grant Expenditure,Research Grants,University of Newcastle Upon Tyne,98272843,-12543.94,Research Grant Expenditure
BEIS,UKRI - AHRC,12/09/2018,Research Grant Expenditure,Research Grants,University of Newcastle Upon Tyne,98273694,59830.37,Research Grant Expenditure
BEIS,UKRI - AHRC,12/09/2018,Research Grant Expenditure,Care for the Future,University of Nottingham,98271418,12283.05,Research Grant Expenditure
BEIS,UKRI - AHRC,12/09/2018,Research Grant Expenditure,Care for the Future,University of Nottingham,98271561,73246.45,Research Grant Expenditure
BEIS,UKRI - AHRC,12/09/2018,Research Grant Expenditure,Connected Communities Programme,University of Nottingham,98271418,12283.03,Research Grant Expenditure
BEIS,UKRI - AHRC,12/09/2018,Research Grant Expenditure,Creative Economy,University of Nottingham,98273717,37592.55,Research Grant Expenditure
BEIS,UKRI - AHRC,12/09/2018,Research Grant Expenditure,Creative Economy,University of Nottingham,98273717,22555.54,Research Grant Expenditure
BEIS,UKRI - AHRC,12/09/2018,Research Grant Expenditure,Follow-on Fund,University of Nottingham,98271585,14106.70,Research Grant Expenditure
BEIS,UKRI - AHRC,12/09/2018,Research Grant Expenditure,Follow-on Fund,University of Nottingham,98272838,-4364.39,Research Grant Expenditure
BEIS,UKRI - AHRC,12/09/2018,Research Grant Expenditure,Follow-on Fund,University of Nottingham,98273684,20088.30,Research Grant Expenditure
BEIS,UKRI - AHRC,12/09/2018,Research Grant Expenditure,Global Challenges Research Fund (GCRF),University of Nottingham,98273651,121944.09,Research Grant Expenditure
BEIS,UKRI - AHRC,12/09/2018,Research Grant Expenditure,Networks & Workshops,University of Nottingham,98272808,-1354.24,Research Grant Expenditure
BEIS,UKRI - AHRC,12/09/2018,Research Grant Expenditure,Networks & Workshops,University of Nottingham,98272834,-382.18,Research Grant Expenditure
BEIS,UKRI - AHRC,12/09/2018,Research Grant Expenditure,NPIF Research Talent (RCUK Innovation Fellowships),University of Nottingham,98273700,29515.95,Research Grant Expenditure
BEIS,UKRI - AHRC,12/09/2018,Research Grant Expenditure,NPIF Research Talent (RCUK Innovation Fellowships),University of Nottingham,98273700,29515.94,Research Grant Expenditure
BEIS,UKRI - AHRC,12/09/2018,Fellowships,Research Fellowships,University of Nottingham,98271239,27439.14,Fellowships
BEIS,UKRI - AHRC,12/09/2018,Research Grant Expenditure,Research Grants,University of Nottingham,98271432,36490.28,Research Grant Expenditure
BEIS,UKRI - AHRC,12/09/2018,Research Grant Expenditure,Research Grants,University of Nottingham,98271593,47834.47,Research Grant Expenditure
BEIS,UKRI - AHRC,12/09/2018,Research Grant Expenditure,Research Grants,University of Nottingham,98273629,53145.01,Research Grant Expenditure
BEIS,UKRI - AHRC,12/09/2018,Research Grant Expenditure,Follow-on Fund,University of Oxford,98271580,19608.33,Research Grant Expenditure
BEIS,UKRI - AHRC,12/09/2018,Research Grant Expenditure,Follow-on Fund,University of Oxford,98272831,4205.27,Research Grant Expenditure
BEIS,UKRI - AHRC,12/09/2018,Research Grant Expenditure,Follow-on Fund,University of Oxford,98272845,10222.75,Research Grant Expenditure
BEIS,UKRI - AHRC,12/09/2018,Research Grant Expenditure,Follow-on Fund,University of Oxford,98273685,20151.51,Research Grant Expenditure
BEIS,UKRI - AHRC,12/09/2018,Research Grant Expenditure,Follow-on Fund,University of Oxford,98273737,20161.97,Research Grant Expenditure
BEIS,UKRI - AHRC,12/09/2018,Research Grant Expenditure,Global Uncertainties Programme,University of Oxford,98271507,42718.07,Research Grant Expenditure
BEIS,UKRI - AHRC,12/09/2018,Research Grant Expenditure,JPI Cultural Heritage,University of Oxford,98273731,15321.29,Research Grant Expenditure
BEIS,UKRI - AHRC,12/09/2018,Research Grant Expenditure,Open World Research Initiative (OWRI).,University of Oxford,98271480,207141.50,Research Grant Expenditure
BEIS,UKRI - AHRC,12/09/2018,Fellowships,Research Fellowships,University of Oxford,98271255,14913.04,Fellowships
BEIS,UKRI - AHRC,12/09/2018,Fellowships,Research Fellowships,University of Oxford,98271259,28958.06,Fellowships
BEIS,UKRI - AHRC,12/09/2018,Fellowships,Research Fellowships,University of Oxford,98271260,35665.87,Fellowships
BEIS,UKRI - AHRC,12/09/2018,Research Grant Expenditure,Research Grants,University of Oxford,98271442,39854.14,Research Grant Expenditure
BEIS,UKRI - AHRC,12/09/2018,Research Grant Expenditure,Research Grants,University of Oxford,98271451,59260.75,Research Grant Expenditure
BEIS,UKRI - AHRC,12/09/2018,Research Grant Expenditure,Research Grants,University of Oxford,98271456,57134.56,Research Grant Expenditure
BEIS,UKRI - AHRC,12/09/2018,Research Grant Expenditure,Research Grants,University of Oxford,98271465,51282.68,Research Grant Expenditure
BEIS,UKRI - AHRC,12/09/2018,Research Grant Expenditure,Research Grants,University of Oxford,98271472,45288.59,Research Grant Expenditure
BEIS,UKRI - AHRC,12/09/2018,Research Grant Expenditure,Research Grants,University of Oxford,98271521,43335.64,Research Grant Expenditure
BEIS,UKRI - AHRC,12/09/2018,Research Grant Expenditure,Research Grants,University of Oxford,98272833,6741.16,Research Grant Expenditure
BEIS,UKRI - AHRC,12/09/2018,Research Grant Expenditure,Research Grants,University of Oxford,98273751,61957.28,Research Grant Expenditure
BEIS,UKRI - AHRC,12/09/2018,Research Grant Expenditure,Research Grants,University of Oxford,98273751,61957.28,Research Grant Expenditure
BEIS,UKRI - AHRC,12/09/2018,Research Grant Expenditure,Research Grants,University of Oxford,98273751,61957.28,Research Grant Expenditure
BEIS,UKRI - AHRC,20/09/2018,Secondments,SMT,University of Oxford,98289342,19158.34,Secondments
BEIS,UKRI - AHRC,12/09/2018,Fellowships,Research Fellowships,University of Plymouth,98271245,23218.25,Fellowships
BEIS,UKRI - AHRC,12/09/2018,Research Grant Expenditure,Global Challenges Research Fund (GCRF),University of Reading,98272819,20102.93,Research Grant Expenditure
BEIS,UKRI - AHRC,12/09/2018,Research Grant Expenditure,Research Grants,University of Reading,98271431,12682.50,Research Grant Expenditure
BEIS,UKRI - AHRC,12/09/2018,Research Grant Expenditure,Research Grants,University of Reading,98271440,54062.83,Research Grant Expenditure
BEIS,UKRI - AHRC,12/09/2018,Research Grant Expenditure,Research Grants,University of Reading,98271460,50274.25,Research Grant Expenditure
BEIS,UKRI - AHRC,12/09/2018,Research Grant Expenditure,Research Grants,University of Reading,98271575,50582.73,Research Grant Expenditure
BEIS,UKRI - AHRC,12/09/2018,Research Grant Expenditure,Newton Programme,University of Salford,98273730,11703.93,Research Grant Expenditure
BEIS,UKRI - AHRC,12/09/2018,Fellowships,Research Fellowships,University of Sheffield,98271212,18570.00,Fellowships
BEIS,UKRI - AHRC,12/09/2018,Fellowships,Research Fellowships,University of Sheffield,98271214,13728.20,Fellowships
BEIS,UKRI - AHRC,12/09/2018,Fellowships,Research Fellowships,University of Sheffield,98271242,27810.86,Fellowships
BEIS,UKRI - AHRC,12/09/2018,Research Grant Expenditure,Research Grants,University of Sheffield,98271469,39740.62,Research Grant Expenditure
BEIS,UKRI - AHRC,12/09/2018,Research Grant Expenditure,Research Grants,University of Sheffield,98271555,34337.93,Research Grant Expenditure
BEIS,UKRI - AHRC,12/09/2018,Research Grant Expenditure,Research Grants,University of Sheffield,98273632,33947.05,Research Grant Expenditure
BEIS,UKRI - AHRC,12/09/2018,Research Grant Expenditure,Research Grants,University of Sheffield,98273633,30267.78,Research Grant Expenditure
BEIS,UKRI - AHRC,12/09/2018,Research Grant Expenditure,Research Grants,University of Sheffield,98273692,52381.55,Research Grant Expenditure
BEIS,UKRI - AHRC,12/09/2018,Research Grant Expenditure,Follow-on Fund,University of Southampton GRANT,98272841,-0.04,Research Grant Expenditure
BEIS,UKRI - AHRC,12/09/2018,Fellowships,Research Fellowships,University of Southampton GRANT,98271225,20524.50,Fellowships
BEIS,UKRI - AHRC,12/09/2018,Research Grant Expenditure,Research Grants,University of Southampton GRANT,98271459,30428.15,Research Grant Expenditure
BEIS,UKRI - AHRC,12/09/2018,Research Grant Expenditure,Research Grants,University of Southampton GRANT,98271496,43772.46,Research Grant Expenditure
BEIS,UKRI - AHRC,12/09/2018,Research Grant Expenditure,Research Grants,University of Southampton GRANT,98271589,54379.17,Research Grant Expenditure
BEIS,UKRI - AHRC,12/09/2018,Research Grant Expenditure,Follow-on Fund,University of St Andrews,98273641,17256.61,Research Grant Expenditure
BEIS,UKRI - AHRC,12/09/2018,Research Grant Expenditure,Global Challenges Research Fund (GCRF),University of St Andrews,98273683,15036.20,Research Grant Expenditure
BEIS,UKRI - AHRC,12/09/2018,Research Grant Expenditure,Networks & Workshops,University of St Andrews,98272849,-0.01,Research Grant Expenditure
BEIS,UKRI - AHRC,12/09/2018,Fellowships,Research Fellowships,University of St Andrews,98271210,22249.27,Fellowships
BEIS,UKRI - AHRC,12/09/2018,Fellowships,Research Fellowships,University of St Andrews,98271216,18935.98,Fellowships
BEIS,UKRI - AHRC,12/09/2018,Research Grant Expenditure,Global Challenges Research Fund (GCRF),University of Stirling,98273657,20710.47,Research Grant Expenditure
BEIS,UKRI - AHRC,12/09/2018,Research Grant Expenditure,JPI Cultural Heritage,University of Stirling,98272800,10975.22,Research Grant Expenditure
BEIS,UKRI - AHRC,12/09/2018,Research Grant Expenditure,Research Grants,University of Stirling,98271439,7018.80,Research Grant Expenditure
BEIS,UKRI - AHRC,12/09/2018,Research Grant Expenditure,Research Grants,University of Surrey,98271464,34525.86,Research Grant Expenditure
BEIS,UKRI - AHRC,12/09/2018,Research Grant Expenditure,Research Grants,University of Surrey,98271498,37169.17,Research Grant Expenditure
BEIS,UKRI - AHRC,12/09/2018,Research Grant Expenditure,Research Grants,University of Surrey,98271512,31954.94,Research Grant Expenditure
BEIS,UKRI - AHRC,12/09/2018,Research Grant Expenditure,Research Grants,University of Surrey,98271529,46945.33,Research Grant Expenditure
BEIS,UKRI - AHRC,12/09/2018,Research Grant Expenditure,Research Grants,University of Surrey,98271566,22104.06,Research Grant Expenditure
BEIS,UKRI - AHRC,12/09/2018,Research Grant Expenditure,Research Grants,University of Surrey,98273691,34330.04,Research Grant Expenditure
BEIS,UKRI - AHRC,12/09/2018,Research Grant Expenditure,Follow-on Fund,University of Sussex,98273637,20021.89,Research Grant Expenditure
BEIS,UKRI - AHRC,12/09/2018,Research Grant Expenditure,Networks & Workshops,University of Sussex,98271541,4416.84,Research Grant Expenditure
BEIS,UKRI - AHRC,12/09/2018,Research Grant Expenditure,Networks & Workshops,University of Sussex,98273740,3013.62,Research Grant Expenditure
BEIS,UKRI - AHRC,12/09/2018,Fellowships,Research Fellowships,University of Sussex,98271229,25200.28,Fellowships
BEIS,UKRI - AHRC,12/09/2018,Fellowships,Research Fellowships,University of Sussex,98271248,21679.99,Fellowships
BEIS,UKRI - AHRC,12/09/2018,Fellowships,Research Fellowships,University of Sussex,98271258,23879.23,Fellowships
BEIS,UKRI - AHRC,12/09/2018,Research Grant Expenditure,Research Grants,University of Sussex,98271558,43156.88,Research Grant Expenditure
BEIS,UKRI - AHRC,12/09/2018,Research Grant Expenditure,Research Grants,University of the Arts London,98271552,37560.94,Research Grant Expenditure
BEIS,UKRI - AHRC,12/09/2018,Research Grant Expenditure,Research Grants,University of the Arts London,98271604,31581.98,Research Grant Expenditure
BEIS,UKRI - AHRC,12/09/2018,Research Grant Expenditure,Research Grants,University of the Arts London,98271604,31581.98,Research Grant Expenditure
BEIS,UKRI - AHRC,12/09/2018,Research Grant Expenditure,Research Grants,University of the Arts London,98272796,49992.58,Research Grant Expenditure
BEIS,UKRI - AHRC,12/09/2018,Research Grant Expenditure,Global Challenges Research Fund (GCRF),University of the West of England,98273668,14298.45,Research Grant Expenditure
BEIS,UKRI - AHRC,12/09/2018,Research Grant Expenditure,Networks & Workshops,University of the West of England,98272798,4591.91,Research Grant Expenditure
BEIS,UKRI - AHRC,12/09/2018,Research Grant Expenditure,Networks & Workshops,University of the West of England,98273724,8649.50,Research Grant Expenditure
BEIS,UKRI - AHRC,12/09/2018,Research Grant Expenditure,NPIF Research Talent (RCUK Innovation Fellowships),University of the West of England,98273704,32388.87,Research Grant Expenditure
BEIS,UKRI - AHRC,12/09/2018,Research Grant Expenditure,NPIF Research Talent (RCUK Innovation Fellowships),University of the West of England,98273704,32388.87,Research Grant Expenditure
BEIS,UKRI - AHRC,12/09/2018,Research Grant Expenditure,Research Grants,University of the West of England,98271609,16308.01,Research Grant Expenditure
BEIS,UKRI - AHRC,12/09/2018,Research Grant Expenditure,Global Uncertainties Programme,University of Ulster,98272809,-0.01,Research Grant Expenditure
BEIS,UKRI - AHRC,12/09/2018,Research Grant Expenditure,Research Grants,University of Ulster,98271559,24116.35,Research Grant Expenditure
BEIS,UKRI - AHRC,12/09/2018,Research Grant Expenditure,Research Grants,"University of Wales, Registry",98271422,47033.57,Research Grant Expenditure
BEIS,UKRI - AHRC,12/09/2018,Research Grant Expenditure,Follow-on Fund,University of Warwick,98271586,17507.68,Research Grant Expenditure
BEIS,UKRI - AHRC,12/09/2018,Research Grant Expenditure,JPI Cultural Heritage,University of Warwick,98273736,8814.10,Research Grant Expenditure
BEIS,UKRI - AHRC,12/09/2018,Research Grant Expenditure,Networks & Workshops,University of Warwick,98271581,4533.83,Research Grant Expenditure
BEIS,UKRI - AHRC,12/09/2018,Research Grant Expenditure,Networks & Workshops,University of Warwick,98273670,3478.34,Research Grant Expenditure
BEIS,UKRI - AHRC,12/09/2018,Research Grant Expenditure,Research Grants,University of Warwick,98271427,11768.31,Research Grant Expenditure
BEIS,UKRI - AHRC,12/09/2018,Research Grant Expenditure,Research Grants,University of Warwick,98271450,36390.33,Research Grant Expenditure
BEIS,UKRI - AHRC,12/09/2018,Research Grant Expenditure,Research Grants,University of Warwick,98271470,54610.42,Research Grant Expenditure
BEIS,UKRI - AHRC,12/09/2018,Research Grant Expenditure,Research Grants,University of Warwick,98271474,26452.72,Research Grant Expenditure
BEIS,UKRI - AHRC,12/09/2018,Research Grant Expenditure,Research Grants,University of Warwick,98271497,22739.65,Research Grant Expenditure
BEIS,UKRI - AHRC,12/09/2018,Research Grant Expenditure,Research Grants,University of Warwick,98271502,45682.53,Research Grant Expenditure
BEIS,UKRI - AHRC,12/09/2018,Research Grant Expenditure,Research Grants,University of Warwick,98272813,-87793.03,Research Grant Expenditure
BEIS,UKRI - AHRC,12/09/2018,Research Grant Expenditure,Science in Culture,University of Warwick,98272805,-1613.09,Research Grant Expenditure
BEIS,UKRI - AHRC,12/09/2018,Research Grant Expenditure,Follow-on Fund,University of West London,98273679,19965.18,Research Grant Expenditure
BEIS,UKRI - AHRC,12/09/2018,Research Grant Expenditure,Follow-on Fund,University of West London,98273687,18056.05,Research Grant Expenditure
BEIS,UKRI - AHRC,12/09/2018,Research Grant Expenditure,Research Grants,University of Westminster,98271463,45211.15,Research Grant Expenditure
BEIS,UKRI - AHRC,12/09/2018,Research Grant Expenditure,Networks & Workshops,University of Winchester,98271615,5741.01,Research Grant Expenditure
BEIS,UKRI - AHRC,12/09/2018,Research Grant Expenditure,Follow-on Fund,University of Wolverhampton,98272839,-6105.77,Research Grant Expenditure
BEIS,UKRI - AHRC,12/09/2018,Research Grant Expenditure,Research Grants,University of Wolverhampton,98271556,54204.48,Research Grant Expenditure
BEIS,UKRI - AHRC,12/09/2018,Research Grant Expenditure,Anti-microbial Resistance (AMR),University of York,98273621,29895.21,Research Grant Expenditure
BEIS,UKRI - AHRC,12/09/2018,Research Grant Expenditure,Connected Communities Programme,University of York,98272783,-1090.58,Research Grant Expenditure
BEIS,UKRI - AHRC,12/09/2018,Research Grant Expenditure,Creative Economy,University of York,98273713,29750.81,Research Grant Expenditure
BEIS,UKRI - AHRC,12/09/2018,Research Grant Expenditure,Follow-on Fund,University of York,98273678,19148.54,Research Grant Expenditure
BEIS,UKRI - AHRC,12/09/2018,Research Grant Expenditure,Follow-on Fund,University of York,98273726,20161.96,Research Grant Expenditure
BEIS,UKRI - AHRC,12/09/2018,Research Grant Expenditure,Global Challenges Research Fund (GCRF),University of York,98272820,-25514.84,Research Grant Expenditure
BEIS,UKRI - AHRC,12/09/2018,Research Grant Expenditure,Global Challenges Research Fund (GCRF),University of York,98272832,8042.75,Research Grant Expenditure
BEIS,UKRI - AHRC,12/09/2018,Research Grant Expenditure,Global Challenges Research Fund (GCRF),University of York,98273658,42177.32,Research Grant Expenditure
BEIS,UKRI - AHRC,12/09/2018,Research Grant Expenditure,Networks & Workshops,University of York,98271614,6345.84,Research Grant Expenditure
BEIS,UKRI - AHRC,12/09/2018,Research Grant Expenditure,Research Grants,University of York,98271419,36461.61,Research Grant Expenditure
BEIS,UKRI - AHRC,12/09/2018,Research Grant Expenditure,Research Grants,University of York,98271429,37884.76,Research Grant Expenditure
BEIS,UKRI - AHRC,12/09/2018,Research Grant Expenditure,Research Grants,University of York,98271610,49262.16,Research Grant Expenditure
BEIS,UKRI - AHRC,12/09/2018,Research Grant Expenditure,Research Grants,University of York,98273672,22873.45,Research Grant Expenditure
BEIS,UKRI - AHRC,17/09/2018,T&S UK - Other Charges,Business Process & Analysis,Unspecified,98288142,2.45,T&S UK - Other Charges
BEIS,UKRI - AHRC,17/09/2018,T&S UK - Public Transport,Business Process & Analysis,Unspecified,98288142,11.60,T&S UK - Public Transport
BEIS,UKRI - AHRC,17/09/2018,T&S UK - Subsistence,Business Process & Analysis,Unspecified,98288142,4.90,T&S UK - Subsistence
BEIS,UKRI - AHRC,17/09/2018,T&S UK - Subsistence,Business Process & Analysis,Unspecified,98288142,25.00,T&S UK - Subsistence
BEIS,UKRI - AHRC,17/09/2018,T&S UK - Subsistence,Business Process & Analysis,Unspecified,98288142,11.19,T&S UK - Subsistence
BEIS,UKRI - AHRC,17/09/2018,Advertising & Promotion,Communications,Unspecified,98287838,1000.00,Advertising & Promotion
BEIS,UKRI - AHRC,03/09/2018,Marketing & PR,Communications,Unspecified,98272559,800.00,Marketing & PR
BEIS,UKRI - AHRC,04/09/2018,Marketing & PR,Communications,Unspecified,98272250,3000.00,Marketing & PR
BEIS,UKRI - AHRC,14/09/2018,T&S UK - Other Charges,Communications,Unspecified,98288670,14.78,T&S UK - Other Charges
BEIS,UKRI - AHRC,14/09/2018,T&S UK - Other Charges,Communications,Unspecified,98288671,6.40,T&S UK - Other Charges
BEIS,UKRI - AHRC,14/09/2018,T&S UK - Other Charges,Communications,Unspecified,98288672,6.72,T&S UK - Other Charges
BEIS,UKRI - AHRC,28/09/2018,T&S UK - Other Charges,Communications,Unspecified,98298853,15.00,T&S UK - Other Charges
BEIS,UKRI - AHRC,28/09/2018,T&S UK - Other Charges,Communications,Unspecified,98298854,7.45,T&S UK - Other Charges
BEIS,UKRI - AHRC,19/09/2018,T&S UK - Mileage,Creative Arts & Digital Humanities,Unspecified,98291762,9.81,T&S UK - Mileage
BEIS,UKRI - AHRC,17/09/2018,T&S UK - Other Charges,Creative Arts & Digital Humanities,Unspecified,98288141,12.00,T&S UK - Other Charges
BEIS,UKRI - AHRC,17/09/2018,T&S UK - Parking Tolls Congestion Charges,Creative Arts & Digital Humanities,Unspecified,98288141,8.00,T&S UK - Parking Tolls Congestion Charges
BEIS,UKRI - AHRC,17/09/2018,T&S UK - Public Transport,Creative Arts & Digital Humanities,Unspecified,98288141,9.40,T&S UK - Public Transport
BEIS,UKRI - AHRC,21/09/2018,T&S UK - Public Transport,Creative Arts & Digital Humanities,Unspecified,98293557,33.00,T&S UK - Public Transport
BEIS,UKRI - AHRC,17/09/2018,T&S UK - Subsistence,Creative Arts & Digital Humanities,Unspecified,98288141,24.13,T&S UK - Subsistence
BEIS,UKRI - AHRC,19/09/2018,T&S UK - Subsistence,Creative Arts & Digital Humanities,Unspecified,98291762,5.50,T&S UK - Subsistence
BEIS,UKRI - AHRC,21/09/2018,T&S UK - Subsistence,Creative Arts & Digital Humanities,Unspecified,98293557,7.34,T&S UK - Subsistence
BEIS,UKRI - AHRC,21/09/2018,T&S UK - Subsistence,Creative Arts & Digital Humanities,Unspecified,98293557,10.00,T&S UK - Subsistence
BEIS,UKRI - AHRC,14/09/2018,T&S UK - Mileage,Finance,Unspecified,98288669,66.35,T&S UK - Mileage
BEIS,UKRI - AHRC,04/09/2018,UK - Professional Memberships & Subscriptions,Finance,Unspecified,98272963,94.00,UK - Professional Memberships & Subscriptions
BEIS,UKRI - AHRC,19/09/2018,T&S Overseas - Accommodation,GCRF - Programme Delivery,Unspecified,98291761,485.48,T&S Overseas - Accommodation
BEIS,UKRI - AHRC,19/09/2018,T&S Overseas - Other Charges,GCRF - Programme Delivery,Unspecified,98291761,9.71,T&S Overseas - Other Charges
BEIS,UKRI - AHRC,19/09/2018,T&S Overseas - Other Charges,GCRF - Programme Delivery,Unspecified,98291761,2.40,T&S Overseas - Other Charges
BEIS,UKRI - AHRC,19/09/2018,T&S Overseas - Public Transport,GCRF - Programme Delivery,Unspecified,98291761,15.21,T&S Overseas - Public Transport
BEIS,UKRI - AHRC,19/09/2018,T&S Overseas - Subsistence,GCRF - Programme Delivery,Unspecified,98291761,20.00,T&S Overseas - Subsistence
BEIS,UKRI - AHRC,19/09/2018,T&S Overseas - Subsistence,GCRF - Programme Delivery,Unspecified,98291761,17.90,T&S Overseas - Subsistence
BEIS,UKRI - AHRC,10/09/2018,T&S UK - Other Charges,"Histories,Culture & Heritage",Unspecified,98259253,22.00,T&S UK - Other Charges
BEIS,UKRI - AHRC,11/09/2018,Health & Safety (inc. Medicals & Opticians),HR,Unspecified,98281716,100.00,Health & Safety (inc. Medicals & Opticians)
BEIS,UKRI - AHRC,20/09/2018,T&S UK - Mileage,HR,Unspecified,98286101,72.00,T&S UK - Mileage
BEIS,UKRI - AHRC,20/09/2018,T&S UK - Mileage,HR,Unspecified,98293127,16.70,T&S UK - Mileage
BEIS,UKRI - AHRC,03/09/2018,Health & Safety (inc. Medicals & Opticians),IS,Unspecified,98272665,100.00,Health & Safety (inc. Medicals & Opticians)
BEIS,UKRI - AHRC,28/09/2018,T&S UK - Public Transport,IS,Unspecified,98298855,18.00,T&S UK - Public Transport
BEIS,UKRI - AHRC,24/09/2018,T&S UK - Subsistence,IS,Unspecified,98286102,19.50,T&S UK - Subsistence
BEIS,UKRI - AHRC,24/09/2018,T&S UK - Subsistence,IS,Unspecified,98286102,5.10,T&S UK - Subsistence
BEIS,UKRI - AHRC,24/09/2018,T&S UK - Subsistence,IS,Unspecified,98293995,18.50,T&S UK - Subsistence
BEIS,UKRI - AHRC,25/09/2018,T&S UK - Subsistence,"Languages,Literature & International Engagement",Unspecified,98295707,12.07,T&S UK - Subsistence
BEIS,UKRI - AHRC,14/09/2018,T&S UK - Public Transport,Newton Programme Delivery,Unspecified,98232552,33.02,T&S UK - Public Transport
BEIS,UKRI - AHRC,14/09/2018,T&S UK - Subsistence,Newton Programme Delivery,Unspecified,98232552,20.25,T&S UK - Subsistence
BEIS,UKRI - AHRC,14/09/2018,T&S UK - Subsistence,Newton Programme Delivery,Unspecified,98232552,3.61,T&S UK - Subsistence
BEIS,UKRI - AHRC,12/09/2018,T&S UK - Mileage,PSU Project Office,Unspecified,98285717,43.01,T&S UK - Mileage
BEIS,UKRI - AHRC,05/09/2018,T&S UK - Other Charges,Secretariat,Unspecified,98274499,100.00,T&S UK - Other Charges
BEIS,UKRI - AHRC,07/09/2018,T&S UK - Subsistence,SMT,Unspecified,98277029,4.98,T&S UK - Subsistence
BEIS,UKRI - AHRC,07/09/2018,T&S UK - Subsistence,SMT,Unspecified,98277029,8.30,T&S UK - Subsistence
BEIS,UKRI - AHRC,07/09/2018,T&S UK - Subsistence,SMT,Unspecified,98277029,5.00,T&S UK - Subsistence
BEIS,UKRI - AHRC,07/09/2018,T&S UK - Subsistence,SMT,Unspecified,98277029,7.34,T&S UK - Subsistence
BEIS,UKRI - AHRC,12/09/2018,Research Grant Expenditure,Global Challenges Research Fund (GCRF),UWIC (University of Wales Institute Cardiff),98273661,16212.77,Research Grant Expenditure
BEIS,UKRI - AHRC,12/09/2018,Fellowships,Research Fellowships,UWIC (University of Wales Institute Cardiff),98271227,20032.40,Fellowships
BEIS,UKRI - AHRC,12/09/2018,Research Grant Expenditure,Research Grants,UWIC (University of Wales Institute Cardiff),98272797,16867.71,Research Grant Expenditure
BEIS,UKRI - AHRC,12/09/2018,Research Grant Expenditure,Networks & Workshops,Victoria and Albert Museum,98271599,5708.40,Research Grant Expenditure
BEIS,UKRI - AHRC,19/09/2018,Printing & Stationery,HR,VWR International Ltd,98288462,24.72,Printing & Stationery
BEIS,UKRI - AHRC,25/09/2018,Recruitment Costs,Corporate Services,Warwick University Services Ltd,98293966,245.00,Recruitment Costs
BEIS,UKRI - AHRC,25/09/2018,Recruitment Costs,Corporate Services,Warwick University Services Ltd,98293968,245.00,Recruitment Costs
BEIS,UKRI - AHRC,04/09/2018,Mobile Phone Costs,Corporate Services,West UC Ltd,98272958,523.96,Mobile Phone Costs
BEIS,UKRI - BBSRC,03/09/2018,Innovation and Skills Group CDSU,Non-staff travel and subsistance,Non Employee Expenses Supplier,98271086,35.75,Innovation and Skills Group CDSU
BEIS,UKRI - BBSRC,03/09/2018,Innovation and Skills Group CDSU,Non-staff travel and subsistance,Non Employee Expenses Supplier,98271087,339.80,Innovation and Skills Group CDSU
BEIS,UKRI - BBSRC,03/09/2018,Innovation and Skills Group CDSU,Non-staff travel and subsistance,Non Employee Expenses Supplier,98271088,254.74,Innovation and Skills Group CDSU
BEIS,UKRI - BBSRC,03/09/2018,Science Group - Delivery Function,Non-staff travel and subsistance,Non Employee Expenses Supplier,98271089,205.83,Science Group - Delivery Function
BEIS,UKRI - BBSRC,03/09/2018,FG - Estates,Gas,British Gas Trading Ltd,98271189,544.11,FG - Estates
BEIS,UKRI - BBSRC,06/09/2018,PDG - Director,Legal & Professional Services,A POSITIVE MIND MATTERS,98273464,"1,800.00",PDG - Director
BEIS,UKRI - BBSRC,06/09/2018,PDG - Director,Legal & Professional Services,A POSITIVE MIND MATTERS,98274521,"9,375.00",PDG - Director
BEIS,UKRI - BBSRC,06/09/2018,PDG - Director,Staff Training,A POSITIVE MIND MATTERS,98274522,"8,750.00",PDG - Director
BEIS,UKRI - BBSRC,21/09/2018,JBOS Health and Safety,Health & Safety (inc. Medicals & Opticians),Abbey Business Equipment Ltd,98294176,120.00,JBOS Health and Safety
BEIS,UKRI - BBSRC,12/09/2018,JBOS - Maintenance,Purchase of non capital equipment,Abbey Business Equipment Ltd,98275585,724.80,JBOS - Maintenance
BEIS,UKRI - BBSRC,25/09/2018,IBERS,Research Institutes - Capital Grants: Major Works,ABERYSTWYTH INNOVATION AND ENTERPRISE CAMPUS LTD (AIEC),98288947,"717,216.49",IBERS
BEIS,UKRI - BBSRC,25/09/2018,FG - Accounts & Business Planning,Capital Grants & Equipment to HEIs,Aberystwyth University,98282818,"9,877.62",FG - Accounts & Business Planning
BEIS,UKRI - BBSRC,13/09/2018,IBERS,International Awards - Non Capital,Aberystwyth University,98271683,"145,000.00",IBERS
BEIS,UKRI - BBSRC,25/09/2018,FG - Accounts & Business Planning,Research Grant Expenditure,Aberystwyth University,98282275,"45,537.36",FG - Accounts & Business Planning
BEIS,UKRI - BBSRC,25/09/2018,FG - Accounts & Business Planning,Research Grant Expenditure,Aberystwyth University,98282339,"10,800.48",FG - Accounts & Business Planning
BEIS,UKRI - BBSRC,25/09/2018,FG - Accounts & Business Planning,Research Grant Expenditure,Aberystwyth University,98282343,"19,734.65",FG - Accounts & Business Planning
BEIS,UKRI - BBSRC,25/09/2018,FG - Accounts & Business Planning,Research Grant Expenditure,Aberystwyth University,98282347,"11,968.76",FG - Accounts & Business Planning
BEIS,UKRI - BBSRC,25/09/2018,FG - Accounts & Business Planning,Research Grant Expenditure,Aberystwyth University,98282411,"6,200.30",FG - Accounts & Business Planning
BEIS,UKRI - BBSRC,25/09/2018,FG - Accounts & Business Planning,Research Grant Expenditure,Aberystwyth University,98282527,"44,959.75",FG - Accounts & Business Planning
BEIS,UKRI - BBSRC,25/09/2018,FG - Accounts & Business Planning,Research Grant Expenditure,Aberystwyth University,98282529,"37,882.09",FG - Accounts & Business Planning
BEIS,UKRI - BBSRC,25/09/2018,FG - Accounts & Business Planning,Research Grant Expenditure,Aberystwyth University,98282818,"36,659.35",FG - Accounts & Business Planning
BEIS,UKRI - BBSRC,25/09/2018,FG - Accounts & Business Planning,Research Grant Expenditure,Aberystwyth University,98283015,"22,144.39",FG - Accounts & Business Planning
BEIS,UKRI - BBSRC,25/09/2018,FG - Accounts & Business Planning,Research Grant Expenditure,Aberystwyth University,98283215,"25,193.09",FG - Accounts & Business Planning
BEIS,UKRI - BBSRC,25/09/2018,FG - Accounts & Business Planning,Research Grant Expenditure,Aberystwyth University,98283245,"1,890.19",FG - Accounts & Business Planning
BEIS,UKRI - BBSRC,25/09/2018,FG - Accounts & Business Planning,Research Grant Expenditure,Aberystwyth University,98283272,"56,444.81",FG - Accounts & Business Planning
BEIS,UKRI - BBSRC,25/09/2018,FG - Accounts & Business Planning,Research Grant Expenditure,Aberystwyth University,98283310,"43,013.92",FG - Accounts & Business Planning
BEIS,UKRI - BBSRC,25/09/2018,FG - Accounts & Business Planning,Research Grant Expenditure,Aberystwyth University,98283356,"1,831.60",FG - Accounts & Business Planning
BEIS,UKRI - BBSRC,25/09/2018,FG - Accounts & Business Planning,Research Grant Expenditure,Aberystwyth University,98283678,"3,150.31",FG - Accounts & Business Planning
BEIS,UKRI - BBSRC,25/09/2018,FG - Accounts & Business Planning,Research Grant Expenditure,Aberystwyth University,98283738,"39,246.48",FG - Accounts & Business Planning
BEIS,UKRI - BBSRC,25/09/2018,FG - Accounts & Business Planning,Research Grant Expenditure,Aberystwyth University,98283856,"16,057.39",FG - Accounts & Business Planning
BEIS,UKRI - BBSRC,25/09/2018,FG - Accounts & Business Planning,Research Grant Expenditure,Aberystwyth University,98283881,"25,626.53",FG - Accounts & Business Planning
BEIS,UKRI - BBSRC,10/09/2018,PDG - Director,Recruitment Costs,Agenda Resource Management Ltd,98276871,155.91,PDG - Director
BEIS,UKRI - BBSRC,10/09/2018,PDG - Director,Recruitment Costs,Agenda Resource Management Ltd,98276875,155.91,PDG - Director
BEIS,UKRI - BBSRC,28/09/2018,PDG - Director,Recruitment Costs,Agenda Resource Management Ltd,98297674,84.97,PDG - Director
BEIS,UKRI - BBSRC,28/09/2018,PDG - Director,Recruitment Costs,Agenda Resource Management Ltd,98297674,157.66,PDG - Director
BEIS,UKRI - BBSRC,25/09/2018,FG - Accounts & Business Planning,Research Grant Expenditure,unspecified,98282671,"20,544.27",FG - Accounts & Business Planning
BEIS,UKRI - BBSRC,18/09/2018,JBOS - Maintenance,Mechanical & Electrical Maintenance,AR Electrical (Swindon) Ltd,98289384,"4,560.00",JBOS - Maintenance
BEIS,UKRI - BBSRC,26/09/2018,JBOS - Restaurant,Catering Contracts,Aramark Ltd,98285942,"13,269.04",JBOS - Restaurant
BEIS,UKRI - BBSRC,26/09/2018,JBOS - Restaurant,Catering Contracts,Aramark Ltd,98285945,"23,440.75",JBOS - Restaurant
BEIS,UKRI - BBSRC,26/09/2018,JBOS - Restaurant,Catering Contracts,Aramark Ltd,98285947,"17,002.98",JBOS - Restaurant
BEIS,UKRI - BBSRC,26/09/2018,JBOS - Restaurant,Catering Contracts,Aramark Ltd,98285949,"21,248.99",JBOS - Restaurant
BEIS,UKRI - BBSRC,26/09/2018,JBOS - Restaurant,Catering Contracts,Aramark Ltd,98293315,"2,012.06",JBOS - Restaurant
BEIS,UKRI - BBSRC,26/09/2018,JBOS - Restaurant,Catering Contracts,Aramark Ltd,98293316,"3,227.00",JBOS - Restaurant
BEIS,UKRI - BBSRC,26/09/2018,JBOS - Restaurant,Catering Contracts,Aramark Ltd,98293317,"4,799.10",JBOS - Restaurant
BEIS,UKRI - BBSRC,26/09/2018,JBOS - Restaurant,Catering Contracts,Aramark Ltd,98293318,"1,941.46",JBOS - Restaurant
BEIS,UKRI - BBSRC,07/09/2018,FG - Estates,Books Professional Journals & Guides,Assemble Media Group Ltd,98279994,197.65,FG - Estates
BEIS,UKRI - BBSRC,25/09/2018,FG - Accounts & Business Planning,Research Grant Expenditure,Aston University,98282491,"27,103.34",FG - Accounts & Business Planning
BEIS,UKRI - BBSRC,25/09/2018,FG - Accounts & Business Planning,Research Grant Expenditure,Aston University,98282874,"80,444.77",FG - Accounts & Business Planning
BEIS,UKRI - BBSRC,25/09/2018,FG - Accounts & Business Planning,Research Grant Expenditure,Aston University,98283255,"5,358.56",FG - Accounts & Business Planning
BEIS,UKRI - BBSRC,25/09/2018,FG - Accounts & Business Planning,Research Grant Expenditure,Aston University,98283256,"5,410.06",FG - Accounts & Business Planning
BEIS,UKRI - BBSRC,25/09/2018,FG - Accounts & Business Planning,Research Grant Expenditure,Aston University,98283526,"3,556.93",FG - Accounts & Business Planning
BEIS,UKRI - BBSRC,25/09/2018,FG - Accounts & Business Planning,Research Grant Expenditure,Aston University,98283718,"58,293.78",FG - Accounts & Business Planning
BEIS,UKRI - BBSRC,25/09/2018,FG - Accounts & Business Planning,Research Grant Expenditure,Aston University,98283718,"58,293.78",FG - Accounts & Business Planning
BEIS,UKRI - BBSRC,25/09/2018,FG - Accounts & Business Planning,Research Grant Expenditure,Bangor University,98282365,"22,049.03",FG - Accounts & Business Planning
BEIS,UKRI - BBSRC,25/09/2018,FG - Accounts & Business Planning,Research Grant Expenditure,Bangor University,98282885,"44,076.65",FG - Accounts & Business Planning
BEIS,UKRI - BBSRC,25/09/2018,FG - Accounts & Business Planning,Research Grant Expenditure,Bangor University,98282979,"5,830.93",FG - Accounts & Business Planning
BEIS,UKRI - BBSRC,25/09/2018,FG - Accounts & Business Planning,Research Grant Expenditure,Bangor University,98283105,"23,589.22",FG - Accounts & Business Planning
BEIS,UKRI - BBSRC,25/09/2018,FG - Accounts & Business Planning,Research Grant Expenditure,Bangor University,98283500,"26,382.93",FG - Accounts & Business Planning
BEIS,UKRI - BBSRC,11/09/2018,PDG - Director,Health & Safety (inc. Medicals & Opticians),Banner Group Ltd,98280216,18.96,PDG - Director
BEIS,UKRI - BBSRC,24/09/2018,CIMG - Director,Printing & Stationery,Banner Group Ltd,98294801,19.01,CIMG - Director
BEIS,UKRI - BBSRC,24/09/2018,CIMG - Director,Printing & Stationery,Banner Group Ltd,98294801,0.74,CIMG - Director
BEIS,UKRI - BBSRC,03/09/2018,JBOS - Administration,Printing & Stationery,Banner Group Ltd,98272485,6.14,JBOS - Administration
BEIS,UKRI - BBSRC,03/09/2018,JBOS - Administration,Printing & Stationery,Banner Group Ltd,98272485,3.07,JBOS - Administration
BEIS,UKRI - BBSRC,03/09/2018,JBOS - Administration,Printing & Stationery,Banner Group Ltd,98272485,4.61,JBOS - Administration
BEIS,UKRI - BBSRC,03/09/2018,JBOS - Administration,Printing & Stationery,Banner Group Ltd,98272485,4.61,JBOS - Administration
BEIS,UKRI - BBSRC,03/09/2018,JBOS - Administration,Printing & Stationery,Banner Group Ltd,98272485,2.58,JBOS - Administration
BEIS,UKRI - BBSRC,04/09/2018,JBOS - Administration,Printing & Stationery,Banner Group Ltd,98272871,7.83,JBOS - Administration
BEIS,UKRI - BBSRC,04/09/2018,JBOS - Administration,Printing & Stationery,Banner Group Ltd,98272871,1.60,JBOS - Administration
BEIS,UKRI - BBSRC,04/09/2018,JBOS - Administration,Printing & Stationery,Banner Group Ltd,98272871,1.66,JBOS - Administration
BEIS,UKRI - BBSRC,04/09/2018,JBOS - Administration,Printing & Stationery,Banner Group Ltd,98272871,18.04,JBOS - Administration
BEIS,UKRI - BBSRC,05/09/2018,JBOS - Administration,Printing & Stationery,Banner Group Ltd,98274184,6.50,JBOS - Administration
BEIS,UKRI - BBSRC,12/09/2018,JBOS - Administration,Printing & Stationery,Banner Group Ltd,98286305,6.01,JBOS - Administration
BEIS,UKRI - BBSRC,12/09/2018,JBOS - Administration,Printing & Stationery,Banner Group Ltd,98286305,15.12,JBOS - Administration
BEIS,UKRI - BBSRC,12/09/2018,JBOS - Administration,Printing & Stationery,Banner Group Ltd,98286305,3.84,JBOS - Administration
BEIS,UKRI - BBSRC,12/09/2018,JBOS - Administration,Printing & Stationery,Banner Group Ltd,98286305,4.54,JBOS - Administration
BEIS,UKRI - BBSRC,12/09/2018,JBOS - Administration,Printing & Stationery,Banner Group Ltd,98286305,4.54,JBOS - Administration
BEIS,UKRI - BBSRC,12/09/2018,JBOS - Administration,Printing & Stationery,Banner Group Ltd,98286305,13.44,JBOS - Administration
BEIS,UKRI - BBSRC,12/09/2018,JBOS - Administration,Printing & Stationery,Banner Group Ltd,98286305,11.41,JBOS - Administration
BEIS,UKRI - BBSRC,12/09/2018,JBOS - Administration,Printing & Stationery,Banner Group Ltd,98286305,160.80,JBOS - Administration
BEIS,UKRI - BBSRC,12/09/2018,JBOS - Administration,Printing & Stationery,Banner Group Ltd,98286305,16.42,JBOS - Administration
BEIS,UKRI - BBSRC,12/09/2018,JBOS - Administration,Printing & Stationery,Banner Group Ltd,98286305,2.64,JBOS - Administration
BEIS,UKRI - BBSRC,12/09/2018,JBOS - Administration,Printing & Stationery,Banner Group Ltd,98286305,9.84,JBOS - Administration
BEIS,UKRI - BBSRC,12/09/2018,JBOS - Administration,Printing & Stationery,Banner Group Ltd,98286305,18.60,JBOS - Administration
BEIS,UKRI - BBSRC,12/09/2018,JBOS - Administration,Printing & Stationery,Banner Group Ltd,98286305,24.48,JBOS - Administration
BEIS,UKRI - BBSRC,12/09/2018,JBOS - Administration,Printing & Stationery,Banner Group Ltd,98286305,38.76,JBOS - Administration
BEIS,UKRI - BBSRC,12/09/2018,JBOS - Administration,Printing & Stationery,Banner Group Ltd,98286305,10.20,JBOS - Administration
BEIS,UKRI - BBSRC,12/09/2018,JBOS - Administration,Printing & Stationery,Banner Group Ltd,98286305,25.20,JBOS - Administration
BEIS,UKRI - BBSRC,12/09/2018,JBOS - Administration,Printing & Stationery,Banner Group Ltd,98286305,0.90,JBOS - Administration
BEIS,UKRI - BBSRC,12/09/2018,JBOS - Administration,Printing & Stationery,Banner Group Ltd,98286305,3.12,JBOS - Administration
BEIS,UKRI - BBSRC,12/09/2018,JBOS - Administration,Printing & Stationery,Banner Group Ltd,98286305,4.80,JBOS - Administration
BEIS,UKRI - BBSRC,12/09/2018,JBOS - Administration,Printing & Stationery,Banner Group Ltd,98286305,34.20,JBOS - Administration
BEIS,UKRI - BBSRC,12/09/2018,JBOS - Administration,Printing & Stationery,Banner Group Ltd,98286305,0.42,JBOS - Administration
BEIS,UKRI - BBSRC,12/09/2018,JBOS - Administration,Printing & Stationery,Banner Group Ltd,98286305,10.72,JBOS - Administration
BEIS,UKRI - BBSRC,12/09/2018,JBOS - Administration,Printing & Stationery,Banner Group Ltd,98286305,11.39,JBOS - Administration
BEIS,UKRI - BBSRC,12/09/2018,JBOS - Administration,Printing & Stationery,Banner Group Ltd,98286305,3.86,JBOS - Administration
BEIS,UKRI - BBSRC,12/09/2018,JBOS - Administration,Printing & Stationery,Banner Group Ltd,98286305,1.92,JBOS - Administration
BEIS,UKRI - BBSRC,12/09/2018,JBOS - Administration,Printing & Stationery,Banner Group Ltd,98286305,6.59,JBOS - Administration
BEIS,UKRI - BBSRC,12/09/2018,JBOS - Administration,Printing & Stationery,Banner Group Ltd,98286305,6.97,JBOS - Administration
BEIS,UKRI - BBSRC,12/09/2018,JBOS - Administration,Printing & Stationery,Banner Group Ltd,98286305,14.40,JBOS - Administration
BEIS,UKRI - BBSRC,12/09/2018,JBOS - Administration,Printing & Stationery,Banner Group Ltd,98286305,9.48,JBOS - Administration
BEIS,UKRI - BBSRC,12/09/2018,JBOS - Administration,Printing & Stationery,Banner Group Ltd,98286305,2.99,JBOS - Administration
BEIS,UKRI - BBSRC,12/09/2018,JBOS - Administration,Printing & Stationery,Banner Group Ltd,98286305,6.95,JBOS - Administration
BEIS,UKRI - BBSRC,18/09/2018,JBOS - Administration,Printing & Stationery,Banner Group Ltd,98288853,5.10,JBOS - Administration
BEIS,UKRI - BBSRC,18/09/2018,JBOS - Administration,Printing & Stationery,Banner Group Ltd,98288853,7.56,JBOS - Administration
BEIS,UKRI - BBSRC,18/09/2018,JBOS - Administration,Printing & Stationery,Banner Group Ltd,98288853,5.76,JBOS - Administration
BEIS,UKRI - BBSRC,18/09/2018,JBOS - Administration,Printing & Stationery,Banner Group Ltd,98288853,26.88,JBOS - Administration
BEIS,UKRI - BBSRC,18/09/2018,JBOS - Administration,Printing & Stationery,Banner Group Ltd,98288853,2.64,JBOS - Administration
BEIS,UKRI - BBSRC,18/09/2018,JBOS - Administration,Printing & Stationery,Banner Group Ltd,98288853,50.40,JBOS - Administration
BEIS,UKRI - BBSRC,18/09/2018,JBOS - Administration,Printing & Stationery,Banner Group Ltd,98288853,6.24,JBOS - Administration
BEIS,UKRI - BBSRC,18/09/2018,JBOS - Administration,Printing & Stationery,Banner Group Ltd,98288853,68.40,JBOS - Administration
BEIS,UKRI - BBSRC,18/09/2018,JBOS - Administration,Printing & Stationery,Banner Group Ltd,98288853,5.70,JBOS - Administration
BEIS,UKRI - BBSRC,18/09/2018,JBOS - Administration,Printing & Stationery,Banner Group Ltd,98288853,6.06,JBOS - Administration
BEIS,UKRI - BBSRC,18/09/2018,JBOS - Administration,Printing & Stationery,Banner Group Ltd,98288853,5.70,JBOS - Administration
BEIS,UKRI - BBSRC,18/09/2018,JBOS - Administration,Printing & Stationery,Banner Group Ltd,98288853,5.70,JBOS - Administration
BEIS,UKRI - BBSRC,18/09/2018,JBOS - Administration,Printing & Stationery,Banner Group Ltd,98288853,0.72,JBOS - Administration
BEIS,UKRI - BBSRC,18/09/2018,JBOS - Administration,Printing & Stationery,Banner Group Ltd,98288853,7.39,JBOS - Administration
BEIS,UKRI - BBSRC,18/09/2018,JBOS - Administration,Printing & Stationery,Banner Group Ltd,98288853,6.47,JBOS - Administration
BEIS,UKRI - BBSRC,18/09/2018,JBOS - Administration,Printing & Stationery,Banner Group Ltd,98288853,14.40,JBOS - Administration
BEIS,UKRI - BBSRC,18/09/2018,JBOS - Administration,Printing & Stationery,Banner Group Ltd,98288853,9.48,JBOS - Administration
BEIS,UKRI - BBSRC,25/09/2018,JBOS - Administration,Printing & Stationery,Banner Group Ltd,98288854,3.84,JBOS - Administration
BEIS,UKRI - BBSRC,25/09/2018,JBOS - Administration,Printing & Stationery,Banner Group Ltd,98288854,4.44,JBOS - Administration
BEIS,UKRI - BBSRC,25/09/2018,JBOS - Administration,Printing & Stationery,Banner Group Ltd,98288854,38.21,JBOS - Administration
BEIS,UKRI - BBSRC,25/09/2018,JBOS - Administration,Printing & Stationery,Banner Group Ltd,98288854,21.43,JBOS - Administration
BEIS,UKRI - BBSRC,25/09/2018,JBOS - Administration,Printing & Stationery,Banner Group Ltd,98288854,22.78,JBOS - Administration
BEIS,UKRI - BBSRC,25/09/2018,JBOS - Administration,Printing & Stationery,Banner Group Ltd,98291864,41.69,JBOS - Administration
BEIS,UKRI - BBSRC,25/09/2018,JBOS - Administration,Printing & Stationery,Banner Group Ltd,98294076,8.39,JBOS - Administration
BEIS,UKRI - BBSRC,25/09/2018,JBOS - Administration,Printing & Stationery,Banner Group Ltd,98294076,14.90,JBOS - Administration
BEIS,UKRI - BBSRC,25/09/2018,JBOS - Administration,Printing & Stationery,Banner Group Ltd,98294076,2.14,JBOS - Administration
BEIS,UKRI - BBSRC,26/09/2018,JBOS - Administration,Printing & Stationery,Banner Group Ltd,98296242,13.98,JBOS - Administration
BEIS,UKRI - BBSRC,07/09/2018,PDG - JSS,Printing & Stationery,Banner Group Ltd,98259796,3.00,PDG - JSS
BEIS,UKRI - BBSRC,24/09/2018,JBOS Health and Safety,Safety Materials & Equipment,Banner Group Ltd,98291865,12.30,JBOS Health and Safety
BEIS,UKRI - BBSRC,07/09/2018,Balance Sheet,VAT Input Tax Control (for UK VAT),Banner Group Ltd,98259796,0.60,Balance Sheet
BEIS,UKRI - BBSRC,05/09/2018,CE - Chief Executive,Meetings & Catering,Baxter Storey Ltd,98274440,8.04,CE - Chief Executive
BEIS,UKRI - BBSRC,04/09/2018,CE - IRU,Meetings & Catering,Baxter Storey Ltd,98272033,179.52,CE - IRU
BEIS,UKRI - BBSRC,04/09/2018,CE - IRU,Meetings & Catering,Baxter Storey Ltd,98272041,-89.76,CE - IRU
BEIS,UKRI - BBSRC,04/09/2018,Innovation and Skills Group,Meetings & Catering,Baxter Storey Ltd,98272033,80.40,Innovation and Skills Group
BEIS,UKRI - BBSRC,19/09/2018,Innovation and Skills Group CDSU,Other Programme Costs,Bioindustry Association (BIA),98292390,"6,000.00",Innovation and Skills Group CDSU
BEIS,UKRI - BBSRC,25/09/2018,FG - Accounts & Business Planning,Capital Grants & Equipment to HEIs,Birkbeck College,98283563,"6,238.86",FG - Accounts & Business Planning
BEIS,UKRI - BBSRC,25/09/2018,FG - Accounts & Business Planning,Research Grant Expenditure,Birkbeck College,98282524,"1,482.07",FG - Accounts & Business Planning
BEIS,UKRI - BBSRC,25/09/2018,FG - Accounts & Business Planning,Research Grant Expenditure,Birkbeck College,98282549,"31,754.81",FG - Accounts & Business Planning
BEIS,UKRI - BBSRC,25/09/2018,FG - Accounts & Business Planning,Research Grant Expenditure,Birkbeck College,98282800,"28,960.01",FG - Accounts & Business Planning
BEIS,UKRI - BBSRC,25/09/2018,FG - Accounts & Business Planning,Research Grant Expenditure,Birkbeck College,98282904,"36,211.41",FG - Accounts & Business Planning
BEIS,UKRI - BBSRC,25/09/2018,FG - Accounts & Business Planning,Research Grant Expenditure,Birkbeck College,98283057,"28,755.90",FG - Accounts & Business Planning
BEIS,UKRI - BBSRC,25/09/2018,FG - Accounts & Business Planning,Research Grant Expenditure,Birkbeck College,98283563,"34,312.88",FG - Accounts & Business Planning
BEIS,UKRI - BBSRC,18/09/2018,PDG - Director,Health & Safety (inc. Medicals & Opticians),BMI Healthcare Limited,98290278,231.20,PDG - Director
BEIS,UKRI - BBSRC,27/09/2018,PDG - Director,Staff Training,Bray Leino Ltd,98296329,"1,241.16",PDG - Director
BEIS,UKRI - BBSRC,27/09/2018,PDG - Director,Staff Training,Bray Leino Ltd,98296331,"1,299.12",PDG - Director
BEIS,UKRI - BBSRC,27/09/2018,PDG - Director,Staff Training,Bray Leino Ltd,98296332,"1,299.72",PDG - Director
BEIS,UKRI - BBSRC,04/09/2018,CIMG - External Relations,Agency Staff,Brook Street (UK) Ltd,98257218,"2,296.32",CIMG - External Relations
BEIS,UKRI - BBSRC,25/09/2018,FG - Accounts & Business Planning,Research Grant Expenditure,Brunel University London,98282666,"30,553.42",FG - Accounts & Business Planning
BEIS,UKRI - BBSRC,25/09/2018,FG - Accounts & Business Planning,Research Grant Expenditure,Brunel University London,98282906,"41,223.99",FG - Accounts & Business Planning
BEIS,UKRI - BBSRC,25/09/2018,FG - Accounts & Business Planning,Research Grant Expenditure,Brunel University London,98283095,"71,354.66",FG - Accounts & Business Planning
BEIS,UKRI - BBSRC,12/09/2018,FG - Director,Telecoms - Tele/ Video conferencing,BT Conferencing,98285555,611.41,FG - Director
BEIS,UKRI - BBSRC,12/09/2018,Innovation and Skills Group,Telecoms - Tele/ Video conferencing,BT Conferencing,98285555,294.53,Innovation and Skills Group
BEIS,UKRI - BBSRC,12/09/2018,PDG - Director,Telecoms - Tele/ Video conferencing,BT Conferencing,98285555,243.68,PDG - Director
BEIS,UKRI - BBSRC,18/09/2018,CE - CPS,Conferences & Seminars,Calder Conference Ltd,98289611,"1,305.00",CE - CPS
BEIS,UKRI - BBSRC,14/09/2018,CIMG - External Relations,Conferences & Seminars,Calder Conference Ltd,98287559,54.99,CIMG - External Relations
BEIS,UKRI - BBSRC,07/09/2018,CIMG - Programme Office,Conferences & Seminars,Calder Conference Ltd,98279883,385.00,CIMG - Programme Office
BEIS,UKRI - BBSRC,14/09/2018,CE - CPS,Other Programme Costs,Calder Conference Ltd,98288407,"15,345.01",CE - CPS
BEIS,UKRI - BBSRC,25/09/2018,CE - CPS,Other Programme Costs,Calder Conference Ltd,98296214,"6,398.02",CE - CPS
BEIS,UKRI - BBSRC,03/09/2018,Science Group,Other Programme Costs,Calder Conference Ltd,98271853,"2,150.00",Science Group
BEIS,UKRI - BBSRC,07/09/2018,Science Group,Other Programme Costs,Calder Conference Ltd,98246725,"9,079.80",Science Group
BEIS,UKRI - BBSRC,18/09/2018,PDG - Director,Staff Training,Calder Conference Ltd,98289606,37.44,PDG - Director
BEIS,UKRI - BBSRC,25/09/2018,PDG - Director,Staff Training,Calder Conference Ltd,98296212,"1,003.99",PDG - Director
BEIS,UKRI - BBSRC,28/09/2018,PDG - Director,Staff Training,Calder Conference Ltd,98289607,80.00,PDG - Director
BEIS,UKRI - BBSRC,28/09/2018,PDG - Director,Staff Training,Calder Conference Ltd,98296215,146.50,PDG - Director
BEIS,UKRI - BBSRC,25/09/2018,FG - Accounts & Business Planning,Capital Grants & Equipment to HEIs,Cardiff University,98282842,"5,011.75",FG - Accounts & Business Planning
BEIS,UKRI - BBSRC,25/09/2018,FG - Accounts & Business Planning,Capital Grants & Equipment to HEIs,Cardiff University,98283100,"3,730.50",FG - Accounts & Business Planning
BEIS,UKRI - BBSRC,25/09/2018,FG - Accounts & Business Planning,Fellowships,Cardiff University,98281372,"25,131.80",FG - Accounts & Business Planning
BEIS,UKRI - BBSRC,25/09/2018,FG - Accounts & Business Planning,Research Grant Expenditure,Cardiff University,98282353,"31,538.29",FG - Accounts & Business Planning
BEIS,UKRI - BBSRC,25/09/2018,FG - Accounts & Business Planning,Research Grant Expenditure,Cardiff University,98282704,"39,555.68",FG - Accounts & Business Planning
BEIS,UKRI - BBSRC,25/09/2018,FG - Accounts & Business Planning,Research Grant Expenditure,Cardiff University,98282733,"44,212.29",FG - Accounts & Business Planning
BEIS,UKRI - BBSRC,25/09/2018,FG - Accounts & Business Planning,Research Grant Expenditure,Cardiff University,98282772,"39,362.04",FG - Accounts & Business Planning
BEIS,UKRI - BBSRC,25/09/2018,FG - Accounts & Business Planning,Research Grant Expenditure,Cardiff University,98282809,"40,267.61",FG - Accounts & Business Planning
BEIS,UKRI - BBSRC,25/09/2018,FG - Accounts & Business Planning,Research Grant Expenditure,Cardiff University,98282842,"43,958.51",FG - Accounts & Business Planning
BEIS,UKRI - BBSRC,25/09/2018,FG - Accounts & Business Planning,Research Grant Expenditure,Cardiff University,98282954,"60,647.97",FG - Accounts & Business Planning
BEIS,UKRI - BBSRC,25/09/2018,FG - Accounts & Business Planning,Research Grant Expenditure,Cardiff University,98282988,"31,709.79",FG - Accounts & Business Planning
BEIS,UKRI - BBSRC,25/09/2018,FG - Accounts & Business Planning,Research Grant Expenditure,Cardiff University,98283100,"127,102.71",FG - Accounts & Business Planning
BEIS,UKRI - BBSRC,25/09/2018,FG - Accounts & Business Planning,Research Grant Expenditure,Cardiff University,98283153,"26,015.69",FG - Accounts & Business Planning
BEIS,UKRI - BBSRC,25/09/2018,FG - Accounts & Business Planning,Research Grant Expenditure,Cardiff University,98283315,"30,135.59",FG - Accounts & Business Planning
BEIS,UKRI - BBSRC,25/09/2018,FG - Accounts & Business Planning,Research Grant Expenditure,Cardiff University,98283326,"12,444.40",FG - Accounts & Business Planning
BEIS,UKRI - BBSRC,25/09/2018,FG - Accounts & Business Planning,Research Grant Expenditure,Cardiff University,98283567,"30,651.31",FG - Accounts & Business Planning
BEIS,UKRI - BBSRC,25/09/2018,FG - Accounts & Business Planning,Research Grant Expenditure,Cardiff University,98283613,"30,520.00",FG - Accounts & Business Planning
BEIS,UKRI - BBSRC,25/09/2018,FG - Accounts & Business Planning,Research Grant Expenditure,Cardiff University,98283656,"79,804.21",FG - Accounts & Business Planning
BEIS,UKRI - BBSRC,25/09/2018,FG - Accounts & Business Planning,Research Grant Expenditure,Cardiff University,98283675,"2,961.29",FG - Accounts & Business Planning
BEIS,UKRI - BBSRC,25/09/2018,FG - Accounts & Business Planning,Research Grant Expenditure,Cardiff University,98283675,"2,961.29",FG - Accounts & Business Planning
BEIS,UKRI - BBSRC,25/09/2018,FG - Accounts & Business Planning,Research Grant Expenditure,Cardiff University,98283739,"21,165.58",FG - Accounts & Business Planning
BEIS,UKRI - BBSRC,25/09/2018,FG - Accounts & Business Planning,Research Grant Expenditure,Cardiff University,98283859,"9,557.97",FG - Accounts & Business Planning
BEIS,UKRI - BBSRC,13/09/2018,JBOS - Maintenance,Water,Castle Water Ltd,98286675,"2,122.79",JBOS - Maintenance
BEIS,UKRI - BBSRC,17/09/2018,JBOS - Maintenance,Water,Castle Water Ltd,98287616,"1,865.48",JBOS - Maintenance
BEIS,UKRI - BBSRC,14/09/2018,Balance Sheet,Voluntary Deductions,Charities Aid Foundation - GAYE,98287642,570.83,Balance Sheet
BEIS,UKRI - BBSRC,20/09/2018,JBOS - Post Room,Postage & Courier Services,unspecified,98291989,919.15,JBOS - Post Room
BEIS,UKRI - BBSRC,13/09/2018,Balance Sheet,Voluntary Deductions,Civil Service Benevolent Fund,98286247,2.00,Balance Sheet
BEIS,UKRI - BBSRC,17/09/2018,JBOS - Maintenance,Gas,Corona Energy,98253362,"-1,370.86",JBOS - Maintenance
BEIS,UKRI - BBSRC,17/09/2018,JBOS - Maintenance,Gas,Corona Energy,98270380,"1,299.74",JBOS - Maintenance
BEIS,UKRI - BBSRC,17/09/2018,JBOS - Maintenance,Gas,Corona Energy,98287543,"1,298.19",JBOS - Maintenance
BEIS,UKRI - BBSRC,14/09/2018,CE - IRU,T&S UK - Vehicle Hire,Corporate Airport Transfers,98273611,199.20,CE - IRU
BEIS,UKRI - BBSRC,06/09/2018,RISD - UKRO,Conferences & Seminars,Corporate Travel Management (North) Ltd,98274526,0.50,RISD - UKRO
BEIS,UKRI - BBSRC,06/09/2018,RISD - UKRO,Conferences & Seminars,Corporate Travel Management (North) Ltd,98274526,1.44,RISD - UKRO
BEIS,UKRI - BBSRC,06/09/2018,RISD - UKRO,Conferences & Seminars,Corporate Travel Management (North) Ltd,98274526,"3,720.00",RISD - UKRO
BEIS,UKRI - BBSRC,06/09/2018,RISD - UKRO,Conferences & Seminars,Corporate Travel Management (North) Ltd,98274526,0.39,RISD - UKRO
BEIS,UKRI - BBSRC,06/09/2018,Science Group - Delivery Function,Non-staff travel and subsistance,Corporate Travel Management (North) Ltd,98274526,72.80,Science Group - Delivery Function
BEIS,UKRI - BBSRC,06/09/2018,Science Group - Delivery Function,Non-staff travel and subsistance,Corporate Travel Management (North) Ltd,98274526,166.26,Science Group - Delivery Function
BEIS,UKRI - BBSRC,06/09/2018,Science Group - Delivery Function,Non-staff travel and subsistance,Corporate Travel Management (North) Ltd,98274526,-43.60,Science Group - Delivery Function
BEIS,UKRI - BBSRC,06/09/2018,Science Group - Delivery Function,Non-staff travel and subsistance,Corporate Travel Management (North) Ltd,98274526,5.00,Science Group - Delivery Function
BEIS,UKRI - BBSRC,06/09/2018,Science Group - Delivery Function,Non-staff travel and subsistance,Corporate Travel Management (North) Ltd,98274526,-43.60,Science Group - Delivery Function
BEIS,UKRI - BBSRC,06/09/2018,Science Group - Delivery Function,Non-staff travel and subsistance,Corporate Travel Management (North) Ltd,98274526,72.80,Science Group - Delivery Function
BEIS,UKRI - BBSRC,06/09/2018,CE - IRU,T&S Overseas - Accommodation,Corporate Travel Management (North) Ltd,98274526,0.50,CE - IRU
BEIS,UKRI - BBSRC,06/09/2018,CE - IRU,T&S Overseas - Accommodation,Corporate Travel Management (North) Ltd,98274526,0.50,CE - IRU
BEIS,UKRI - BBSRC,06/09/2018,CE - IRU,T&S Overseas - Accommodation,Corporate Travel Management (North) Ltd,98274526,0.20,CE - IRU
BEIS,UKRI - BBSRC,06/09/2018,European Initiatives,T&S Overseas - Accommodation,Corporate Travel Management (North) Ltd,98274526,0.50,European Initiatives
BEIS,UKRI - BBSRC,06/09/2018,European Initiatives,T&S Overseas - Accommodation,Corporate Travel Management (North) Ltd,98274526,0.50,European Initiatives
BEIS,UKRI - BBSRC,06/09/2018,European Initiatives,T&S Overseas - Accommodation,Corporate Travel Management (North) Ltd,98274526,0.20,European Initiatives
BEIS,UKRI - BBSRC,06/09/2018,CE - Chief Executive,T&S Overseas - Flights,Corporate Travel Management (North) Ltd,98274526,284.60,CE - Chief Executive
BEIS,UKRI - BBSRC,06/09/2018,CE - CPS,T&S Overseas - Flights,Corporate Travel Management (North) Ltd,98274526,647.21,CE - CPS
BEIS,UKRI - BBSRC,06/09/2018,CE - IRU,T&S Overseas - Flights,Corporate Travel Management (North) Ltd,98274526,"2,137.01",CE - IRU
BEIS,UKRI - BBSRC,06/09/2018,CE - IRU,T&S Overseas - Flights,Corporate Travel Management (North) Ltd,98274526,"1,024.91",CE - IRU
BEIS,UKRI - BBSRC,06/09/2018,CE - IRU,T&S Overseas - Flights,Corporate Travel Management (North) Ltd,98274526,2.16,CE - IRU
BEIS,UKRI - BBSRC,06/09/2018,CE - IRU,T&S Overseas - Flights,Corporate Travel Management (North) Ltd,98274526,878.01,CE - IRU
BEIS,UKRI - BBSRC,06/09/2018,CE - IRU,T&S Overseas - Flights,Corporate Travel Management (North) Ltd,98274526,2.16,CE - IRU
BEIS,UKRI - BBSRC,06/09/2018,CE - IRU,T&S Overseas - Flights,Corporate Travel Management (North) Ltd,98274526,96.60,CE - IRU
BEIS,UKRI - BBSRC,06/09/2018,CE - IRU,T&S Overseas - Flights,Corporate Travel Management (North) Ltd,98274526,61.00,CE - IRU
BEIS,UKRI - BBSRC,06/09/2018,CE - IRU,T&S Overseas - Flights,Corporate Travel Management (North) Ltd,98274526,356.00,CE - IRU
BEIS,UKRI - BBSRC,06/09/2018,European Initiatives,T&S Overseas - Flights,Corporate Travel Management (North) Ltd,98274526,148.00,European Initiatives
BEIS,UKRI - BBSRC,06/09/2018,Science Group,T&S Overseas - Flights,Corporate Travel Management (North) Ltd,98274526,2.16,Science Group
BEIS,UKRI - BBSRC,06/09/2018,Science Group,T&S Overseas - Flights,Corporate Travel Management (North) Ltd,98274526,694.16,Science Group
BEIS,UKRI - BBSRC,06/09/2018,Science Group,T&S Overseas - Flights,Corporate Travel Management (North) Ltd,98274526,2.16,Science Group
BEIS,UKRI - BBSRC,06/09/2018,Science Group,T&S Overseas - Flights,Corporate Travel Management (North) Ltd,98274526,654.16,Science Group
BEIS,UKRI - BBSRC,06/09/2018,Science Group,T&S Overseas - Flights,Corporate Travel Management (North) Ltd,98274526,"2,137.11",Science Group
BEIS,UKRI - BBSRC,06/09/2018,Science Group - Delivery Function,T&S Overseas - Flights,Corporate Travel Management (North) Ltd,98274526,"2,137.11",Science Group - Delivery Function
BEIS,UKRI - BBSRC,06/09/2018,Science Group - Delivery Function,T&S Overseas - Flights,Corporate Travel Management (North) Ltd,98274526,"2,798.31",Science Group - Delivery Function
BEIS,UKRI - BBSRC,06/09/2018,CE - IRU,T&S Overseas - Public Transport,Corporate Travel Management (North) Ltd,98274526,78.00,CE - IRU
BEIS,UKRI - BBSRC,06/09/2018,CE - IRU,T&S Overseas - Public Transport,Corporate Travel Management (North) Ltd,98274526,218.00,CE - IRU
BEIS,UKRI - BBSRC,06/09/2018,European Initiatives,T&S Overseas - Public Transport,Corporate Travel Management (North) Ltd,98274526,140.00,European Initiatives
BEIS,UKRI - BBSRC,06/09/2018,European Initiatives,T&S Overseas - Public Transport,Corporate Travel Management (North) Ltd,98274526,78.00,European Initiatives
BEIS,UKRI - BBSRC,06/09/2018,RISD - UKRO,T&S Overseas - Public Transport,Corporate Travel Management (North) Ltd,98274526,2.16,RISD - UKRO
BEIS,UKRI - BBSRC,06/09/2018,RISD - UKRO,T&S Overseas - Public Transport,Corporate Travel Management (North) Ltd,98274526,91.00,RISD - UKRO
BEIS,UKRI - BBSRC,06/09/2018,RISD - UKRO,T&S Overseas - Public Transport,Corporate Travel Management (North) Ltd,98274526,199.00,RISD - UKRO
BEIS,UKRI - BBSRC,06/09/2018,RISD - UKRO,T&S Overseas - Public Transport,Corporate Travel Management (North) Ltd,98274526,79.00,RISD - UKRO
BEIS,UKRI - BBSRC,06/09/2018,RISD - UKRO,T&S Overseas - Public Transport,Corporate Travel Management (North) Ltd,98274526,146.00,RISD - UKRO
BEIS,UKRI - BBSRC,06/09/2018,RISD - UKRO,T&S Overseas - Public Transport,Corporate Travel Management (North) Ltd,98274526,86.70,RISD - UKRO
BEIS,UKRI - BBSRC,06/09/2018,RISD - UKRO,T&S Overseas - Public Transport,Corporate Travel Management (North) Ltd,98274526,56.00,RISD - UKRO
BEIS,UKRI - BBSRC,06/09/2018,RISD - UKRO,T&S Overseas - Public Transport,Corporate Travel Management (North) Ltd,98274526,142.00,RISD - UKRO
BEIS,UKRI - BBSRC,06/09/2018,RISD - UKRO,T&S Overseas - Public Transport,Corporate Travel Management (North) Ltd,98274526,97.00,RISD - UKRO
BEIS,UKRI - BBSRC,06/09/2018,RISD - UKRO,T&S Overseas - Public Transport,Corporate Travel Management (North) Ltd,98274526,79.00,RISD - UKRO
BEIS,UKRI - BBSRC,06/09/2018,RISD - UKRO,T&S Overseas - Public Transport,Corporate Travel Management (North) Ltd,98274526,96.00,RISD - UKRO
BEIS,UKRI - BBSRC,06/09/2018,RISD - UKRO,T&S Overseas - Public Transport,Corporate Travel Management (North) Ltd,98274526,102.78,RISD - UKRO
BEIS,UKRI - BBSRC,06/09/2018,RISD - UKRO,T&S Overseas - Public Transport,Corporate Travel Management (North) Ltd,98274526,99.00,RISD - UKRO
BEIS,UKRI - BBSRC,06/09/2018,RISD - UKRO,T&S Overseas - Public Transport,Corporate Travel Management (North) Ltd,98274526,237.60,RISD - UKRO
BEIS,UKRI - BBSRC,06/09/2018,RISD - UKRO,T&S Overseas - Public Transport,Corporate Travel Management (North) Ltd,98274526,260.80,RISD - UKRO
BEIS,UKRI - BBSRC,06/09/2018,RISD - UKRO,T&S Overseas - Public Transport,Corporate Travel Management (North) Ltd,98274526,108.00,RISD - UKRO
BEIS,UKRI - BBSRC,06/09/2018,RISD - UKRO,T&S Overseas - Public Transport,Corporate Travel Management (North) Ltd,98274526,90.00,RISD - UKRO
BEIS,UKRI - BBSRC,06/09/2018,RISD - UKRO,T&S Overseas - Public Transport,Corporate Travel Management (North) Ltd,98274526,166.00,RISD - UKRO
BEIS,UKRI - BBSRC,06/09/2018,RISD - UKRO,T&S Overseas - Public Transport,Corporate Travel Management (North) Ltd,98274526,103.00,RISD - UKRO
BEIS,UKRI - BBSRC,06/09/2018,RISD - UKRO,T&S Overseas - Public Transport,Corporate Travel Management (North) Ltd,98274526,81.00,RISD - UKRO
BEIS,UKRI - BBSRC,06/09/2018,BBSRC Champions,T&S UK - Accommodation,Corporate Travel Management (North) Ltd,98274526,0.50,BBSRC Champions
BEIS,UKRI - BBSRC,06/09/2018,BBSRC Champions,T&S UK - Accommodation,Corporate Travel Management (North) Ltd,98274526,1.44,BBSRC Champions
BEIS,UKRI - BBSRC,06/09/2018,BBSRC Champions,T&S UK - Accommodation,Corporate Travel Management (North) Ltd,98274526,165.00,BBSRC Champions
BEIS,UKRI - BBSRC,06/09/2018,BBSRC Champions,T&S UK - Accommodation,Corporate Travel Management (North) Ltd,98274526,0.50,BBSRC Champions
BEIS,UKRI - BBSRC,06/09/2018,BBSRC Champions,T&S UK - Accommodation,Corporate Travel Management (North) Ltd,98274526,1.44,BBSRC Champions
BEIS,UKRI - BBSRC,06/09/2018,BBSRC Champions,T&S UK - Accommodation,Corporate Travel Management (North) Ltd,98274526,165.00,BBSRC Champions
BEIS,UKRI - BBSRC,06/09/2018,BBSRC Champions,T&S UK - Accommodation,Corporate Travel Management (North) Ltd,98274526,0.50,BBSRC Champions
BEIS,UKRI - BBSRC,06/09/2018,BBSRC Champions,T&S UK - Accommodation,Corporate Travel Management (North) Ltd,98274526,1.44,BBSRC Champions
BEIS,UKRI - BBSRC,06/09/2018,BBSRC Champions,T&S UK - Accommodation,Corporate Travel Management (North) Ltd,98274526,165.00,BBSRC Champions
BEIS,UKRI - BBSRC,06/09/2018,BBSRC Champions,T&S UK - Accommodation,Corporate Travel Management (North) Ltd,98274526,1.17,BBSRC Champions
BEIS,UKRI - BBSRC,06/09/2018,CE - IRU,T&S UK - Accommodation,Corporate Travel Management (North) Ltd,98274526,0.50,CE - IRU
BEIS,UKRI - BBSRC,06/09/2018,CE - IRU,T&S UK - Accommodation,Corporate Travel Management (North) Ltd,98274526,198.00,CE - IRU
BEIS,UKRI - BBSRC,06/09/2018,CE - IRU,T&S UK - Accommodation,Corporate Travel Management (North) Ltd,98274526,0.50,CE - IRU
BEIS,UKRI - BBSRC,06/09/2018,CE - IRU,T&S UK - Accommodation,Corporate Travel Management (North) Ltd,98274526,119.00,CE - IRU
BEIS,UKRI - BBSRC,06/09/2018,CE - IRU,T&S UK - Accommodation,Corporate Travel Management (North) Ltd,98274526,0.50,CE - IRU
BEIS,UKRI - BBSRC,06/09/2018,CE - IRU,T&S UK - Accommodation,Corporate Travel Management (North) Ltd,98274526,119.00,CE - IRU
BEIS,UKRI - BBSRC,06/09/2018,CE - IRU,T&S UK - Accommodation,Corporate Travel Management (North) Ltd,98274526,0.50,CE - IRU
BEIS,UKRI - BBSRC,06/09/2018,CE - IRU,T&S UK - Accommodation,Corporate Travel Management (North) Ltd,98274526,119.00,CE - IRU
BEIS,UKRI - BBSRC,06/09/2018,CE - IRU,T&S UK - Accommodation,Corporate Travel Management (North) Ltd,98274526,0.30,CE - IRU
BEIS,UKRI - BBSRC,06/09/2018,CE - IRU,T&S UK - Accommodation,Corporate Travel Management (North) Ltd,98274526,0.10,CE - IRU
BEIS,UKRI - BBSRC,06/09/2018,CIMG - External Relations,T&S UK - Accommodation,Corporate Travel Management (North) Ltd,98274526,0.50,CIMG - External Relations
BEIS,UKRI - BBSRC,06/09/2018,CIMG - External Relations,T&S UK - Accommodation,Corporate Travel Management (North) Ltd,98274526,85.00,CIMG - External Relations
BEIS,UKRI - BBSRC,06/09/2018,CIMG - External Relations,T&S UK - Accommodation,Corporate Travel Management (North) Ltd,98274526,0.10,CIMG - External Relations
BEIS,UKRI - BBSRC,06/09/2018,CIMG - Programme Office,T&S UK - Accommodation,Corporate Travel Management (North) Ltd,98274526,0.50,CIMG - Programme Office
BEIS,UKRI - BBSRC,06/09/2018,CIMG - Programme Office,T&S UK - Accommodation,Corporate Travel Management (North) Ltd,98274526,70.00,CIMG - Programme Office
BEIS,UKRI - BBSRC,06/09/2018,CIMG - Programme Office,T&S UK - Accommodation,Corporate Travel Management (North) Ltd,98274526,0.10,CIMG - Programme Office
BEIS,UKRI - BBSRC,06/09/2018,FG - Accounts & Business Planning,T&S UK - Accommodation,Corporate Travel Management (North) Ltd,98274526,0.50,FG - Accounts & Business Planning
BEIS,UKRI - BBSRC,06/09/2018,FG - Accounts & Business Planning,T&S UK - Accommodation,Corporate Travel Management (North) Ltd,98274526,116.10,FG - Accounts & Business Planning
BEIS,UKRI - BBSRC,06/09/2018,FG - Accounts & Business Planning,T&S UK - Accommodation,Corporate Travel Management (North) Ltd,98274526,0.50,FG - Accounts & Business Planning
BEIS,UKRI - BBSRC,06/09/2018,FG - Accounts & Business Planning,T&S UK - Accommodation,Corporate Travel Management (North) Ltd,98274526,1.44,FG - Accounts & Business Planning
BEIS,UKRI - BBSRC,06/09/2018,FG - Accounts & Business Planning,T&S UK - Accommodation,Corporate Travel Management (North) Ltd,98274526,73.50,FG - Accounts & Business Planning
BEIS,UKRI - BBSRC,06/09/2018,FG - Accounts & Business Planning,T&S UK - Accommodation,Corporate Travel Management (North) Ltd,98274526,0.50,FG - Accounts & Business Planning
BEIS,UKRI - BBSRC,06/09/2018,FG - Accounts & Business Planning,T&S UK - Accommodation,Corporate Travel Management (North) Ltd,98274526,163.50,FG - Accounts & Business Planning
BEIS,UKRI - BBSRC,06/09/2018,FG - Accounts & Business Planning,T&S UK - Accommodation,Corporate Travel Management (North) Ltd,98274526,0.50,FG - Accounts & Business Planning
BEIS,UKRI - BBSRC,06/09/2018,FG - Accounts & Business Planning,T&S UK - Accommodation,Corporate Travel Management (North) Ltd,98274526,123.30,FG - Accounts & Business Planning
BEIS,UKRI - BBSRC,06/09/2018,FG - Accounts & Business Planning,T&S UK - Accommodation,Corporate Travel Management (North) Ltd,98274526,0.69,FG - Accounts & Business Planning
BEIS,UKRI - BBSRC,06/09/2018,FG - Director,T&S UK - Accommodation,Corporate Travel Management (North) Ltd,98274526,0.50,FG - Director
BEIS,UKRI - BBSRC,06/09/2018,FG - Director,T&S UK - Accommodation,Corporate Travel Management (North) Ltd,98274526,0.50,FG - Director
BEIS,UKRI - BBSRC,06/09/2018,FG - Director,T&S UK - Accommodation,Corporate Travel Management (North) Ltd,98274526,0.50,FG - Director
BEIS,UKRI - BBSRC,06/09/2018,FG - Director,T&S UK - Accommodation,Corporate Travel Management (North) Ltd,98274526,98.00,FG - Director
BEIS,UKRI - BBSRC,06/09/2018,FG - Director,T&S UK - Accommodation,Corporate Travel Management (North) Ltd,98274526,0.50,FG - Director
BEIS,UKRI - BBSRC,06/09/2018,FG - Director,T&S UK - Accommodation,Corporate Travel Management (North) Ltd,98274526,102.00,FG - Director
BEIS,UKRI - BBSRC,06/09/2018,FG - Director,T&S UK - Accommodation,Corporate Travel Management (North) Ltd,98274526,0.50,FG - Director
BEIS,UKRI - BBSRC,06/09/2018,FG - Director,T&S UK - Accommodation,Corporate Travel Management (North) Ltd,98274526,89.25,FG - Director
BEIS,UKRI - BBSRC,06/09/2018,FG - Director,T&S UK - Accommodation,Corporate Travel Management (North) Ltd,98274526,0.50,FG - Director
BEIS,UKRI - BBSRC,06/09/2018,FG - Director,T&S UK - Accommodation,Corporate Travel Management (North) Ltd,98274526,105.00,FG - Director
BEIS,UKRI - BBSRC,06/09/2018,FG - Director,T&S UK - Accommodation,Corporate Travel Management (North) Ltd,98274526,0.50,FG - Director
BEIS,UKRI - BBSRC,06/09/2018,FG - Director,T&S UK - Accommodation,Corporate Travel Management (North) Ltd,98274526,170.00,FG - Director
BEIS,UKRI - BBSRC,06/09/2018,FG - Director,T&S UK - Accommodation,Corporate Travel Management (North) Ltd,98274526,0.50,FG - Director
BEIS,UKRI - BBSRC,06/09/2018,FG - Director,T&S UK - Accommodation,Corporate Travel Management (North) Ltd,98274526,1.44,FG - Director
BEIS,UKRI - BBSRC,06/09/2018,FG - Director,T&S UK - Accommodation,Corporate Travel Management (North) Ltd,98274526,107.10,FG - Director
BEIS,UKRI - BBSRC,06/09/2018,FG - Director,T&S UK - Accommodation,Corporate Travel Management (North) Ltd,98274526,1.09,FG - Director
BEIS,UKRI - BBSRC,06/09/2018,FG - Estates,T&S UK - Accommodation,Corporate Travel Management (North) Ltd,98274526,0.50,FG - Estates
BEIS,UKRI - BBSRC,06/09/2018,FG - Estates,T&S UK - Accommodation,Corporate Travel Management (North) Ltd,98274526,71.38,FG - Estates
BEIS,UKRI - BBSRC,06/09/2018,FG - Estates,T&S UK - Accommodation,Corporate Travel Management (North) Ltd,98274526,0.50,FG - Estates
BEIS,UKRI - BBSRC,06/09/2018,FG - Estates,T&S UK - Accommodation,Corporate Travel Management (North) Ltd,98274526,73.50,FG - Estates
BEIS,UKRI - BBSRC,06/09/2018,FG - Estates,T&S UK - Accommodation,Corporate Travel Management (North) Ltd,98274526,0.50,FG - Estates
BEIS,UKRI - BBSRC,06/09/2018,FG - Estates,T&S UK - Accommodation,Corporate Travel Management (North) Ltd,98274526,73.50,FG - Estates
BEIS,UKRI - BBSRC,06/09/2018,FG - Estates,T&S UK - Accommodation,Corporate Travel Management (North) Ltd,98274526,0.50,FG - Estates
BEIS,UKRI - BBSRC,06/09/2018,FG - Estates,T&S UK - Accommodation,Corporate Travel Management (North) Ltd,98274526,89.00,FG - Estates
BEIS,UKRI - BBSRC,06/09/2018,FG - Estates,T&S UK - Accommodation,Corporate Travel Management (North) Ltd,98274526,0.50,FG - Estates
BEIS,UKRI - BBSRC,06/09/2018,FG - Estates,T&S UK - Accommodation,Corporate Travel Management (North) Ltd,98274526,117.00,FG - Estates
BEIS,UKRI - BBSRC,06/09/2018,FG - Estates,T&S UK - Accommodation,Corporate Travel Management (North) Ltd,98274526,0.20,FG - Estates
BEIS,UKRI - BBSRC,06/09/2018,FG - Estates,T&S UK - Accommodation,Corporate Travel Management (North) Ltd,98274526,0.30,FG - Estates
BEIS,UKRI - BBSRC,06/09/2018,FG - RCUK Assurance,T&S UK - Accommodation,Corporate Travel Management (North) Ltd,98274526,-73.50,FG - RCUK Assurance
BEIS,UKRI - BBSRC,06/09/2018,FG - RCUK Assurance,T&S UK - Accommodation,Corporate Travel Management (North) Ltd,98274526,0.50,FG - RCUK Assurance
BEIS,UKRI - BBSRC,06/09/2018,FG - RCUK Assurance,T&S UK - Accommodation,Corporate Travel Management (North) Ltd,98274526,73.50,FG - RCUK Assurance
BEIS,UKRI - BBSRC,06/09/2018,FG - RCUK Assurance,T&S UK - Accommodation,Corporate Travel Management (North) Ltd,98274526,0.10,FG - RCUK Assurance
BEIS,UKRI - BBSRC,06/09/2018,Innovation and Skills Group,T&S UK - Accommodation,Corporate Travel Management (North) Ltd,98274526,0.50,Innovation and Skills Group
BEIS,UKRI - BBSRC,06/09/2018,Innovation and Skills Group,T&S UK - Accommodation,Corporate Travel Management (North) Ltd,98274526,228.60,Innovation and Skills Group
BEIS,UKRI - BBSRC,06/09/2018,Innovation and Skills Group,T&S UK - Accommodation,Corporate Travel Management (North) Ltd,98274526,0.10,Innovation and Skills Group
BEIS,UKRI - BBSRC,06/09/2018,Innovation and Skills Group CDSU,T&S UK - Accommodation,Corporate Travel Management (North) Ltd,98274526,0.50,Innovation and Skills Group CDSU
BEIS,UKRI - BBSRC,06/09/2018,Innovation and Skills Group CDSU,T&S UK - Accommodation,Corporate Travel Management (North) Ltd,98274526,1.44,Innovation and Skills Group CDSU
BEIS,UKRI - BBSRC,06/09/2018,Innovation and Skills Group CDSU,T&S UK - Accommodation,Corporate Travel Management (North) Ltd,98274526,73.50,Innovation and Skills Group CDSU
BEIS,UKRI - BBSRC,06/09/2018,Innovation and Skills Group CDSU,T&S UK - Accommodation,Corporate Travel Management (North) Ltd,98274526,0.50,Innovation and Skills Group CDSU
BEIS,UKRI - BBSRC,06/09/2018,Innovation and Skills Group CDSU,T&S UK - Accommodation,Corporate Travel Management (North) Ltd,98274526,1.44,Innovation and Skills Group CDSU
BEIS,UKRI - BBSRC,06/09/2018,Innovation and Skills Group CDSU,T&S UK - Accommodation,Corporate Travel Management (North) Ltd,98274526,73.50,Innovation and Skills Group CDSU
BEIS,UKRI - BBSRC,06/09/2018,Innovation and Skills Group CDSU,T&S UK - Accommodation,Corporate Travel Management (North) Ltd,98274526,0.50,Innovation and Skills Group CDSU
BEIS,UKRI - BBSRC,06/09/2018,Innovation and Skills Group CDSU,T&S UK - Accommodation,Corporate Travel Management (North) Ltd,98274526,0.88,Innovation and Skills Group CDSU
BEIS,UKRI - BBSRC,06/09/2018,RISD - UKRO,T&S UK - Accommodation,Corporate Travel Management (North) Ltd,98274526,0.50,RISD - UKRO
BEIS,UKRI - BBSRC,06/09/2018,RISD - UKRO,T&S UK - Accommodation,Corporate Travel Management (North) Ltd,98274526,120.00,RISD - UKRO
BEIS,UKRI - BBSRC,06/09/2018,RISD - UKRO,T&S UK - Accommodation,Corporate Travel Management (North) Ltd,98274526,0.50,RISD - UKRO
BEIS,UKRI - BBSRC,06/09/2018,RISD - UKRO,T&S UK - Accommodation,Corporate Travel Management (North) Ltd,98274526,116.00,RISD - UKRO
BEIS,UKRI - BBSRC,06/09/2018,RISD - UKRO,T&S UK - Accommodation,Corporate Travel Management (North) Ltd,98274526,0.20,RISD - UKRO
BEIS,UKRI - BBSRC,06/09/2018,Science Group,T&S UK - Accommodation,Corporate Travel Management (North) Ltd,98274526,0.50,Science Group
BEIS,UKRI - BBSRC,06/09/2018,Science Group,T&S UK - Accommodation,Corporate Travel Management (North) Ltd,98274526,119.00,Science Group
BEIS,UKRI - BBSRC,06/09/2018,Science Group,T&S UK - Accommodation,Corporate Travel Management (North) Ltd,98274526,0.50,Science Group
BEIS,UKRI - BBSRC,06/09/2018,Science Group,T&S UK - Accommodation,Corporate Travel Management (North) Ltd,98274526,119.00,Science Group
BEIS,UKRI - BBSRC,06/09/2018,Science Group,T&S UK - Accommodation,Corporate Travel Management (North) Ltd,98274526,0.50,Science Group
BEIS,UKRI - BBSRC,06/09/2018,Science Group,T&S UK - Accommodation,Corporate Travel Management (North) Ltd,98274526,245.00,Science Group
BEIS,UKRI - BBSRC,06/09/2018,Science Group,T&S UK - Accommodation,Corporate Travel Management (North) Ltd,98274526,0.50,Science Group
BEIS,UKRI - BBSRC,06/09/2018,Science Group,T&S UK - Accommodation,Corporate Travel Management (North) Ltd,98274526,105.50,Science Group
BEIS,UKRI - BBSRC,06/09/2018,Science Group,T&S UK - Accommodation,Corporate Travel Management (North) Ltd,98274526,0.50,Science Group
BEIS,UKRI - BBSRC,06/09/2018,Science Group,T&S UK - Accommodation,Corporate Travel Management (North) Ltd,98274526,99.00,Science Group
BEIS,UKRI - BBSRC,06/09/2018,Science Group,T&S UK - Accommodation,Corporate Travel Management (North) Ltd,98274526,0.50,Science Group
BEIS,UKRI - BBSRC,06/09/2018,Science Group,T&S UK - Accommodation,Corporate Travel Management (North) Ltd,98274526,123.30,Science Group
BEIS,UKRI - BBSRC,06/09/2018,Science Group,T&S UK - Accommodation,Corporate Travel Management (North) Ltd,98274526,0.50,Science Group
BEIS,UKRI - BBSRC,06/09/2018,Science Group,T&S UK - Accommodation,Corporate Travel Management (North) Ltd,98274526,106.88,Science Group
BEIS,UKRI - BBSRC,06/09/2018,Science Group,T&S UK - Accommodation,Corporate Travel Management (North) Ltd,98274526,0.20,Science Group
BEIS,UKRI - BBSRC,06/09/2018,Science Group,T&S UK - Accommodation,Corporate Travel Management (North) Ltd,98274526,0.40,Science Group
BEIS,UKRI - BBSRC,06/09/2018,Science Group,T&S UK - Accommodation,Corporate Travel Management (North) Ltd,98274526,0.10,Science Group
BEIS,UKRI - BBSRC,06/09/2018,Science Group - Delivery Function,T&S UK - Accommodation,Corporate Travel Management (North) Ltd,98274526,0.50,Science Group - Delivery Function
BEIS,UKRI - BBSRC,06/09/2018,Science Group - Delivery Function,T&S UK - Accommodation,Corporate Travel Management (North) Ltd,98274526,173.50,Science Group - Delivery Function
BEIS,UKRI - BBSRC,06/09/2018,Science Group - Delivery Function,T&S UK - Accommodation,Corporate Travel Management (North) Ltd,98274526,0.50,Science Group - Delivery Function
BEIS,UKRI - BBSRC,06/09/2018,Science Group - Delivery Function,T&S UK - Accommodation,Corporate Travel Management (North) Ltd,98274526,173.50,Science Group - Delivery Function
BEIS,UKRI - BBSRC,06/09/2018,Science Group - Delivery Function,T&S UK - Accommodation,Corporate Travel Management (North) Ltd,98274526,0.50,Science Group - Delivery Function
BEIS,UKRI - BBSRC,06/09/2018,Science Group - Delivery Function,T&S UK - Accommodation,Corporate Travel Management (North) Ltd,98274526,123.30,Science Group - Delivery Function
BEIS,UKRI - BBSRC,06/09/2018,Science Group - Delivery Function,T&S UK - Accommodation,Corporate Travel Management (North) Ltd,98274526,0.50,Science Group - Delivery Function
BEIS,UKRI - BBSRC,06/09/2018,Science Group - Delivery Function,T&S UK - Accommodation,Corporate Travel Management (North) Ltd,98274526,62.50,Science Group - Delivery Function
BEIS,UKRI - BBSRC,06/09/2018,Science Group - Delivery Function,T&S UK - Accommodation,Corporate Travel Management (North) Ltd,98274526,0.10,Science Group - Delivery Function
BEIS,UKRI - BBSRC,06/09/2018,Science Group - Delivery Function,T&S UK - Accommodation,Corporate Travel Management (North) Ltd,98274526,0.30,Science Group - Delivery Function
BEIS,UKRI - BBSRC,06/09/2018,CE - Chief Executive,T&S UK - Flights,Corporate Travel Management (North) Ltd,98274526,41.22,CE - Chief Executive
BEIS,UKRI - BBSRC,06/09/2018,CE - Chief Executive,T&S UK - Flights,Corporate Travel Management (North) Ltd,98274526,80.30,CE - Chief Executive
BEIS,UKRI - BBSRC,06/09/2018,CE - IRU,T&S UK - Flights,Corporate Travel Management (North) Ltd,98274526,203.00,CE - IRU
BEIS,UKRI - BBSRC,06/09/2018,FG - Accounts & Business Planning,T&S UK - Flights,Corporate Travel Management (North) Ltd,98274526,66.94,FG - Accounts & Business Planning
BEIS,UKRI - BBSRC,06/09/2018,FG - Accounts & Business Planning,T&S UK - Flights,Corporate Travel Management (North) Ltd,98274526,53.34,FG - Accounts & Business Planning
BEIS,UKRI - BBSRC,06/09/2018,FG - Estates,T&S UK - Flights,Corporate Travel Management (North) Ltd,98274526,114.91,FG - Estates
BEIS,UKRI - BBSRC,06/09/2018,FG - RCUK Assurance,T&S UK - Flights,Corporate Travel Management (North) Ltd,98274526,80.30,FG - RCUK Assurance
BEIS,UKRI - BBSRC,06/09/2018,FG - RCUK Assurance,T&S UK - Flights,Corporate Travel Management (North) Ltd,98274526,170.63,FG - RCUK Assurance
BEIS,UKRI - BBSRC,06/09/2018,FG - RCUK Assurance,T&S UK - Flights,Corporate Travel Management (North) Ltd,98274526,298.77,FG - RCUK Assurance
BEIS,UKRI - BBSRC,06/09/2018,FG - RCUK Assurance,T&S UK - Flights,Corporate Travel Management (North) Ltd,98274526,122.02,FG - RCUK Assurance
BEIS,UKRI - BBSRC,06/09/2018,Innovation and Skills Group,T&S UK - Flights,Corporate Travel Management (North) Ltd,98274526,79.30,Innovation and Skills Group
BEIS,UKRI - BBSRC,06/09/2018,Innovation and Skills Group,T&S UK - Flights,Corporate Travel Management (North) Ltd,98274526,72.49,Innovation and Skills Group
BEIS,UKRI - BBSRC,06/09/2018,Innovation and Skills Group,T&S UK - Flights,Corporate Travel Management (North) Ltd,98274526,231.24,Innovation and Skills Group
BEIS,UKRI - BBSRC,06/09/2018,Innovation and Skills Group,T&S UK - Flights,Corporate Travel Management (North) Ltd,98274526,120.97,Innovation and Skills Group
BEIS,UKRI - BBSRC,06/09/2018,Science Group,T&S UK - Flights,Corporate Travel Management (North) Ltd,98274526,72.49,Science Group
BEIS,UKRI - BBSRC,06/09/2018,Science Group,T&S UK - Flights,Corporate Travel Management (North) Ltd,98274526,105.86,Science Group
BEIS,UKRI - BBSRC,06/09/2018,Science Group,T&S UK - Flights,Corporate Travel Management (North) Ltd,98274526,528.70,Science Group
BEIS,UKRI - BBSRC,06/09/2018,Science Group,T&S UK - Flights,Corporate Travel Management (North) Ltd,98274526,100.94,Science Group
BEIS,UKRI - BBSRC,06/09/2018,Science Group - Delivery Function,T&S UK - Flights,Corporate Travel Management (North) Ltd,98274526,81.62,Science Group - Delivery Function
BEIS,UKRI - BBSRC,06/09/2018,Science Group - Delivery Function,T&S UK - Flights,Corporate Travel Management (North) Ltd,98274526,100.94,Science Group - Delivery Function
BEIS,UKRI - BBSRC,06/09/2018,CE - Chief Executive,T&S UK - Public Transport,Corporate Travel Management (North) Ltd,98274526,172.00,CE - Chief Executive
BEIS,UKRI - BBSRC,06/09/2018,CE - Chief Executive,T&S UK - Public Transport,Corporate Travel Management (North) Ltd,98274526,69.20,CE - Chief Executive
BEIS,UKRI - BBSRC,06/09/2018,CE - Chief Executive,T&S UK - Public Transport,Corporate Travel Management (North) Ltd,98274526,69.80,CE - Chief Executive
BEIS,UKRI - BBSRC,06/09/2018,CE - Chief Executive,T&S UK - Public Transport,Corporate Travel Management (North) Ltd,98274526,89.00,CE - Chief Executive
BEIS,UKRI - BBSRC,06/09/2018,CE - Chief Executive,T&S UK - Public Transport,Corporate Travel Management (North) Ltd,98274526,25.00,CE - Chief Executive
BEIS,UKRI - BBSRC,06/09/2018,CE - Chief Executive,T&S UK - Public Transport,Corporate Travel Management (North) Ltd,98274526,178.00,CE - Chief Executive
BEIS,UKRI - BBSRC,06/09/2018,CE - Chief Executive,T&S UK - Public Transport,Corporate Travel Management (North) Ltd,98274526,30.90,CE - Chief Executive
BEIS,UKRI - BBSRC,06/09/2018,CE - Chief Executive,T&S UK - Public Transport,Corporate Travel Management (North) Ltd,98274526,178.00,CE - Chief Executive
BEIS,UKRI - BBSRC,06/09/2018,CE - CPS,T&S UK - Public Transport,Corporate Travel Management (North) Ltd,98274526,123.60,CE - CPS
BEIS,UKRI - BBSRC,06/09/2018,CE - CPS,T&S UK - Public Transport,Corporate Travel Management (North) Ltd,98274526,127.60,CE - CPS
BEIS,UKRI - BBSRC,06/09/2018,CE - CPS,T&S UK - Public Transport,Corporate Travel Management (North) Ltd,98274526,111.00,CE - CPS
BEIS,UKRI - BBSRC,06/09/2018,CE - CPS,T&S UK - Public Transport,Corporate Travel Management (North) Ltd,98274526,46.10,CE - CPS
BEIS,UKRI - BBSRC,06/09/2018,CE - CPS,T&S UK - Public Transport,Corporate Travel Management (North) Ltd,98274526,23.00,CE - CPS
BEIS,UKRI - BBSRC,06/09/2018,CE - CPS,T&S UK - Public Transport,Corporate Travel Management (North) Ltd,98274526,69.80,CE - CPS
BEIS,UKRI - BBSRC,06/09/2018,CE - CPS,T&S UK - Public Transport,Corporate Travel Management (North) Ltd,98274526,27.90,CE - CPS
BEIS,UKRI - BBSRC,06/09/2018,CE - CPS,T&S UK - Public Transport,Corporate Travel Management (North) Ltd,98274526,37.00,CE - CPS
BEIS,UKRI - BBSRC,06/09/2018,CE - CPS,T&S UK - Public Transport,Corporate Travel Management (North) Ltd,98274526,46.10,CE - CPS
BEIS,UKRI - BBSRC,06/09/2018,CE - CPS,T&S UK - Public Transport,Corporate Travel Management (North) Ltd,98274526,-61.80,CE - CPS
BEIS,UKRI - BBSRC,06/09/2018,CE - CPS,T&S UK - Public Transport,Corporate Travel Management (North) Ltd,98274526,5.00,CE - CPS
BEIS,UKRI - BBSRC,06/09/2018,CE - CPS,T&S UK - Public Transport,Corporate Travel Management (North) Ltd,98274526,-22.90,CE - CPS
BEIS,UKRI - BBSRC,06/09/2018,CE - CPS,T&S UK - Public Transport,Corporate Travel Management (North) Ltd,98274526,-7.70,CE - CPS
BEIS,UKRI - BBSRC,06/09/2018,CE - CPS,T&S UK - Public Transport,Corporate Travel Management (North) Ltd,98274526,-41.10,CE - CPS
BEIS,UKRI - BBSRC,06/09/2018,CE - CPS,T&S UK - Public Transport,Corporate Travel Management (North) Ltd,98274526,56.40,CE - CPS
BEIS,UKRI - BBSRC,06/09/2018,CE - CPS,T&S UK - Public Transport,Corporate Travel Management (North) Ltd,98274526,274.60,CE - CPS
BEIS,UKRI - BBSRC,06/09/2018,CE - CPS,T&S UK - Public Transport,Corporate Travel Management (North) Ltd,98274526,157.00,CE - CPS
BEIS,UKRI - BBSRC,06/09/2018,CE - CPS,T&S UK - Public Transport,Corporate Travel Management (North) Ltd,98274526,49.00,CE - CPS
BEIS,UKRI - BBSRC,06/09/2018,CE - CPS,T&S UK - Public Transport,Corporate Travel Management (North) Ltd,98274526,37.40,CE - CPS
BEIS,UKRI - BBSRC,06/09/2018,CE - CPS,T&S UK - Public Transport,Corporate Travel Management (North) Ltd,98274526,64.40,CE - CPS
BEIS,UKRI - BBSRC,06/09/2018,CE - IRU,T&S UK - Public Transport,Corporate Travel Management (North) Ltd,98274526,139.60,CE - IRU
BEIS,UKRI - BBSRC,06/09/2018,CE - IRU,T&S UK - Public Transport,Corporate Travel Management (North) Ltd,98274526,1.00,CE - IRU
BEIS,UKRI - BBSRC,06/09/2018,CE - IRU,T&S UK - Public Transport,Corporate Travel Management (North) Ltd,98274526,20.80,CE - IRU
BEIS,UKRI - BBSRC,06/09/2018,CE - IRU,T&S UK - Public Transport,Corporate Travel Management (North) Ltd,98274526,1.00,CE - IRU
BEIS,UKRI - BBSRC,06/09/2018,CE - IRU,T&S UK - Public Transport,Corporate Travel Management (North) Ltd,98274526,19.85,CE - IRU
BEIS,UKRI - BBSRC,06/09/2018,CE - IRU,T&S UK - Public Transport,Corporate Travel Management (North) Ltd,98274526,89.00,CE - IRU
BEIS,UKRI - BBSRC,06/09/2018,CE - IRU,T&S UK - Public Transport,Corporate Travel Management (North) Ltd,98274526,69.20,CE - IRU
BEIS,UKRI - BBSRC,06/09/2018,CE - IRU,T&S UK - Public Transport,Corporate Travel Management (North) Ltd,98274526,24.90,CE - IRU
BEIS,UKRI - BBSRC,06/09/2018,CE - IRU,T&S UK - Public Transport,Corporate Travel Management (North) Ltd,98274526,12.70,CE - IRU
BEIS,UKRI - BBSRC,06/09/2018,CE - IRU,T&S UK - Public Transport,Corporate Travel Management (North) Ltd,98274526,12.70,CE - IRU
BEIS,UKRI - BBSRC,06/09/2018,CE - IRU,T&S UK - Public Transport,Corporate Travel Management (North) Ltd,98274526,26.00,CE - IRU
BEIS,UKRI - BBSRC,06/09/2018,CE - IRU,T&S UK - Public Transport,Corporate Travel Management (North) Ltd,98274526,24.10,CE - IRU
BEIS,UKRI - BBSRC,06/09/2018,CE - IRU,T&S UK - Public Transport,Corporate Travel Management (North) Ltd,98274526,69.20,CE - IRU
BEIS,UKRI - BBSRC,06/09/2018,CE - IRU,T&S UK - Public Transport,Corporate Travel Management (North) Ltd,98274526,69.20,CE - IRU
BEIS,UKRI - BBSRC,06/09/2018,CE - IRU,T&S UK - Public Transport,Corporate Travel Management (North) Ltd,98274526,-25.90,CE - IRU
BEIS,UKRI - BBSRC,06/09/2018,CE - IRU,T&S UK - Public Transport,Corporate Travel Management (North) Ltd,98274526,5.00,CE - IRU
BEIS,UKRI - BBSRC,06/09/2018,CE - IRU,T&S UK - Public Transport,Corporate Travel Management (North) Ltd,98274526,-36.20,CE - IRU
BEIS,UKRI - BBSRC,06/09/2018,CE - IRU,T&S UK - Public Transport,Corporate Travel Management (North) Ltd,98274526,41.20,CE - IRU
BEIS,UKRI - BBSRC,06/09/2018,CE - IRU,T&S UK - Public Transport,Corporate Travel Management (North) Ltd,98274526,30.90,CE - IRU
BEIS,UKRI - BBSRC,06/09/2018,CE - IRU,T&S UK - Public Transport,Corporate Travel Management (North) Ltd,98274526,66.80,CE - IRU
BEIS,UKRI - BBSRC,06/09/2018,CE - IRU,T&S UK - Public Transport,Corporate Travel Management (North) Ltd,98274526,78.80,CE - IRU
BEIS,UKRI - BBSRC,06/09/2018,CIMG - Council Secretariat,T&S UK - Public Transport,Corporate Travel Management (North) Ltd,98274526,-32.40,CIMG - Council Secretariat
BEIS,UKRI - BBSRC,06/09/2018,CIMG - Council Secretariat,T&S UK - Public Transport,Corporate Travel Management (North) Ltd,98274526,5.00,CIMG - Council Secretariat
BEIS,UKRI - BBSRC,06/09/2018,CIMG - Council Secretariat,T&S UK - Public Transport,Corporate Travel Management (North) Ltd,98274526,-15.20,CIMG - Council Secretariat
BEIS,UKRI - BBSRC,06/09/2018,CIMG - Director,T&S UK - Public Transport,Corporate Travel Management (North) Ltd,98274526,52.60,CIMG - Director
BEIS,UKRI - BBSRC,06/09/2018,CIMG - Director,T&S UK - Public Transport,Corporate Travel Management (North) Ltd,98274526,139.60,CIMG - Director
BEIS,UKRI - BBSRC,06/09/2018,CIMG - Director,T&S UK - Public Transport,Corporate Travel Management (North) Ltd,98274526,67.90,CIMG - Director
BEIS,UKRI - BBSRC,06/09/2018,CIMG - External Relations,T&S UK - Public Transport,Corporate Travel Management (North) Ltd,98274526,80.80,CIMG - External Relations
BEIS,UKRI - BBSRC,06/09/2018,CIMG - External Relations,T&S UK - Public Transport,Corporate Travel Management (North) Ltd,98274526,56.90,CIMG - External Relations
BEIS,UKRI - BBSRC,06/09/2018,CIMG - External Relations,T&S UK - Public Transport,Corporate Travel Management (North) Ltd,98274526,19.00,CIMG - External Relations
BEIS,UKRI - BBSRC,06/09/2018,CIMG - External Relations,T&S UK - Public Transport,Corporate Travel Management (North) Ltd,98274526,12.70,CIMG - External Relations
BEIS,UKRI - BBSRC,06/09/2018,CIMG - External Relations,T&S UK - Public Transport,Corporate Travel Management (North) Ltd,98274526,12.70,CIMG - External Relations
BEIS,UKRI - BBSRC,06/09/2018,CIMG - External Relations,T&S UK - Public Transport,Corporate Travel Management (North) Ltd,98274526,12.70,CIMG - External Relations
BEIS,UKRI - BBSRC,06/09/2018,CIMG - External Relations,T&S UK - Public Transport,Corporate Travel Management (North) Ltd,98274526,49.70,CIMG - External Relations
BEIS,UKRI - BBSRC,06/09/2018,CIMG - External Relations,T&S UK - Public Transport,Corporate Travel Management (North) Ltd,98274526,12.70,CIMG - External Relations
BEIS,UKRI - BBSRC,06/09/2018,CIMG - Information Systems,T&S UK - Public Transport,Corporate Travel Management (North) Ltd,98274526,31.00,CIMG - Information Systems
BEIS,UKRI - BBSRC,06/09/2018,CIMG - Information Systems,T&S UK - Public Transport,Corporate Travel Management (North) Ltd,98274526,106.70,CIMG - Information Systems
BEIS,UKRI - BBSRC,06/09/2018,CIMG - Information Systems,T&S UK - Public Transport,Corporate Travel Management (North) Ltd,98274526,52.40,CIMG - Information Systems
BEIS,UKRI - BBSRC,06/09/2018,CIMG - Programme Office,T&S UK - Public Transport,Corporate Travel Management (North) Ltd,98274526,139.60,CIMG - Programme Office
BEIS,UKRI - BBSRC,06/09/2018,CIMG - Programme Office,T&S UK - Public Transport,Corporate Travel Management (North) Ltd,98274526,53.90,CIMG - Programme Office
BEIS,UKRI - BBSRC,06/09/2018,CIMG - Programme Office,T&S UK - Public Transport,Corporate Travel Management (North) Ltd,98274526,66.00,CIMG - Programme Office
BEIS,UKRI - BBSRC,06/09/2018,European Initiatives,T&S UK - Public Transport,Corporate Travel Management (North) Ltd,98274526,111.00,European Initiatives
BEIS,UKRI - BBSRC,06/09/2018,European Initiatives,T&S UK - Public Transport,Corporate Travel Management (North) Ltd,98274526,139.60,European Initiatives
BEIS,UKRI - BBSRC,06/09/2018,European Initiatives,T&S UK - Public Transport,Corporate Travel Management (North) Ltd,98274526,94.70,European Initiatives
BEIS,UKRI - BBSRC,06/09/2018,European Initiatives,T&S UK - Public Transport,Corporate Travel Management (North) Ltd,98274526,12.70,European Initiatives
BEIS,UKRI - BBSRC,06/09/2018,European Initiatives,T&S UK - Public Transport,Corporate Travel Management (North) Ltd,98274526,12.70,European Initiatives
BEIS,UKRI - BBSRC,06/09/2018,European Initiatives,T&S UK - Public Transport,Corporate Travel Management (North) Ltd,98274526,-25.90,European Initiatives
BEIS,UKRI - BBSRC,06/09/2018,European Initiatives,T&S UK - Public Transport,Corporate Travel Management (North) Ltd,98274526,5.00,European Initiatives
BEIS,UKRI - BBSRC,06/09/2018,European Initiatives,T&S UK - Public Transport,Corporate Travel Management (North) Ltd,98274526,-36.20,European Initiatives
BEIS,UKRI - BBSRC,06/09/2018,FG - Accounts & Business Planning,T&S UK - Public Transport,Corporate Travel Management (North) Ltd,98274526,25.50,FG - Accounts & Business Planning
BEIS,UKRI - BBSRC,06/09/2018,FG - Director,T&S UK - Public Transport,Corporate Travel Management (North) Ltd,98274526,171.60,FG - Director
BEIS,UKRI - BBSRC,06/09/2018,FG - Estates,T&S UK - Public Transport,Corporate Travel Management (North) Ltd,98274526,84.80,FG - Estates
BEIS,UKRI - BBSRC,06/09/2018,FG - Estates,T&S UK - Public Transport,Corporate Travel Management (North) Ltd,98274526,84.80,FG - Estates
BEIS,UKRI - BBSRC,06/09/2018,FG - Estates,T&S UK - Public Transport,Corporate Travel Management (North) Ltd,98274526,218.10,FG - Estates
BEIS,UKRI - BBSRC,06/09/2018,FG - Estates,T&S UK - Public Transport,Corporate Travel Management (North) Ltd,98274526,217.40,FG - Estates
BEIS,UKRI - BBSRC,06/09/2018,FG - Estates,T&S UK - Public Transport,Corporate Travel Management (North) Ltd,98274526,84.80,FG - Estates
BEIS,UKRI - BBSRC,06/09/2018,FG - RCUK Assurance,T&S UK - Public Transport,Corporate Travel Management (North) Ltd,98274526,32.50,FG - RCUK Assurance
BEIS,UKRI - BBSRC,06/09/2018,FG - RCUK Assurance,T&S UK - Public Transport,Corporate Travel Management (North) Ltd,98274526,28.00,FG - RCUK Assurance
BEIS,UKRI - BBSRC,06/09/2018,FG - RCUK Assurance,T&S UK - Public Transport,Corporate Travel Management (North) Ltd,98274526,115.50,FG - RCUK Assurance
BEIS,UKRI - BBSRC,06/09/2018,FG - RCUK Assurance,T&S UK - Public Transport,Corporate Travel Management (North) Ltd,98274526,115.50,FG - RCUK Assurance
BEIS,UKRI - BBSRC,06/09/2018,Innovation and Skills Group,T&S UK - Public Transport,Corporate Travel Management (North) Ltd,98274526,22.90,Innovation and Skills Group
BEIS,UKRI - BBSRC,06/09/2018,Innovation and Skills Group,T&S UK - Public Transport,Corporate Travel Management (North) Ltd,98274526,139.60,Innovation and Skills Group
BEIS,UKRI - BBSRC,06/09/2018,Innovation and Skills Group,T&S UK - Public Transport,Corporate Travel Management (North) Ltd,98274526,139.60,Innovation and Skills Group
BEIS,UKRI - BBSRC,06/09/2018,Innovation and Skills Group,T&S UK - Public Transport,Corporate Travel Management (North) Ltd,98274526,94.60,Innovation and Skills Group
BEIS,UKRI - BBSRC,06/09/2018,Innovation and Skills Group,T&S UK - Public Transport,Corporate Travel Management (North) Ltd,98274526,-134.60,Innovation and Skills Group
BEIS,UKRI - BBSRC,06/09/2018,Innovation and Skills Group,T&S UK - Public Transport,Corporate Travel Management (North) Ltd,98274526,-64.80,Innovation and Skills Group
BEIS,UKRI - BBSRC,06/09/2018,Innovation and Skills Group,T&S UK - Public Transport,Corporate Travel Management (North) Ltd,98274526,5.00,Innovation and Skills Group
BEIS,UKRI - BBSRC,06/09/2018,Innovation and Skills Group,T&S UK - Public Transport,Corporate Travel Management (North) Ltd,98274526,-25.90,Innovation and Skills Group
BEIS,UKRI - BBSRC,06/09/2018,Innovation and Skills Group,T&S UK - Public Transport,Corporate Travel Management (North) Ltd,98274526,-166.60,Innovation and Skills Group
BEIS,UKRI - BBSRC,06/09/2018,Innovation and Skills Group,T&S UK - Public Transport,Corporate Travel Management (North) Ltd,98274526,-36.20,Innovation and Skills Group
BEIS,UKRI - BBSRC,06/09/2018,Innovation and Skills Group,T&S UK - Public Transport,Corporate Travel Management (North) Ltd,98274526,139.60,Innovation and Skills Group
BEIS,UKRI - BBSRC,06/09/2018,Innovation and Skills Group,T&S UK - Public Transport,Corporate Travel Management (North) Ltd,98274526,139.60,Innovation and Skills Group
BEIS,UKRI - BBSRC,06/09/2018,Innovation and Skills Group,T&S UK - Public Transport,Corporate Travel Management (North) Ltd,98274526,100.70,Innovation and Skills Group
BEIS,UKRI - BBSRC,06/09/2018,Innovation and Skills Group,T&S UK - Public Transport,Corporate Travel Management (North) Ltd,98274526,71.30,Innovation and Skills Group
BEIS,UKRI - BBSRC,06/09/2018,Innovation and Skills Group,T&S UK - Public Transport,Corporate Travel Management (North) Ltd,98274526,25.50,Innovation and Skills Group
BEIS,UKRI - BBSRC,06/09/2018,Innovation and Skills Group,T&S UK - Public Transport,Corporate Travel Management (North) Ltd,98274526,20.00,Innovation and Skills Group
BEIS,UKRI - BBSRC,06/09/2018,Innovation and Skills Group,T&S UK - Public Transport,Corporate Travel Management (North) Ltd,98274526,139.60,Innovation and Skills Group
BEIS,UKRI - BBSRC,06/09/2018,Innovation and Skills Group,T&S UK - Public Transport,Corporate Travel Management (North) Ltd,98274526,94.70,Innovation and Skills Group
BEIS,UKRI - BBSRC,06/09/2018,Innovation and Skills Group,T&S UK - Public Transport,Corporate Travel Management (North) Ltd,98274526,39.00,Innovation and Skills Group
BEIS,UKRI - BBSRC,06/09/2018,Innovation and Skills Group,T&S UK - Public Transport,Corporate Travel Management (North) Ltd,98274526,42.95,Innovation and Skills Group
BEIS,UKRI - BBSRC,06/09/2018,Innovation and Skills Group,T&S UK - Public Transport,Corporate Travel Management (North) Ltd,98274526,100.70,Innovation and Skills Group
BEIS,UKRI - BBSRC,06/09/2018,Innovation and Skills Group,T&S UK - Public Transport,Corporate Travel Management (North) Ltd,98274526,100.70,Innovation and Skills Group
BEIS,UKRI - BBSRC,06/09/2018,Innovation and Skills Group,T&S UK - Public Transport,Corporate Travel Management (North) Ltd,98274526,93.60,Innovation and Skills Group
BEIS,UKRI - BBSRC,06/09/2018,Innovation and Skills Group,T&S UK - Public Transport,Corporate Travel Management (North) Ltd,98274526,97.00,Innovation and Skills Group
BEIS,UKRI - BBSRC,06/09/2018,Innovation and Skills Group,T&S UK - Public Transport,Corporate Travel Management (North) Ltd,98274526,90.00,Innovation and Skills Group
BEIS,UKRI - BBSRC,06/09/2018,Innovation and Skills Group,T&S UK - Public Transport,Corporate Travel Management (North) Ltd,98274526,5.00,Innovation and Skills Group
BEIS,UKRI - BBSRC,06/09/2018,Innovation and Skills Group,T&S UK - Public Transport,Corporate Travel Management (North) Ltd,98274526,-25.90,Innovation and Skills Group
BEIS,UKRI - BBSRC,06/09/2018,Innovation and Skills Group,T&S UK - Public Transport,Corporate Travel Management (North) Ltd,98274526,30.00,Innovation and Skills Group
BEIS,UKRI - BBSRC,06/09/2018,Innovation and Skills Group,T&S UK - Public Transport,Corporate Travel Management (North) Ltd,98274526,139.60,Innovation and Skills Group
BEIS,UKRI - BBSRC,06/09/2018,Innovation and Skills Group,T&S UK - Public Transport,Corporate Travel Management (North) Ltd,98274526,139.60,Innovation and Skills Group
BEIS,UKRI - BBSRC,06/09/2018,Innovation and Skills Group,T&S UK - Public Transport,Corporate Travel Management (North) Ltd,98274526,100.70,Innovation and Skills Group
BEIS,UKRI - BBSRC,06/09/2018,Innovation and Skills Group,T&S UK - Public Transport,Corporate Travel Management (North) Ltd,98274526,10.50,Innovation and Skills Group
BEIS,UKRI - BBSRC,06/09/2018,Innovation and Skills Group,T&S UK - Public Transport,Corporate Travel Management (North) Ltd,98274526,9.60,Innovation and Skills Group
BEIS,UKRI - BBSRC,06/09/2018,Innovation and Skills Group CDSU,T&S UK - Public Transport,Corporate Travel Management (North) Ltd,98274526,5.00,Innovation and Skills Group CDSU
BEIS,UKRI - BBSRC,06/09/2018,Innovation and Skills Group CDSU,T&S UK - Public Transport,Corporate Travel Management (North) Ltd,98274526,-21.60,Innovation and Skills Group CDSU
